{"text_format":"1","workbook":"xlsx","n_sheets":5,"sheets":["INSTRUCTIVO DE USO","INTRODUCCIÓN ESPECIES FASE INV","OBLIGACIONES APLICABLES","Temp","Hoja2"],"not_rendered":{"charts":0,"images":2,"macros":1,"external_links":0,"defined_names":5,"comments":1,"pivot_tables":0},"unopened":[],"bounds":{"document_bytes":16777216,"sheet_cells":100000,"rows_first":2000,"rows_last":500,"rows_between":2000,"halvings":0,"cell_chars":16384,"cell_head_chars":4096},"cells_cut":0,"cells_raw":0,"read":"whole","date_system":"1900"}

{"sheet":"INSTRUCTIVO DE USO","index":0,"n_rows":11,"n_cols":3,"rows_kept":11,"cut":false,"hidden":false,"merged":[[10,0,10,12],[0,0,0,1],[0,2,0,12],[2,0,2,12],[4,0,5,12],[7,0,8,12]]}
[null,null,"INSTRUCTIVO DE USO DEL INSTRUMENTO DE OBLIGACIONES MÍNIMAS "]
[]
["1. INTRODUCCIÓN\n\nLas Obligaciones Mínimas son un instrumento interno de la Autoridad Nacional de Licencias Ambientales – ANLA formulado con el fin de unificar criterios por parte de los profesionales que realizan la evaluación y seguimiento de proyectos, obras o actividades sujetos al trámite de licenciamiento ambiental, mediante la estandarización de obligaciones mínimas asociadas al acto administrativo a través del cual se otorga o modifica la licencia ambiental, se actualizan los planes de manejo ambiental y se imponen medidas adicionales, de tal manera que se asegure que en cada tipo de proyecto se impongan las mismas obligaciones estandarizadas bajo requerimientos legales y directrices institucionales, así como con condiciones unificadas y claramente definidas de modo, tiempo y lugar.\n\nEs importante resaltar que, este instrumento al ser interno facilita la labor de esta autoridad en la imposición de obligaciones mínimas en los procesos de evaluación y seguimiento (este último en los casos estrictamente aplicables), y en la verificación del cumplimiento de las mismas en el seguimiento. Sin embargo, al ser puesto a disposición de los usuarios o solicitantes de licencias ambientales servirá como herramienta de planeación de los proyectos, obras o actividades sujetos a licenciamiento, de tal manera que previo a la radicación de los estudios ambientales frente a esta autoridad, las obligaciones puedan ser incorporadas por los usuarios en la formulación de los Planes de Manejo Ambiental - PMA\n\nPor lo anterior, a continuación se realizan algunas precisiones a los solicitantes de licencias ambientales cuando estos deseen consultar y hacer uso de este instrumento durante el proceso de formulación de sus PMA."]
[]
["2. DEFINICIONES\n\nCondición de lugar: (dónde) lugares o puntos en los que debe desarrollarse la actividad según experticia del evaluador o según protocolos, guías, normativa en general, etc.\nCondición de modo: (cómo) descripción de las características o circunstancias en las que se deben realizar las actividades autorizadas, según protocolos, guías, normativa en general y aspectos administrativos que se definan.\nCondición de tiempo: (cuándo) periodicidad para la ejecución de monitoreos, tiempos de realización de actividades, tiempos de presentación de la información, etc.\nObligaciones mínimas: Describen las condiciones mínimas de modo, tiempo y lugar a través de las cuales la Autoridad Ambiental, autoriza la ejecución de un proyecto, obra o actividad sujeto legalmente al trámite de Licenciamiento Ambiental, identificando los permisos, autorizaciones y/o concesiones cuando sea el caso, de conformidad con cada subsector (tipo de proyecto). En razón a lo anterior, se clasifican las obligaciones mínimas, de conformidad con las características de las condiciones reglamentadas, de la siguiente manera: obligaciones asociadas a componentes y actividades, obligaciones asociadas a planes, obligaciones socioeconómicas, obligaciones generales y requisitos del acto administrativo. \nObligaciones asociadas a componentes y actividades: contiene obligaciones relacionadas con algunos componentes y actividades propias del proyecto, obra o actividad, tales como: características de los sitios de almacenamiento temporal de la especie importada e infraestructura asociada, gestión de residuos, entre otras.\nObligaciones asociadas a Planes: contiene obligaciones relacionadas con la ejecución y cumplimiento del plan de gestión del riesgo y plan de desmantelamiento y abandono.\nObligaciones socioeconómicas: contienen obligaciones relacionadas con temas, tales como: gestión social y valoración económica.\nObligaciones generales: agrupa diferentes aspectos relacionados con cumplimiento de parámetros normativos, presentación de información asociada a la especie importada y a la fase de experimentación y demás condiciones generales a ser tenidas en cuenta por parte del titular de la licencia. La inclusión de este tipo de obligaciones, deberá realizarse en todas las licencias ambientales, sin importar el tipo de proyecto. En caso de que el solicitante de la licencia ambiental haga uso de este instrumento durante el proceso de formulación de su PMA, deberá tener en cuenta sólo aquellas que soliciten el levantamiento y presentación de información a través de los Informes de Cumplimiento Ambiental.\nRequisitos del acto administrativo: corresponde a aquellas obligaciones de la ANLA frente a cada licencia ambiental. La inclusión por parte de los profesionales jurídicos de este tipo de obligaciones deberá realizarse en todas las licencias ambientales, sin importar el tipo de proyecto. No tienen relación alguna con las fases de desarrollo del proyecto y no son objeto de seguimiento. Algunas de las obligaciones, contienen textos en rojo que deberán ser diligenciados directamente en el acto administrativo por el profesional jurídico, como: nombre y NIT del titular del proyecto. En caso de que el solicitante de la licencia ambiental haga uso de este instrumento durante el proceso de formulación de su PMA, no deberá tenerl en cuenta este tipo de obligaciones dada la naturaleza de las mismas."]
[]
[]
["3. DESARROLLO\n\nEste instrumento representa una estandarización mínima a la luz de las necesidades de cada sector y tipos de proyectos, obras o actividades en todas las regiones, por lo cual, tanto los profesionales de la Autoridad como los usuarios o solicitantes de licencias ambientales, con fundamento en el conocimiento de las condiciones ambientales propias del área (hídricas, climáticas, geomorfológicas, de suelos, etc.) y de las actividades a desarrollar por parte del proyecto, deberán hacer uso de las obligaciones específicas a que haya lugar y en los casos estrictamente necesarios y técnicamente justificados se podrán adaptar aquellas obligaciones mínimas que así lo requieran. \n\nCada archivo contiene dos pestañas u hojas de cálculo. La primera pestaña, hace referencia al tipo de proyecto para el cual se estandarizaron obligaciones asociadas a permisos, autorizaciones y aspectos generales. Esta pestaña cuenta con un encabezado indicando el tipo de proyecto para el cual se estandarizaron obligaciones y con 3 secciones.\n\nLa SECCIÓN 1. PERMISOS, AUTORIZACIONES Y ASPECTOS GENERALES agrupa 5 subsecciones que son descritas a continuación:\n\nSubsección 1. ID (Columna A): corresponde a la numeración de las obligaciones, la cual se encuentra en orden consecutivo.\nSubsección 2. Temática (Columna B): corresponde a la temática abordada en cada uno de los grupos de obligaciones mínimas (obligaciones de uso, aprovechamiento y/o afectación de recursos naturales, obligaciones asociadas a componentes y actividades, obligaciones asociadas a planes, obligaciones socioeconómicas, obligaciones generales y requisitos del acto administrativo).\nSubsección 3. Aspecto a tratar (Columna C): comprende los elementos a los que hace referencia cada obligación, p.e: salvoconducto para la movilización de la especie introducida, protocolo de manejo / seguridad ambiental, presentación del permiso (NO CITES) y VUCE, etc.\nSubsección 4. Aspecto a tratar (Columna D): permite seleccionar la aplicabilidad ( √ ) o no ( X ) de una obligación mediante un doble clic en la celda, según el contexto del proyecto que se esté evaluando, es decir, si se le otorga un determinado permiso, se le autoriza alguna obra o actividad o le aplica de acuerdo con los permisos y actividades desarrolladas por le proyecto.\nSubsección 5. Obligación (Columna E): conjunto de obligaciones mínimas establecidas para cada temática y aspecto a tratar.\n\nPor otra parte, la SECCIÓN 2. FASES DEL PROYECTO PARA EL CUMPLIMIENTO Y SEGUIMIENTO A OBLIGACIONES indica la fase en la cual deberán ejecutarse las acciones asociadas a una determinada obligación para el cumplimiento por parte del titular de la licencia y el seguimiento por parte de la Autoridad: 1) Etapa de importación y 2) Etapa de experimentación. \n\nFinalmente, la SECCIÓN 3. TEMPORALIDAD establece si la obligación debe ser de cumplimiento permanente o temporal por parte de los titulares de las licencias.\n\nUna vez se revisen todas las obligaciones mínimas y se indique si aplican o no, los usuarios de este instrumento deberán dirigirse a la segunda pestaña denominada OBLIGACIONES APLICABLES para generar el listado final de obligaciones mínimas que pueden establecerse a cada proyecto. Para generar este listado, se deberá dar clic en el botón de “Actualizar Anexo”.\n\nLa aplicabilidad de las obligaciones en las diferentes fases del proyecto, así como su temporalidad deberá asociarse al final de cada obligación en el respectivo documento (Concepto Técnico y acto administratico para el caso de la Autoridad o PMA para el caso de los usuarios o solicitantes de licencias ambientales)."]
[]
[]
["4. ANEXOS\n\nEl instrumento cuenta con plantillas asociados a las obligaciones mínimas de gestión de residuos, las cuales son:\n\n1. Plantilla de seguimiento a la gestión de residuos peligrosos y Plantilla de seguimiento a la gestión de residuos no peligrosos: En esta plantilla se consolidará la información asociada a la generación y gestión (tratamiento, aprovechamiento y/o disposición final) de residuos peligros y no peligrosos realizada por parte del generador o de terceros autorizados, la cual deberá ser allegada en los respectivos Informes de Cumplimiento Ambiental – ICA.\n\nDichas plantillas, se encuentran disponibles en la página web de la ANLA."]

{"sheet":"INTRODUCCIÓN ESPECIES FASE INV","index":1,"n_rows":66,"n_cols":8,"rows_kept":66,"cut":false,"hidden":false,"merged":[[5,8,5,23],[5,0,5,4],[0,0,4,1],[0,2,4,4],[0,5,1,5],[2,5,3,5],[0,6,1,7],[2,6,3,7],[4,6,4,7],[5,5,5,6]]}
[null,null,"          OBLIGACIONES MÍNIMAS PARA PROYECTOS DE INTRODUCCIÓN DE PARENTALES, ESPECIES, SUBESPECIES, RAZAS, HÍBRIDOS O VARIEDADES FORÁNEAS",null,null,"Fecha:","2022-08-10"]
[]
[null,null,null,null,null,"Versión:",2]
[]
[null,null,null,null,null,"Código:","EL-FO-39"]
["SECCIÓN 1. PERMISOS, AUTORIZACIONES Y ASPECTOS GENERALES",null,null,null,null,"SECCIÓN 2. FASE DEL PROYECTO PARA EL CUMPLIMIENTO Y SEGUIMIENTO A OBLIGACIONES",null,"SECCIÓN 3. TEMPORALIDAD"]
["ID","Temática","Aspecto a tratar","Aplica (SI / NO)","Obligación","Etapa de importación","Etapa de experimentación","Temporal  / \nPermanente"]
[1,"OBLIGACIÓN GENERAL","Prohibición de la comercialización previo a la finalización de la fase de investigación o experimental",null,"El titular de la licencia ambiental no podrá adelantar actividades de comercialización de parentales, especies, subespecies, razas, híbridos o variedades foráneas, ni con su progenie, hasta tanto se supere la fase de investigación o experimental, se haya dado cumplimiento a las obligaciones establecidas por acto administrativo para esta fase y se haya surtido la modificación de la licencia ambiental.","Aplica","Aplica","Permanente"]
[{"$f":"A8+1","v":2},"OBLIGACIÓN GENERAL","Prohibición de movilización de individuos a instalaciones diferentes a las autorizadas",null,"El titular de la licencia ambiental no podrá movilizar los parentales, especies, subespecies, razas, híbridos o variedades foráneas objeto de introducción o su progenie a ninguna instalación diferente a la autorizada en la Licencia Ambiental, desde su llegada hasta el sitio donde se desarrollará la fase de investigación o experimental, o desde donde se desarrollará la fase de investigación o experimental a cualquier otra locación. ","Aplica","Aplica","Permanente"]
[3,"OBLIGACIÓN GENERAL","Salvoconducto para la movilización de la especie introducida",null,"Previo a la introducción, el titular de la licencia ambiental deberá tramitar el respectivo salvoconducto con la autoridad ambiental competente, para el traslado de los parentales, especies, subespecies, razas, hídridos o variedades foráneas desde el puerto de entrada hasta el área en donde se llevará a cabo la fase de investigación o experimental [Laboratorio / Finca / Área de ensayo] y remitir copia del mismo a ésta Autoridad en el primer Informe de Cumplimiento Ambiental - ICA.","Aplica","N/A","Permanente"]
[4,"OBLIGACIÓN GENERAL","Registros / inventarios en fase de experimentación",null,"El titular de la presente licencia ambiental llevará un libro o bitacora con los registros e inventarios respectivos en torno a las diferentes etapas aprobadas en la fase de investigación o experimental, que contengan como mínimo: etapa, lugar, fecha, nombre de los responsables de su manejo, unidades o cantidades de organismos [nombre de la especie introducida] manejada en cada actividad, bioensayos realizados con los organismos, fotografías de los bioensayos y lugares de mantenimiento de los organismos, cantidades de organismos vivos y muertos, fase del ciclo de vida en la que está cada organismo y en la que se produjo su muerte y las evidencias del manejo y disposición final de los mismos. En caso de reprodución, se deberá presentar un inventario de nuevos organismos producidos, entre otros. El libro deberá tener una copia en formato digital y disponible para su consulta en las instalaciones donde tendrá lugar el proyecto en su fase investigación o experimental. Presentar dichos soportes a través de los Informes de Cumplimiento Ambiental - ICA.","Aplica","Aplica","Permanente"]
[5,"OBLIGACIÓN GENERAL","Manejo de los individuos introducidos por progenie y estado",null,"El titular de la presente licencia ambiental presentará a través de los Informes de Cumplimiento Ambiental - ICA la  información obtenida a partir de los bioensayos que se realicen durante la fase de investigación o experimental, la cual debe ser analizada con la información proveniente de literatura científica indexada debidamente referenciada.","N/A","Aplica","Permanente"]
[6,"OBLIGACIÓN GENERAL","Desarrolllo de la etapa experimental",null,"El titular de la presente licencia ambiental presentará a través de los informes de Cumplimiento Ambiental - ICA, el avance del cronograma de la etapa experimental, el cual debe establecer el porcentaje de cumplimiento de las actividades planteadas, así como las dificultades presentadas en caso de retrasos.","N/A","Aplica","Permanente"]
[7,"OBLIGACIÓN GENERAL","Presentación del permiso (NO CITES) y VUCE",null,"El titutal de la licencia ambiental tramitará una vez obtenida la licencia ambiental y previo a la introducción de los organismos [nombre de la especie introducida], el permiso por medio de la cual se autoriza la introducción de especímenes de diversidad biológica pertenecientes a especies no incluidas en los Apéndices de la Convención CITES (NO CITES) y los Vistos Buenos de la Ventanilla Única de Comercio Exterior (VUCE).","Aplica","N/A","Temporal"]
[8,"OBLIGACIÓN GENERAL","Presentación de soportes de implementación del protocolo de custodia para la movilización de los individuos",null,"El titular de la licencia ambiental debe remitir a esta Autoridad a través del primer Informe de Cumplimiento Ambiental - ICA los soportes de la implementación del protocolo de custodia para la movilización de [nombre de la especie introducida] desde el puerto de entrada hasta [la finca / el laboratorio / área de ensayo], de acuerdo a lo presentado en el EIA. ","Aplica","N/A","Temporal"]
[9,"OBLIGACIÓN GENERAL","Áreas, equipos y materiales para la experimentación",null,"El titular de la licencia ambiental deberá garantizar el correcto funcionamiento de los equipos y materiales, los cuales deberán estar señalizados de manera adecuada.","N/A","Aplica","Permanente"]
[10,"OBLIGACIÓN GENERAL","Protocolo de manejo / seguridad ambiental ",null,"El titular de la licencia ambiental deberá presentar a través de los Informes de Cumplimiento Ambiental - ICA los soportes de la implementación de las prácticas de manejo y seguridad ambiental para los operarios frente al manejo de [nombre de la especie introducida], con el fin de evitar contaminación de escenarios distintos al lugar donde se manipule dicha especie. ","N/A","Aplica","Permanente"]
[11,"OBLIGACIÓN GENERAL","Responsabilidad frente al deterioro y/o daño ambiental",null,"El titular de la presente licencia ambiental, será responsable por cualquier deterioro y/o daño ambiental causado por él o por los contratistas a su cargo, que se genere en desarrollo de las actividades autorizadas; frente a las cuales deberá realizar las acciones necesarias para corregir los efectos causados.","N/A","Aplica","Permanente"]
[12,"OBLIGACIÓN GENERAL","Actividades amparadas en la licencia ambiental",null,"La licencia ambiental de la fase de investigación o experimental que se otorga mediante el presente acto administrativo, no ampara ningún tipo de actividad diferente a las descritas en el presente acto administrativo. ","N/A","Aplica","Permanente"]
[13,"OBLIGACIÓN GENERAL","Modificación de la Licencia Ambiental, cuando se configure alguna de las causales mencionadas en el Decreto 1076 de 2015.",null,"El titular de la presente Licencia Ambiental solicitará a la ANLA la modificación de la licencia ambiental, previa a la ejecución de actividades que configuren alguna de las causales señaladas en el Artículo 2.2.2.3.7.1 del Decreto 1076 de 2015. ","N/A","Aplica","Permanente"]
[14,"OBLIGACIÓN GENERAL","Cambios menores ",null,"El titular de la licencia ambiental solicitará por escrito pronunciamiento de esta autoridad, sobre la viabilidad de si una nueva actividad puede ser considerada como cambio menor o de ajuste normal dentro del giro ordinario, de acuerdo a lo establecido en el parágrafo 1 del artículo 2.2.2.3.7.1. del Decreto 1076 del 2015, concepto que se remitirá con destino al expediente.","Aplica","Aplica","Permanente"]
[15,"OBLIGACIÓN GENERAL","Informar a la ANLA y a las demás Autoridades Ambientales competentes la fecha de iniciación de actividades",null,"El titular de la presente licencia ambiental, dentro de los diez (10) días siguientes a la introducción, informará a la Autoridad Nacional de Licencias Ambientales - ANLA, mediante oficio dirigido a la Subdirección de Seguimiento de Licencias Ambientales, y a la Autoridad Ambiental Regional, la fecha de inicio de actividades.  En caso de que no se pueda dar inicio a las actividades en la fecha previamente informada, se notificará inmediatamente a esta Autoridad la justificación, así como la nueva fecha de inicio. Enviar a esta Autoridad copia del oficio radicado ante la autoridad ambiental regional.","N/A","Aplica","Temporal"]
[16,"OBLIGACIÓN GENERAL","Presentación de ICA de acuerdo con lo establecido en el Manual de Seguimiento Ambiental de Proyectos y la Resolución 077 de 2019.",null,"El titular de la licencia ambiental presentará los Informes de Cumplimiento Ambiental -ICA de manera [Espacio para definir periodicidad de ICA de cada fase del proyecto (trimestral, semestral o anual, según cronograma de actividades de la fase de investigación] de acuerdo con lo establecido en el Manual de Seguimiento Ambiental de Proyectos y lo dispuesto en la Resolución 077 de 2019, modificada por la Resolución 0549 de 2020, o aquellas que las que las modifiquen, deroguen o sustituyan.","N/A","Aplica","Permanente"]
[17,"INFRAESTRUCTURA","Características de la infraestructura (invernaderos, estanques, acuarios, bodegas, etc)",null,"La infraestructura de (invernaderos, laboratorios, estanques, acuarios, bodegas, etc) empleada para el desarrollo de la fase de investigación o experimental deberá cumplir con las siguientes condiciones:\n\na) Contar con barreras físicas y/o químicas de contención, que garanticen que los organismos no salgan de las áreas destinadas para la fase de investigación o experimental. \nb) Contar con una identificación clara y visible de las áreas en donde se realicen las actividades durante toda la fase de investigación o experimental\nc) Contar con señalización que incluya medidas básicas y precauciones para las personas que ingresan, durante su permanencia en el área y a la salida del sitio.\nd) Realizar mantenimiento periódico de dicha infraestructura.\n\nIncluir en los Informes de Cumplimiento Ambiental - ICA los soportes de la implementación de las condiciones y actividades ejecutadas.","N/A","Aplica","Permanente"]
[18,"INFRAESTRUCTURA","Características de sitios de almacenamiento temporal de la especie importada",null,"Los sitios de almacenamiento temporal de [nombre de la especie introducida] deberán cumplir con las siguientes condiciones, para lo cual se presentarán los respectivos soportes (registro fotográfico, fichas de medidas preventivas y reactivas, etc) en los Informes de Cumplimiento Ambiental - ICA:\n\na) Estar identificados de forma clara y visible.\nb) Estar acompañados de una hoja o ficha con medidas de manejo preventivas y reactivas frente a contingencias asociadas con la liberación accidental de [nombre de la especie introducida] a zonas más allá del área autorizada para la fase de investigación o experimental.\nc) Contar con barreras físicas y químicas que impidan la salida de [nombre de la especie introducida] en caso de un evento contingente y con elementos adecuados para recoger de forma segura dichos especímenes en caso de un derrame/escape.","N/A","Aplica","Permanente"]
[19,"RESIDUOS","Registro de residuos generados, aprovechados, tratados y/o dispuestos. (Base de datos)",null,"El titular de la presente licencia ambiental, llevará un registro (base de datos) mensual acumulada de la cantidad de residuos sólidos convencionales (aprovechables y no aprovechables), residuos peligrosos (sólidos y líquidos), residuos de construcción y demolición y residuos posconsumo generados, aprovechados, tratados y/o dispuestos, que indique como mínimo: tipo de residuo, cantidad de residuos generados, cantidad de residuos aprovechados, tratados y/o dispuestos por parte de terceros o del titular de la licencia, tipo de aprovechamiento, tratamiento y disposición. Presentar dicho registro, en los respectivos Informes de Cumplimiento Ambiental - ICA a través del formato \"Plantilla de Seguimiento a la Gestión de Residuos\". ","N/A","Aplica","Permanente"]
[20,"RESIDUOS","Características de los sitios de almacenamiento temporal de residuos",null,"Contar con sitios de almacenamiento temporal de residuos sólidos convencionales (aprovechables y no aprovechables) y de residuos peligrosos (líquidos y sólidos) generados durante la ejecución del proyecto, en cumplimiento del Decreto 2981 de 2013 del Ministerio de Vivienda, Ciudad y Territorio y del Reglamento Técnico del Sector de Agua Potable y Saneamiento Básico - RAS, los cuales deberán ser independientes y contar con:\n\na) Base impermeabilizada para evitar una posible contaminación del suelo.\nb) Cubierta para evitar el contacto con el agua.\nc) Sistema de diques y cunetas perimetrales para los residuos líquidos.\nd) Condiciones óptimas o sistemas que permitan la ventilación e iluminación.\ne) Sistemas de prevención y control de incendios.\nf) Kit antiderrames (para el almacenamiento de residuos líquidos peligrosos).\ng) Señalización.\nh) Los recipientes empleados para el almacenamiento de los residuos deberán ser identificados por tipo de residuo y permitir su fácil limpieza.","N/A","Aplica","Permanente"]
[21,"RESIDUOS","Manejo de residuos sólidos convencionales (aprovechables y no aprovechables) a través de terceros",null,"El titular de la presente licencia ambiental, realizará el manejo de residuos sólidos convencionales (aprovechables y no aprovechables) a través de terceros debidamente autorizados para su transporte, almacenamiento, aprovechamiento, tratamiento y/o disposición final, y presentar en los respectivos Informes de Cumplimiento Ambiental – ICA:\n\na) Copia de las autorizaciones, permisos y/o licencias de las respectivas empresas encargadas de la gestión de los residuos.\nb) Actas de entrega para el transporte, almacenamiento, aprovechamiento, tratamiento y/o disposición final, que indiquen: nombre de empresa, fecha de entrega, sitio de entrega, tipo de residuos, cantidad, tratamiento y/o aprovechamiento a implementar (para el caso de residuos aprovechables).\nc) Relacionar los volúmenes generados, aprovechados, tratados y/o dispuestos en el registro (base de datos) solicitada por esta Autoridad.","N/A","Aplica","Permanente"]
[22,"RESIDUOS","Manejo de residuos posconsumo",null,"El titular de la presente licencia ambiental, integrará la gestión de los residuos posconsumo, como: pilas y/o acumuladores, bombillas, llantas usadas, computadores y/o periféricos, baterías plomo ácido, fármacos o medicamentos vencidos, envases y empaques y demás residuos posconsumo considerados por la normativa actual vigente, a las corrientes posconsumo reglamentadas, y presentar en los respectivos Informes de Cumplimiento Ambiental – ICA los certificados de entrega de estos residuos al Plan de Gestión de Devolución de Productos Posconsumo y/o al Sistema de Recolección Selectiva y Gestión Ambiental de Residuos aprobados por esta Autoridad, indicando por cada periodo reportado:\n\na) El volumen y/o peso de residuos posconsumo entregados, discriminando tipo de residuo y el manejo que se le otorgará por parte del Plan de Gestión de Devolución de Productos Posconsumo y/o Sistema de Recolección Selectiva y Gestión Ambiental de Residuos a los residuos posconsumo entregados.\nb) Relacionar los volúmenes generados, aprovechados, tratados y/o dispuestos en el registro (base de datos) solicitada por esta Autoridad.","N/A","Aplica","Permanente"]
[23,"RESIDUOS","Manejo de residuos peligrosos (líquidos y sólidos) a través de terceros autorizados",null,"El titular de la presente licencia ambiental, realizará el manejo de residuos peligrosos (líquidos y sólidos) a través de terceros debidamente autorizados para su transporte, almacenamiento, aprovechamiento, tratamiento y/o disposición final, y presentar en los respectivos Informes de Cumplimiento Ambiental – ICA:\n\na) Copia de las autorizaciones, permisos y/o licencias de las respectivas empresas encargadas de la gestión de los residuos.\nb) Actas de entrega para el transporte, almacenamiento, aprovechamiento, tratamiento y/o disposición final, que indiquen: nombre de empresa, fecha de entrega, sitio de entrega, tipo de residuos y cantidad.\nc) Certificados de tratamiento, aprovechamiento y/o disposición final, que indiquen: nombre de empresa que gestionó los residuos, nombre de empresa que entregó los residuos, fechas de recepción y gestión de residuos, tipo de residuo, cantidad, tipo de tratamiento realizado y/o alternativa de disposición final y sitio donde se gestionó el residuo.\nd) Relacionar los volúmenes generados, aprovechados, tratados y/o dispuestos en el registro (base de datos) solicitada por esta Autoridad.","N/A","Aplica","Permanente"]
[24,"RESIDUOS","Registro RESPEL para  cantidad igual o mayor a 10 kg/mes de residuos sólidos peligrosos",null,"Para cantidades iguales o superiores a 10 kg/mes de residuos sólidos peligrosos, el titular de la presente licencia ambiental, dará cumplimiento a lo establecido en la Resolución 1362 del 2007 del entonces Ministerio de Ambiente, Vivienda y Desarrollo Territorial, o aquella que la modifique, derogue o sustituya, por la cual se establecen los requisitos y el procedimiento para el Registro de Generadores de Residuos o Desechos Peligrosos, a que hacen referencia los artículos 2.2.6.1.6.1 y 2.2.6.1.6.2 del Decreto 1076 de 2015. ","N/A","Aplica","Permanente"]
[25,"RESIDUOS","Almacenamiento temporal de los residuos peligrosos y especiales",null,"De conformidad con el establecido en el artículo 2.2.6.1.3.1. del Título 6, Parte 2, Libro 2 del Decreto 1076 de 2015 o aquella que la modifique, derogue o sustituya, no se podrá realizar el almacenamiento temporal de residuos peligrosos por más de doce (12) meses; en los casos debidamente sustentados y justificados, se podrá solicitar ante esta autoridad, una extensión de dicho periodo. ","N/A","Aplica","Permanente"]
[26,"RESIDUOS","Movimiento transfronterizo para la disposición de residuos peligrosos",null,"En caso de realizar movimientos transfronterizos para disposición de desechos peligrosos, el titular de la presente licencia ambiental deberá dar cumplimiento a lo dispuesto en el Convenio de Basilea, ratificado por la Ley 253 del 9 de enero de 1996, sobre el control de los movimientos transfronterizos de los desechos peligrosos y su eliminación, y en especial, a las obligaciones que como responsable en su carácter de fabricante o importador de un producto o sustancia química de propiedad peligrosa, le establece el de acuerdo con lo establecido en los Decretos 1443 de 2004 y 4741 de 2005, compilados en el Decreto 1076 de 2015 y demás normas reglamentarias.","N/A","Aplica","Permanente"]
[27,"RESIDUOS","Informar sobre desechos en recipientes y evases a gestores de residuos",null,"El titular de la presente licencia ambiental, informará sobre el tipo de desechos de los productos contenidos en los recipientes o envases que deban ser eliminados, así como de los cuidados en la manipulación de los mismos, a las personas naturales o jurídicas que se encarguen del almacenamiento, recolección, transporte, tratamiento y/o disposición final de los mismos. Presentar en los Informes de Cumplimiento Ambiental - ICA los soportes que evidencien el cumplimiento de la presente obligación.","N/A","Aplica","Permanente"]
[28,"RESIDUOS","Manejo de residuos hospitalarios y similares",null,"El titular de la presente licencia ambiental, presentará la gestión de los residuos hospitalarios y similares generados en el proyecto en los Informes de Cumplimiento Ambiental - ICA, dando cumplimiento a las siguientes condiciones:\n\na) Copia de las autorizaciones, permisos y/o licencias de las respectivas empresas encargadas de la gestión de los residuos.\nb) Actas de entrega para el transporte, almacenamiento, aprovechamiento, tratamiento y/o disposición final, que indiquen: nombre de empresa, fecha de entrega, sitio de entrega, tipo de residuos y cantidad.\nc) Certificados de tratamiento, aprovechamiento y/o disposición final, que indiquen: nombre de empresa que gestionó los residuos, nombre de empresa que entregó los residuos, fechas de recepción y gestión de residuos, tipo de residuo, cantidad, tipo de tratamiento realizado  y/o alternativa de disposición final y sitio donde se gestionó el residuo.\nd) Almacenarse de acuerdo al código de colores y las características y condiciones específicas establecidas en el Manual de Procedimientos para la Gestión Integral de Residuos Hospitalarios y Similares, adoptado por la Resolución 1164 de 2002 del Ministerio de Ambiente y Ministerio de Salud, o aquella que la modifique, derogue o sustituya.\ne) Relacionar los volúmenes generados, tratados y/o dispuestos en el registro (base de datos) solicitada por esta Autoridad.","N/A","Aplica","Permanente"]
[29,"RESIDUOS","Metas de aprovechamiento (reutilización, tratamiento y reciclaje) de residuos de construcción y demolición - RCD\n\nNota: Aplica cuando se autorice la construcción de invernaderos, estanques, etc.",null,"El titular de la presente licencia ambiental, deberá dar cumplimiento al parágrafo del artículo 19 de la  Resolución 472 de 2017 del Ministerio de Ambiente y Desarrollo Sostenible (modificada por la Resolución 1257 del 2021), o aquella otra que la modifique, derogue o sustituya, en lo relacionado con las metas de aprovechamiento (reutilización, tratamiento y reciclaje) de residuos de construcción y demolición – RCD  para proyectos, obras o actividades sujetos a licenciamiento ambiental, y presentar en los respectivos Informes de Cumplimiento Ambiental - ICA:\n\na) Reporte en el que se indique: porcentaje de material aprovechado, respecto del total utilizado en la obra, tipo de material aprovechado, volumen de material aprovechado, sectores de donde proviene el material, actividades/sectores en los que fue aprovechado, periodo en los que fue realizado.","N/A","Aplica","Permanente"]
[30,"RESIDUOS","Disposición final de residuos de construcción y demolición - RCD\n\nNota: Aplica cuando se autorice la construcción de invernaderos, estanques, etc.",null,"El titular de la presente licencia ambiental, dispondrá los residuos de construcción y demolición – RCD no susceptibles de aprovechamiento de acuerdo con lo establecido en la Resolución 472 de 2017 del Ministerio de Ambiente y Desarrollo Sostenible (modificada por la Resolución 1257 del 2021), o aquella otra que la modifique, derogue o sustituya, en los sitios de disposición final de RCD legalmente autorizados, para lo cual el titular del proyecto entregará en los respectivos Informes de Cumplimiento Ambiental – ICA:\n\na) Copia de las autorizaciones, permisos y/o licencias del sitio de disposición final de RCD.\nb) Actas de entrega, que indiquen: nombre de empresa, fecha de entrega, sitio de entrega, tipo de residuo y cantidad.\nc) Certificados de disposición final, que indiquen: nombre de empresa que gestionó los residuos, nombre de empresa que entregó los residuos, fechas de recepción y gestión de residuos, tipo de residuo, cantidad y sitio donde se gestionó el residuo.\nd) Relacionar los volúmenes de RCD generados, aprovechados, tratados y/o dispuestos por tipo de residuo en el registro (base de datos) solicitada por esta Autoridad.","N/A","Aplica","Permanente"]
[31,"RESIDUOS","Gestión de especie introducida sobrante de la fase de investigación o experimental",null,"Los individuos de la especie [nombre de la especie introducida] solamente podrán utilizarse en el marco de las actividades de la fase de investigación o experimental, por tanto, los individuos o material biológico sobrante del proyecto, tendrán que incluirse dentro de las actividades de manejo de residuos de la fase de investigación o experimental, para lo cual se remitirán lo soportes del destino final de estos individuos en el respectivo Informe de Cumplimiento Ambiental - ICA.","N/A","Aplica","Permanente"]
[32,"PLAN DE GESTIÓN DEL RIESGO","Actualización del Plan de Contingencia",null,"Presentar en los Informes de Cumplimiento Ambiental – ICA, la revisión y/o complemento del Plan de Contingencia siguiendo los lineamientos descritos en el Decreto 1081 del 2015 adicionado por el Decreto 2157 de 2017 en el Artículo 2.3.1.5.2.1.1, Numeral 3.1.2, Literal f y el Decreto 1076 de 2015 en el Artículo 2.2.2.3.5.1, Numeral 9 y el Artículo 2.2.2.3.9.3 o aquellos que los modifiquen, deroguen o sustituyan y en caso de no presentarse un ajuste en el documento, indicar las razones por las cuales no se realiza.\n\na) Ante nuevas exigencias o cambios en la legislación nacional referente al plan de contingencia, en los plazos establecidos en las mismas.\nb) Cuando se introduzcan cambios en los procesos que aumenten la probabilidad de ocurrencia de una contingencia ambiental y/o consecuencia de la materialización del riesgo.  \nc) Ante cambios en las valoraciones de los escenarios de riesgo presentes en el proyecto.\nd) Ante la ocurrencia de una contingencia que evidencie la necesidad de ajuste del plan.\ne) Ante evidencias producto del proceso de seguimiento y control efectuado por la Autoridad Ambiental Competente.","N/A","Aplica","Permanente"]
[33,"PLAN DE GESTIÓN DEL RIESGO","Reporte de eventos",null,"Reportar los eventos de contingencia a través de la plataforma VITAL de conformidad con lo establecido en el artículo 2do de la Resolución 1767 de 2016 o aquellos que los modifiquen, deroguen o sustituyan, ya sea que los eventos sean generados del proyecto hacia el medio o del medio hacia el proyecto, presentando en cada uno de los avances (reportes parciales, de recuperación ambiental y final, según corresponda) las medidas, monitoreos, protocolos y/o acciones ejecutadas en el marco de la atención.","N/A","Aplica","Permanente"]
[34,"PLAN DE GESTIÓN DEL RIESGO","Soportes de las medidas de reducción del riesgo",null,"Presentar en los Informes de Cumplimiento Ambiental – ICA, los soportes de la ejecución y  estado de las barreras definidas para control de la sobrepoblación o invasión de las especies introducidas. En caso de no presentar resultados de los monitoreos del riesgo, remitir las razones de la no ejecución y soportarlo con las evidencias correspondientes a través de oficios, informes, actas, registros fotográficos, entre otros.","N/A","Aplica","Permanente"]
[35,"VALORACIÓN ECONÓMICA","Análisis de internalización de los impactos ambientales\n\nNota: Aplica para proyectos en los que se propone el análisis de internalización de impactos.",null,"Presentar en cada ICA el seguimiento al análisis de internalización de los impactos ambientales reportando el estado de avance en los indicadores (eficiencia y eficacia) y la medida de manejo propuesta para dicho análisis.","N/A","Aplica","Permanente"]
[36,"VALORACIÓN ECONÓMICA","Ajuste del análisis costo / beneficio\n\nNota: Aplica para aquellos proyectos que cuenten con obligaciones en el análisis costo beneficio, desde el acto administrativo.",null,"Presentar en los Informes de Cumplimiento Ambiental - ICA respectivos los ajustes del análisis costo / beneficio a partir de los requerimientos pendientes en el acto administrativo o en el caso de que se presenten modificaciones asociadas al proyecto, teniendo en cuenta los lineamientos del documento Criterios técnicos para el uso de herramientas económicas en los proyectos, obras o actividades objeto de licenciamiento ambiental.","N/A","Aplica","Permanente"]
[37,"GESTIÓN SOCIAL","Información sobre la competencia de las entidades supervisoras del proyecto\n\nNota: Aplica para la fase experiemntal desarrollada en áreas rurales",null,"El titular de la Licencia Ambiental comunicará a través de canales idóneos a las autoridades municipales, comunidades y demás grupos de interés presentes en el área de Influencia, una vez sea notificada la presente resolución; ii) las entidades ​que ejercen funciones de supervisión sobre el proyecto, obra o actividad y sus competencias, tanto en temas ambientales como administrativos. Las evidencias del cumplimiento de esta obligación se presentarán en el respectivo Informe de Cumplimiento Ambiental - ICA.","N/A","Aplica","Temporal"]
[38,"GESTIÓN SOCIAL","Informar a contratistas y personal del proyecto sobre las obligaciones, prohibiciones y medidas de control del presente acto administrativo",null,"Informar por escrito, antes del inicio de actividades y de manera permanente a todos sus contratistas y a todo el personal del proyecto sobre las obligaciones, prohibiciones y medidas de control del presente acto administrativo, el Estudio de Impacto Ambiental y la normativa vigente, y exigir el estricto cumplimiento de las mismas. En cumplimiento del presente requerimiento, se deberán presentar en los Informes de Cumplimiento Ambiental - ICA, copias de las actas de entrega de la información al personal, en las que deberá quedar explícito el contenido de las actividades de información al personal del proyecto, perfil del personal receptor, tipo de vinculación al proyecto (contratista / de planta) y demás soportes correspondientes.","N/A","Aplica","Temporal"]
[39,"GESTIÓN SOCIAL","Dar a conocer el presente acto administrativo y las obras que en ella se autorizan a las comunidades y autoridades del área de influencia del proyecto",null,"Previo al inicio de las actividades de introducción, el titular de la licencia ambiental deberá realizar reuniones con cada una de las comunidades, autoridades locales y demás actores involucrados (agricultores, apicultores, organizaciones ambientales, ONGs, entre otros) del área de influencia del proyecto, con el fin de dar a conocer el presente acto administrativo, las obras y actividades que en ella se autorizan, los principales impactos y medidas de manejo, y resolver las dudas que se puedan presentar al respecto; de igual manera, se deberán realizar reuniones en los casos de autoridades locales y dignatarios de las JAC que asuman funciones en razón de períodos de cambio de administración. Las convocatorias a estas reuniones se deberán efectuar con suficiente antelación y realizarse de manera pública. Se deberá presentar a esta Autoridad mediante el primer Informe de Cumplimiento Ambiental - ICA, las constancias de recibido de las convocatorias y las copias de las actas de estas reuniones en las que se evidencie el proceso, incluyendo listados de asistencia, temáticas desarrolladas, registro fílmico y/o fotográfico, entre otros.","N/A","Aplica","Temporal"]
[40,"GESTIÓN SOCIAL","Informar a comunidades y autoridades sobre canales de recepción de PQRS",null,"Previo al inicio de las actividades del proyecto, el titular de la presente licencia ambiental deberá informar a las comunidades y autoridades del área de influencia del proyecto, los canales de recepción de PQRS. De lo anterior, se deberán entregar los respectivos soportes en el primer Informe de Cumplimiento Ambiental - ICA.","N/A","Aplica","Temporal"]
[41,"GESTIÓN SOCIAL","Informe de reporte de quejas e inquietudes presentadas",null,"El titular de la presente licencia ambiental contará con un formato de recepción de PQRS y elaborará un informe donde se reporten las quejas e inquietudes presentadas, especificando: municipio, vereda, nombre o comunidad que la interpone, datos de contacto del peticionario, descripción del caso, a qué tipo de actividad está asociada respecto a la licencia ambiental, tipo de queja y zona(s) donde se concentra el mayor número de casos. Además, se georreferenciará el sitio o lugar en donde se reporta la PQRS. Presentar en los Informes de Cumplimiento Ambiental - ICA, este informe en formato de Excel, o que sea compatible con Sistemas de Información Geográfica, así como los soportes que evidencien el registro, atención y seguimiento del caso.","N/A","Aplica","Permanente"]
[42,"GESTIÓN SOCIAL","Información y comunicación a comunidades externas e internas",null,"El titular de la licencia ambiental presentará en los Informes de Cumplimiento Ambiental - ICA los soportes de las comunicaciones que se den a nivel interno del proyecto, como citaciones a talleres, brigadas, capacitaciones, actualizacion de programas de manejo, entre otras, al igual que los soportes de las comunicaciones externas donde se indague con la alcaldía municipal y la autoridad ambiental regional la recepcion de PQRS presentadas por las comunidades del área de influencia del proyecto.","N/A","Aplica","Permanente"]
[43,"GESTIÓN SOCIAL","Presentación de cronograma de capacitaciones",null,"El titular de la presente licencia ambiental, presentará en el primer Informe de Cumplimiento Ambiental - ICA el cronograma de capacitaciones al personal asociado al proyecto, en el que se indique claramente la temática a tratar, fecha y facilitador.","N/A","Aplica","Temporal"]
[44,"GESTIÓN SOCIAL","Capacitaciones y educación al personal",null,"El titular de la presente licencia ambiental, realizará capacitaciones al personal que realiza la manipulación del [nombre de la especie introducida] en cuanto al manejo de la especie, seguridad industrial, bioseguridad y prevención y mitigación de impactos ambientales, para lo cual deberá diligenciarse un formato en el que conste la fecha de la capacitación, nombre, firma, identificación y perfil (cargo o actividades que desarrollan) del personal que dicta la capacitación y del personal que la recibe, así como un formato en el que se identifique la fecha de entrega/recepción por parte del personal que asiste a las capacitaciones de los folletos informativos, hojas de seguridad y/o cualquier otra información que se entregue al personal que de forma directa o indirecta tendrá contacto con el [nombre de la especie introducida]. Presentar los soportes de estas actividades en los respectivos Informes de Cumplimiento Ambiental - ICA.","N/A","Aplica","Permanente"]
[45,"DESMANTELAMIENTO Y ABANDONO","Entrega del estudio del que trata el artículo 2.2.2.3.9.2 del Decreto 1076 del 26 de 2015.",null,"El titular de la presente licencia ambiental presentará por lo menos con tres (3) meses de anticipación al inicio del desmantelamiento y abandono del proyecto el estudio del que trata el artículo 2.2.2.3.9.2 del Decreto 1076 del 2015 o la norma que lo modifique, derogue o sustituya.","N/A","Aplica","Temporal"]
[46,"DESMANTELAMIENTO Y ABANDONO","Retirar y/o disponer todas las evidencias de los elementos y materiales sobrantes al finalizar la fase de investigación o experimental",null,"Una vez terminada la fase de investigación o experimental e independientemente del resultado obtenido en la misma, el titular de la presente licencia ambiental retirará y/o dispondrá los elementos y materiales sobrantes en todas las áreas intervenidas por el proyecto. Los elementos físicos que no sean objeto de demolición, deberán ser desinfectados para permitir la eliminación de cualquier rastro de material biológico asociado a la introducción de organismos, de manera que no se generen impactos ambientales adicionales, se altere el paisaje ni se contribuya al deterioro ambiental. Presentar los soportes (fotográficos y documentales) de las actividades desarrolladas en los Informes de Cumplimiento Ambiental - ICA.","N/A","Aplica","Temporal"]
[47,"REQUISITOS DEL ACTO ADMINISTRATIVO","ANLA supervisará la ejecución de las obras y podrá verificar en cualquier momento el cumplimiento de lo dispuesto en la presente acto administrativo",null,"La ANLA hará control y seguimiento ambiental a la ejecución de proyectos, obras y actividades en los términos del artículo 2.2.2.3.9.1 del Decreto 1076 del 2015, y verificará el cumplimiento de la presente Resolución. "," -"," -"," -"]
[48,"REQUISITOS DEL ACTO ADMINISTRATIVO","La Licencia Ambiental no confiere derechos reales sobre los predios a ser afectados.\n\nNota: El presente texto debe ser usado a manera de parágrafo del articulo en el que se otorga la licencia.",null,"Parágrafo: La Licencia Ambiental que se otorga, no confiere derechos reales sobre los bienes inmuebles que puedan intervenirse o afectarse en la ejecución del proyecto, obra o actividad. Lo anterior, sin perjuicio a lo dispuesto por la Ley 1448 de 2011 o aquella norma que la modifique, deroguen o sustituya, en lo relacionado con restitución de tierras."," -"," -"," -"]
[49,"REQUISITOS DEL ACTO ADMINISTRATIVO","Notificar el contenido de la presente Resolución al Representante Legal",null,"Por la Autoridad Nacional de Licencias Ambientales - ANLA, notificar el presente acto administrativo al representante legal o apoderado, o a la persona autorizada por la sociedad XXXXX, de conformidad con los artículos 67 y siguientes del Código de Procedimiento Administrativo y de lo Contencioso Administrativo. \n\nParágrafo: El expediente queda a disposición para su consulta en medio físico o digital. "," -"," -"," -"]
[50,"REQUISITOS DEL ACTO ADMINISTRATIVO","Notificar el contenido de la presente Resolución a terceros intervinientes que lo hayan solicitado expresamente",null,"Por la Autoridad Nacional de Licencias Ambientales - ANLA, notificar el presente acto administrativo a el/la señor(a) XXXXX en su condición de tercer(os) interviniente(s) reconocido(s) dentro de la presente actuación de ser el caso a través del representante legal o apoderado, o a la persona debidamente autorizada, de conformidad con el artículo 71 de la Ley 99 de 1993 y los artículos 67 y siguientes del Código de Procedimiento Administrativo y de lo Contencioso Administrativo. \n\nParágrafo: El expediente queda a disposición para su consulta en medio físico o digital. "," -"," -"," -"]
[51,"REQUISITOS DEL ACTO ADMINISTRATIVO","Comunicar el contenido de la presente Resolución a terceros intervinientes que no hayan solicitado expresamente ser notificados",null,"Por la Autoridad Nacional de Licencias Ambientales - ANLA, comunicar el presente acto administrativo a el/la señor(a) XXXXX en su condición de tercer(os) interviniente(s) reconocido(s) dentro de la presente actuación de ser el caso a través del representante legal o apoderado, o a la persona debidamente autorizada, de conformidad con el artículo 71 de la Ley 99 de 1993."," -"," -"," -"]
[52,"REQUISITOS DEL ACTO ADMINISTRATIVO","Remitir copia de la presente resolución a autoridades y/o entidades que deban ser informadas.",null,"Por la Autoridad Nacional de Licencias Ambientales - ANLA, comunicar el contenido del presente acto administrativo a [Espacio para listar entidades que deban recibir copia de la presente resolución tales como: alcaldías municipales, autoridades ambientales de orden regional y/o local, gobernaciones, personerías municipales, Ministerio de Comercio, Industria y Turismo, Ministerio de Salud y Protección Social, Procuraduría Delegada para Asuntos Ambientales y Agrarios, Instituto Colombiano Agropecuario - ICA, entre otros]."," -"," -"," -"]
[53,"REQUISITOS DEL ACTO ADMINISTRATIVO","Publicar  la presente Resolución en la Gaceta Ambiental ",null,"Por la Autoridad Nacional de Licencias Ambientales - ANLA publicar  la presente Resolución en la Gaceta Ambiental de esta Entidad, de conformidad con el artículo 71 de la Ley 99 de 1993, en concordancia con lo establecido en la Ley 1437 del 18 de enero del 2011, o aquellas que las modifiquen, deroguen o sustituyan."," -"," -"," -"]
[54,"REQUISITOS DEL ACTO ADMINISTRATIVO","Contra la presente Resolución procede el recurso de reposición",null,"Contra el presente acto administrativo procede el recurso de reposición en los términos establecidos en los artículos 74 y siguientes del Código de Procedimiento Administrativo y de lo Contencioso Administrativo, o la norma que lo modifique, derogue o sustituya."," -"," -"," -"]
[55,"REQUISITOS DEL ACTO ADMINISTRATIVO","Vigencia de la licencia ambiental",null,"La licencia ambiental, se otorga por el tiempo de duración de la fase de investigación o experimental que se autoriza en la presente resolución."," -"," -"," -"]
[56,"REQUISITOS DEL ACTO ADMINISTRATIVO","Pérdida de vigencia de la licencia ambiental",null,"En el caso que, el titular de la licencia ambiental en el término de cinco (5) años contados a partir de la firmeza del presente acto administrativo, no haya dado inicio a la ejecución del proyecto, se procederá a dar aplicación a lo establecido en el artículo 2.2.2.3.8.7. Decreto 1076 de 2015, en relación con la declaratoria de pérdida de vigencia de la licencia ambiental. "," -"," -"," -"]
[57,"REQUISITOS DEL ACTO ADMINISTRATIVO","Aplicación de la Ley 1333 del 2009",null,"El incumplimiento de las obligaciones contenidas en el presente acto administrativo y en las normas ambientales vigentes dará lugar a la imposición y ejecución de las medidas preventivas y sanciones que sean aplicables según el caso, de conformidad con lo establecido en la Ley 1333 del 21 de julio de 2009, o la que modifique, derogue o sustituya."," -"," -"," -"]
[58,"REQUISITOS DEL ACTO ADMINISTRATIVO","Modificar los tiempos de cumplimiento de las obligaciones, sin que ello signifique una novación",null,"En el seguimiento, la Autoridad Nacional de Licencias Ambientales -ANLA- podrá  conceder, por solicitud justificada del titular, nuevos plazos para el cumplimiento de obligaciones, sin que esto implique modificación de la Licencia Ambiental. La modificación del plazo siempre deberá estar técnica y jurídicamente sustentada, previa coordinación ante el Grupo de Actuaciones Sancionatorias ambientales de la Oficina Asesora Jurídica o la dependencia que haga sus veces."," -"," -"," -"]
[59,"REQUISITOS DEL ACTO ADMINISTRATIVO","Informar a la ANLA cuando la empresa y/o sociedad entre en proceso de disolución o régimen de insolvencia o liquidación",null,"En el evento en que el titular de la licencia ambiental entre en proceso de disolución o régimen de insolvencia o liquidación regulados por las normas vigentes, informará inmediatamente de esta situación a esta Autoridad, con fundamento, entre otros, en los artículos 8, 58, 79, 80, 81, 95 numeral 8 de la Constitución Política de 1991, en las Leyes 43 de 1990, 222 de 1995, 1333 de 2009, demás normas vigentes, y en la jurisprudencia aplicable. La sociedad deberá aprovisionar contablemente las obligaciones contingentes que se deriven de la existencia de un procedimiento ambiental sancionatorio conforme con el artículo 40 de la Ley 1333 de 2009 o la norma que la modifique, derogue o sustituya. "," -"," -"," -"]

{"sheet":"OBLIGACIONES APLICABLES","index":2,"n_rows":61,"n_cols":6,"rows_kept":61,"cut":false,"hidden":false,"merged":[[0,1,0,5]]}
[null,"OBLIGACIONES MÍNIMAS APLICABLES AL PROYECTO EN EVALUACIÓN / SEGUIMIENTO\nNota: Usar el texto de esta hoja para construir el concepto técnico y acto administrativo (Copiar y pegar en cada documento a construir)"]
["Aplica (si / no)","COMPONENTE","Obligación","Etapa de importación","Etapa de experimentación","Temporalidad"]
[{"$f":"'INTRODUCCIÓN ESPECIES FASE INV'!D8","v":0},{"$f":"'INTRODUCCIÓN ESPECIES FASE INV'!B8","v":"OBLIGACIÓN GENERAL"},{"$f":"'INTRODUCCIÓN ESPECIES FASE INV'!E8","v":"El titular de la licencia ambiental no podrá adelantar actividades de comercialización de parentales, especies, subespecies, razas, híbridos o variedades foráneas, ni con su progenie, hasta tanto se supere la fase de investigación o experimental, se haya dado cumplimiento a las obligaciones establecidas por acto administrativo para esta fase y se haya surtido la modificación de la licencia ambiental."},{"$f":"'INTRODUCCIÓN ESPECIES FASE INV'!F8","v":"Aplica"},{"$f":"'INTRODUCCIÓN ESPECIES FASE INV'!G8","v":"Aplica"},{"$f":"'INTRODUCCIÓN ESPECIES FASE INV'!H8","v":"Permanente"}]
[{"$f":"'INTRODUCCIÓN ESPECIES FASE INV'!D9","v":0},{"$f":"'INTRODUCCIÓN ESPECIES FASE INV'!B9","v":"OBLIGACIÓN GENERAL"},{"$f":"'INTRODUCCIÓN ESPECIES FASE INV'!E9","v":"El titular de la licencia ambiental no podrá movilizar los parentales, especies, subespecies, razas, híbridos o variedades foráneas objeto de introducción o su progenie a ninguna instalación diferente a la autorizada en la Licencia Ambiental, desde su llegada hasta el sitio donde se desarrollará la fase de investigación o experimental, o desde donde se desarrollará la fase de investigación o experimental a cualquier otra locación. "},{"$f":"'INTRODUCCIÓN ESPECIES FASE INV'!F9","v":"Aplica"},{"$f":"'INTRODUCCIÓN ESPECIES FASE INV'!G9","v":"Aplica"},{"$f":"'INTRODUCCIÓN ESPECIES FASE INV'!H9","v":"Permanente"}]
[{"$f":"'INTRODUCCIÓN ESPECIES FASE INV'!D10","v":0},{"$f":"'INTRODUCCIÓN ESPECIES FASE INV'!B10","v":"OBLIGACIÓN GENERAL"},{"$f":"'INTRODUCCIÓN ESPECIES FASE INV'!E10","v":"Previo a la introducción, el titular de la licencia ambiental deberá tramitar el respectivo salvoconducto con la autoridad ambiental competente, para el traslado de los parentales, especies, subespecies, razas, hídridos o variedades foráneas desde el puerto de entrada hasta el área en donde se llevará a cabo la fase de investigación o experimental [Laboratorio / Finca / Área de ensayo] y remitir copia del mismo a ésta Autoridad en el primer Informe de Cumplimiento Ambiental - ICA."},{"$f":"'INTRODUCCIÓN ESPECIES FASE INV'!F10","v":"Aplica"},{"$f":"'INTRODUCCIÓN ESPECIES FASE INV'!G10","v":"N/A"},{"$f":"'INTRODUCCIÓN ESPECIES FASE INV'!H10","v":"Permanente"}]
[{"$f":"'INTRODUCCIÓN ESPECIES FASE INV'!D11","v":0},{"$f":"'INTRODUCCIÓN ESPECIES FASE INV'!B11","v":"OBLIGACIÓN GENERAL"},{"$f":"'INTRODUCCIÓN ESPECIES FASE INV'!E11","v":"El titular de la presente licencia ambiental llevará un libro o bitacora con los registros e inventarios respectivos en torno a las diferentes etapas aprobadas en la fase de investigación o experimental, que contengan como mínimo: etapa, lugar, fecha, nombre de los responsables de su manejo, unidades o cantidades de organismos [nombre de la especie introducida] manejada en cada actividad, bioensayos realizados con los organismos, fotografías de los bioensayos y lugares de mantenimiento de los organismos, cantidades de organismos vivos y muertos, fase del ciclo de vida en la que está cada organismo y en la que se produjo su muerte y las evidencias del manejo y disposición final de los mismos. En caso de reprodución, se deberá presentar un inventario de nuevos organismos producidos, entre otros. El libro deberá tener una copia en formato digital y disponible para su consulta en las instalaciones donde tendrá lugar el proyecto en su fase investigación o experimental. Presentar dichos soportes a través de los Informes de Cumplimiento Ambiental - ICA."},{"$f":"'INTRODUCCIÓN ESPECIES FASE INV'!F11","v":"Aplica"},{"$f":"'INTRODUCCIÓN ESPECIES FASE INV'!G11","v":"Aplica"},{"$f":"'INTRODUCCIÓN ESPECIES FASE INV'!H11","v":"Permanente"}]
[{"$f":"'INTRODUCCIÓN ESPECIES FASE INV'!D12","v":0},{"$f":"'INTRODUCCIÓN ESPECIES FASE INV'!B12","v":"OBLIGACIÓN GENERAL"},{"$f":"'INTRODUCCIÓN ESPECIES FASE INV'!E12","v":"El titular de la presente licencia ambiental presentará a través de los Informes de Cumplimiento Ambiental - ICA la  información obtenida a partir de los bioensayos que se realicen durante la fase de investigación o experimental, la cual debe ser analizada con la información proveniente de literatura científica indexada debidamente referenciada."},{"$f":"'INTRODUCCIÓN ESPECIES FASE INV'!F12","v":"N/A"},{"$f":"'INTRODUCCIÓN ESPECIES FASE INV'!G12","v":"Aplica"},{"$f":"'INTRODUCCIÓN ESPECIES FASE INV'!H12","v":"Permanente"}]
[{"$f":"'INTRODUCCIÓN ESPECIES FASE INV'!D13","v":0},{"$f":"'INTRODUCCIÓN ESPECIES FASE INV'!B13","v":"OBLIGACIÓN GENERAL"},{"$f":"'INTRODUCCIÓN ESPECIES FASE INV'!E13","v":"El titular de la presente licencia ambiental presentará a través de los informes de Cumplimiento Ambiental - ICA, el avance del cronograma de la etapa experimental, el cual debe establecer el porcentaje de cumplimiento de las actividades planteadas, así como las dificultades presentadas en caso de retrasos."},{"$f":"'INTRODUCCIÓN ESPECIES FASE INV'!F13","v":"N/A"},{"$f":"'INTRODUCCIÓN ESPECIES FASE INV'!G13","v":"Aplica"},{"$f":"'INTRODUCCIÓN ESPECIES FASE INV'!H13","v":"Permanente"}]
[{"$f":"'INTRODUCCIÓN ESPECIES FASE INV'!D14","v":0},{"$f":"'INTRODUCCIÓN ESPECIES FASE INV'!B14","v":"OBLIGACIÓN GENERAL"},{"$f":"'INTRODUCCIÓN ESPECIES FASE INV'!E14","v":"El titutal de la licencia ambiental tramitará una vez obtenida la licencia ambiental y previo a la introducción de los organismos [nombre de la especie introducida], el permiso por medio de la cual se autoriza la introducción de especímenes de diversidad biológica pertenecientes a especies no incluidas en los Apéndices de la Convención CITES (NO CITES) y los Vistos Buenos de la Ventanilla Única de Comercio Exterior (VUCE)."},{"$f":"'INTRODUCCIÓN ESPECIES FASE INV'!F14","v":"Aplica"},{"$f":"'INTRODUCCIÓN ESPECIES FASE INV'!G14","v":"N/A"},{"$f":"'INTRODUCCIÓN ESPECIES FASE INV'!H14","v":"Temporal"}]
[{"$f":"'INTRODUCCIÓN ESPECIES FASE INV'!D15","v":0},{"$f":"'INTRODUCCIÓN ESPECIES FASE INV'!B15","v":"OBLIGACIÓN GENERAL"},{"$f":"'INTRODUCCIÓN ESPECIES FASE INV'!E15","v":"El titular de la licencia ambiental debe remitir a esta Autoridad a través del primer Informe de Cumplimiento Ambiental - ICA los soportes de la implementación del protocolo de custodia para la movilización de [nombre de la especie introducida] desde el puerto de entrada hasta [la finca / el laboratorio / área de ensayo], de acuerdo a lo presentado en el EIA. "},{"$f":"'INTRODUCCIÓN ESPECIES FASE INV'!F15","v":"Aplica"},{"$f":"'INTRODUCCIÓN ESPECIES FASE INV'!G15","v":"N/A"},{"$f":"'INTRODUCCIÓN ESPECIES FASE INV'!H15","v":"Temporal"}]
[{"$f":"'INTRODUCCIÓN ESPECIES FASE INV'!D16","v":0},{"$f":"'INTRODUCCIÓN ESPECIES FASE INV'!B16","v":"OBLIGACIÓN GENERAL"},{"$f":"'INTRODUCCIÓN ESPECIES FASE INV'!E16","v":"El titular de la licencia ambiental deberá garantizar el correcto funcionamiento de los equipos y materiales, los cuales deberán estar señalizados de manera adecuada."},{"$f":"'INTRODUCCIÓN ESPECIES FASE INV'!F16","v":"N/A"},{"$f":"'INTRODUCCIÓN ESPECIES FASE INV'!G16","v":"Aplica"},{"$f":"'INTRODUCCIÓN ESPECIES FASE INV'!H16","v":"Permanente"}]
[{"$f":"'INTRODUCCIÓN ESPECIES FASE INV'!D17","v":0},{"$f":"'INTRODUCCIÓN ESPECIES FASE INV'!B17","v":"OBLIGACIÓN GENERAL"},{"$f":"'INTRODUCCIÓN ESPECIES FASE INV'!E17","v":"El titular de la licencia ambiental deberá presentar a través de los Informes de Cumplimiento Ambiental - ICA los soportes de la implementación de las prácticas de manejo y seguridad ambiental para los operarios frente al manejo de [nombre de la especie introducida], con el fin de evitar contaminación de escenarios distintos al lugar donde se manipule dicha especie. "},{"$f":"'INTRODUCCIÓN ESPECIES FASE INV'!F17","v":"N/A"},{"$f":"'INTRODUCCIÓN ESPECIES FASE INV'!G17","v":"Aplica"},{"$f":"'INTRODUCCIÓN ESPECIES FASE INV'!H17","v":"Permanente"}]
[{"$f":"'INTRODUCCIÓN ESPECIES FASE INV'!D18","v":0},{"$f":"'INTRODUCCIÓN ESPECIES FASE INV'!B18","v":"OBLIGACIÓN GENERAL"},{"$f":"'INTRODUCCIÓN ESPECIES FASE INV'!E18","v":"El titular de la presente licencia ambiental, será responsable por cualquier deterioro y/o daño ambiental causado por él o por los contratistas a su cargo, que se genere en desarrollo de las actividades autorizadas; frente a las cuales deberá realizar las acciones necesarias para corregir los efectos causados."},{"$f":"'INTRODUCCIÓN ESPECIES FASE INV'!F18","v":"N/A"},{"$f":"'INTRODUCCIÓN ESPECIES FASE INV'!G18","v":"Aplica"},{"$f":"'INTRODUCCIÓN ESPECIES FASE INV'!H18","v":"Permanente"}]
[{"$f":"'INTRODUCCIÓN ESPECIES FASE INV'!D19","v":0},{"$f":"'INTRODUCCIÓN ESPECIES FASE INV'!B19","v":"OBLIGACIÓN GENERAL"},{"$f":"'INTRODUCCIÓN ESPECIES FASE INV'!E19","v":"La licencia ambiental de la fase de investigación o experimental que se otorga mediante el presente acto administrativo, no ampara ningún tipo de actividad diferente a las descritas en el presente acto administrativo. "},{"$f":"'INTRODUCCIÓN ESPECIES FASE INV'!F19","v":"N/A"},{"$f":"'INTRODUCCIÓN ESPECIES FASE INV'!G19","v":"Aplica"},{"$f":"'INTRODUCCIÓN ESPECIES FASE INV'!H19","v":"Permanente"}]
[{"$f":"'INTRODUCCIÓN ESPECIES FASE INV'!D20","v":0},{"$f":"'INTRODUCCIÓN ESPECIES FASE INV'!B20","v":"OBLIGACIÓN GENERAL"},{"$f":"'INTRODUCCIÓN ESPECIES FASE INV'!E20","v":"El titular de la presente Licencia Ambiental solicitará a la ANLA la modificación de la licencia ambiental, previa a la ejecución de actividades que configuren alguna de las causales señaladas en el Artículo 2.2.2.3.7.1 del Decreto 1076 de 2015. "},{"$f":"'INTRODUCCIÓN ESPECIES FASE INV'!F20","v":"N/A"},{"$f":"'INTRODUCCIÓN ESPECIES FASE INV'!G20","v":"Aplica"},{"$f":"'INTRODUCCIÓN ESPECIES FASE INV'!H20","v":"Permanente"}]
[{"$f":"'INTRODUCCIÓN ESPECIES FASE INV'!D21","v":0},{"$f":"'INTRODUCCIÓN ESPECIES FASE INV'!B21","v":"OBLIGACIÓN GENERAL"},{"$f":"'INTRODUCCIÓN ESPECIES FASE INV'!E21","v":"El titular de la licencia ambiental solicitará por escrito pronunciamiento de esta autoridad, sobre la viabilidad de si una nueva actividad puede ser considerada como cambio menor o de ajuste normal dentro del giro ordinario, de acuerdo a lo establecido en el parágrafo 1 del artículo 2.2.2.3.7.1. del Decreto 1076 del 2015, concepto que se remitirá con destino al expediente."},{"$f":"'INTRODUCCIÓN ESPECIES FASE INV'!F21","v":"Aplica"},{"$f":"'INTRODUCCIÓN ESPECIES FASE INV'!G21","v":"Aplica"},{"$f":"'INTRODUCCIÓN ESPECIES FASE INV'!H21","v":"Permanente"}]
[{"$f":"'INTRODUCCIÓN ESPECIES FASE INV'!D22","v":0},{"$f":"'INTRODUCCIÓN ESPECIES FASE INV'!B22","v":"OBLIGACIÓN GENERAL"},{"$f":"'INTRODUCCIÓN ESPECIES FASE INV'!E22","v":"El titular de la presente licencia ambiental, dentro de los diez (10) días siguientes a la introducción, informará a la Autoridad Nacional de Licencias Ambientales - ANLA, mediante oficio dirigido a la Subdirección de Seguimiento de Licencias Ambientales, y a la Autoridad Ambiental Regional, la fecha de inicio de actividades.  En caso de que no se pueda dar inicio a las actividades en la fecha previamente informada, se notificará inmediatamente a esta Autoridad la justificación, así como la nueva fecha de inicio. Enviar a esta Autoridad copia del oficio radicado ante la autoridad ambiental regional."},{"$f":"'INTRODUCCIÓN ESPECIES FASE INV'!F22","v":"N/A"},{"$f":"'INTRODUCCIÓN ESPECIES FASE INV'!G22","v":"Aplica"},{"$f":"'INTRODUCCIÓN ESPECIES FASE INV'!H22","v":"Temporal"}]
[{"$f":"'INTRODUCCIÓN ESPECIES FASE INV'!D23","v":0},{"$f":"'INTRODUCCIÓN ESPECIES FASE INV'!B23","v":"OBLIGACIÓN GENERAL"},{"$f":"'INTRODUCCIÓN ESPECIES FASE INV'!E23","v":"El titular de la licencia ambiental presentará los Informes de Cumplimiento Ambiental -ICA de manera [Espacio para definir periodicidad de ICA de cada fase del proyecto (trimestral, semestral o anual, según cronograma de actividades de la fase de investigación] de acuerdo con lo establecido en el Manual de Seguimiento Ambiental de Proyectos y lo dispuesto en la Resolución 077 de 2019, modificada por la Resolución 0549 de 2020, o aquellas que las que las modifiquen, deroguen o sustituyan."},{"$f":"'INTRODUCCIÓN ESPECIES FASE INV'!F23","v":"N/A"},{"$f":"'INTRODUCCIÓN ESPECIES FASE INV'!G23","v":"Aplica"},{"$f":"'INTRODUCCIÓN ESPECIES FASE INV'!H23","v":"Permanente"}]
[{"$f":"'INTRODUCCIÓN ESPECIES FASE INV'!D24","v":0},{"$f":"'INTRODUCCIÓN ESPECIES FASE INV'!B24","v":"INFRAESTRUCTURA"},{"$f":"'INTRODUCCIÓN ESPECIES FASE INV'!E24","v":"La infraestructura de (invernaderos, laboratorios, estanques, acuarios, bodegas, etc) empleada para el desarrollo de la fase de investigación o experimental deberá cumplir con las siguientes condiciones:\n\na) Contar con barreras físicas y/o químicas de contención, que garanticen que los organismos no salgan de las áreas destinadas para la fase de investigación o experimental. \nb) Contar con una identificación clara y visible de las áreas en donde se realicen las actividades durante toda la fase de investigación o experimental\nc) Contar con señalización que incluya medidas básicas y precauciones para las personas que ingresan, durante su permanencia en el área y a la salida del sitio.\nd) Realizar mantenimiento periódico de dicha infraestructura.\n\nIncluir en los Informes de Cumplimiento Ambiental - ICA los soportes de la implementación de las condiciones y actividades ejecutadas."},{"$f":"'INTRODUCCIÓN ESPECIES FASE INV'!F24","v":"N/A"},{"$f":"'INTRODUCCIÓN ESPECIES FASE INV'!G24","v":"Aplica"},{"$f":"'INTRODUCCIÓN ESPECIES FASE INV'!H24","v":"Permanente"}]
[{"$f":"'INTRODUCCIÓN ESPECIES FASE INV'!D25","v":0},{"$f":"'INTRODUCCIÓN ESPECIES FASE INV'!B25","v":"INFRAESTRUCTURA"},{"$f":"'INTRODUCCIÓN ESPECIES FASE INV'!E25","v":"Los sitios de almacenamiento temporal de [nombre de la especie introducida] deberán cumplir con las siguientes condiciones, para lo cual se presentarán los respectivos soportes (registro fotográfico, fichas de medidas preventivas y reactivas, etc) en los Informes de Cumplimiento Ambiental - ICA:\n\na) Estar identificados de forma clara y visible.\nb) Estar acompañados de una hoja o ficha con medidas de manejo preventivas y reactivas frente a contingencias asociadas con la liberación accidental de [nombre de la especie introducida] a zonas más allá del área autorizada para la fase de investigación o experimental.\nc) Contar con barreras físicas y químicas que impidan la salida de [nombre de la especie introducida] en caso de un evento contingente y con elementos adecuados para recoger de forma segura dichos especímenes en caso de un derrame/escape."},{"$f":"'INTRODUCCIÓN ESPECIES FASE INV'!F25","v":"N/A"},{"$f":"'INTRODUCCIÓN ESPECIES FASE INV'!G25","v":"Aplica"},{"$f":"'INTRODUCCIÓN ESPECIES FASE INV'!H25","v":"Permanente"}]
[{"$f":"'INTRODUCCIÓN ESPECIES FASE INV'!D26","v":0},{"$f":"'INTRODUCCIÓN ESPECIES FASE INV'!B26","v":"RESIDUOS"},{"$f":"'INTRODUCCIÓN ESPECIES FASE INV'!E26","v":"El titular de la presente licencia ambiental, llevará un registro (base de datos) mensual acumulada de la cantidad de residuos sólidos convencionales (aprovechables y no aprovechables), residuos peligrosos (sólidos y líquidos), residuos de construcción y demolición y residuos posconsumo generados, aprovechados, tratados y/o dispuestos, que indique como mínimo: tipo de residuo, cantidad de residuos generados, cantidad de residuos aprovechados, tratados y/o dispuestos por parte de terceros o del titular de la licencia, tipo de aprovechamiento, tratamiento y disposición. Presentar dicho registro, en los respectivos Informes de Cumplimiento Ambiental - ICA a través del formato \"Plantilla de Seguimiento a la Gestión de Residuos\". "},{"$f":"'INTRODUCCIÓN ESPECIES FASE INV'!F26","v":"N/A"},{"$f":"'INTRODUCCIÓN ESPECIES FASE INV'!G26","v":"Aplica"},{"$f":"'INTRODUCCIÓN ESPECIES FASE INV'!H26","v":"Permanente"}]
[{"$f":"'INTRODUCCIÓN ESPECIES FASE INV'!D27","v":0},{"$f":"'INTRODUCCIÓN ESPECIES FASE INV'!B27","v":"RESIDUOS"},{"$f":"'INTRODUCCIÓN ESPECIES FASE INV'!E27","v":"Contar con sitios de almacenamiento temporal de residuos sólidos convencionales (aprovechables y no aprovechables) y de residuos peligrosos (líquidos y sólidos) generados durante la ejecución del proyecto, en cumplimiento del Decreto 2981 de 2013 del Ministerio de Vivienda, Ciudad y Territorio y del Reglamento Técnico del Sector de Agua Potable y Saneamiento Básico - RAS, los cuales deberán ser independientes y contar con:\n\na) Base impermeabilizada para evitar una posible contaminación del suelo.\nb) Cubierta para evitar el contacto con el agua.\nc) Sistema de diques y cunetas perimetrales para los residuos líquidos.\nd) Condiciones óptimas o sistemas que permitan la ventilación e iluminación.\ne) Sistemas de prevención y control de incendios.\nf) Kit antiderrames (para el almacenamiento de residuos líquidos peligrosos).\ng) Señalización.\nh) Los recipientes empleados para el almacenamiento de los residuos deberán ser identificados por tipo de residuo y permitir su fácil limpieza."},{"$f":"'INTRODUCCIÓN ESPECIES FASE INV'!F27","v":"N/A"},{"$f":"'INTRODUCCIÓN ESPECIES FASE INV'!G27","v":"Aplica"},{"$f":"'INTRODUCCIÓN ESPECIES FASE INV'!H27","v":"Permanente"}]
[{"$f":"'INTRODUCCIÓN ESPECIES FASE INV'!D28","v":0},{"$f":"'INTRODUCCIÓN ESPECIES FASE INV'!B28","v":"RESIDUOS"},{"$f":"'INTRODUCCIÓN ESPECIES FASE INV'!E28","v":"El titular de la presente licencia ambiental, realizará el manejo de residuos sólidos convencionales (aprovechables y no aprovechables) a través de terceros debidamente autorizados para su transporte, almacenamiento, aprovechamiento, tratamiento y/o disposición final, y presentar en los respectivos Informes de Cumplimiento Ambiental – ICA:\n\na) Copia de las autorizaciones, permisos y/o licencias de las respectivas empresas encargadas de la gestión de los residuos.\nb) Actas de entrega para el transporte, almacenamiento, aprovechamiento, tratamiento y/o disposición final, que indiquen: nombre de empresa, fecha de entrega, sitio de entrega, tipo de residuos, cantidad, tratamiento y/o aprovechamiento a implementar (para el caso de residuos aprovechables).\nc) Relacionar los volúmenes generados, aprovechados, tratados y/o dispuestos en el registro (base de datos) solicitada por esta Autoridad."},{"$f":"'INTRODUCCIÓN ESPECIES FASE INV'!F28","v":"N/A"},{"$f":"'INTRODUCCIÓN ESPECIES FASE INV'!G28","v":"Aplica"},{"$f":"'INTRODUCCIÓN ESPECIES FASE INV'!H28","v":"Permanente"}]
[{"$f":"'INTRODUCCIÓN ESPECIES FASE INV'!D29","v":0},{"$f":"'INTRODUCCIÓN ESPECIES FASE INV'!B29","v":"RESIDUOS"},{"$f":"'INTRODUCCIÓN ESPECIES FASE INV'!E29","v":"El titular de la presente licencia ambiental, integrará la gestión de los residuos posconsumo, como: pilas y/o acumuladores, bombillas, llantas usadas, computadores y/o periféricos, baterías plomo ácido, fármacos o medicamentos vencidos, envases y empaques y demás residuos posconsumo considerados por la normativa actual vigente, a las corrientes posconsumo reglamentadas, y presentar en los respectivos Informes de Cumplimiento Ambiental – ICA los certificados de entrega de estos residuos al Plan de Gestión de Devolución de Productos Posconsumo y/o al Sistema de Recolección Selectiva y Gestión Ambiental de Residuos aprobados por esta Autoridad, indicando por cada periodo reportado:\n\na) El volumen y/o peso de residuos posconsumo entregados, discriminando tipo de residuo y el manejo que se le otorgará por parte del Plan de Gestión de Devolución de Productos Posconsumo y/o Sistema de Recolección Selectiva y Gestión Ambiental de Residuos a los residuos posconsumo entregados.\nb) Relacionar los volúmenes generados, aprovechados, tratados y/o dispuestos en el registro (base de datos) solicitada por esta Autoridad."},{"$f":"'INTRODUCCIÓN ESPECIES FASE INV'!F29","v":"N/A"},{"$f":"'INTRODUCCIÓN ESPECIES FASE INV'!G29","v":"Aplica"},{"$f":"'INTRODUCCIÓN ESPECIES FASE INV'!H29","v":"Permanente"}]
[{"$f":"'INTRODUCCIÓN ESPECIES FASE INV'!D30","v":0},{"$f":"'INTRODUCCIÓN ESPECIES FASE INV'!B30","v":"RESIDUOS"},{"$f":"'INTRODUCCIÓN ESPECIES FASE INV'!E30","v":"El titular de la presente licencia ambiental, realizará el manejo de residuos peligrosos (líquidos y sólidos) a través de terceros debidamente autorizados para su transporte, almacenamiento, aprovechamiento, tratamiento y/o disposición final, y presentar en los respectivos Informes de Cumplimiento Ambiental – ICA:\n\na) Copia de las autorizaciones, permisos y/o licencias de las respectivas empresas encargadas de la gestión de los residuos.\nb) Actas de entrega para el transporte, almacenamiento, aprovechamiento, tratamiento y/o disposición final, que indiquen: nombre de empresa, fecha de entrega, sitio de entrega, tipo de residuos y cantidad.\nc) Certificados de tratamiento, aprovechamiento y/o disposición final, que indiquen: nombre de empresa que gestionó los residuos, nombre de empresa que entregó los residuos, fechas de recepción y gestión de residuos, tipo de residuo, cantidad, tipo de tratamiento realizado y/o alternativa de disposición final y sitio donde se gestionó el residuo.\nd) Relacionar los volúmenes generados, aprovechados, tratados y/o dispuestos en el registro (base de datos) solicitada por esta Autoridad."},{"$f":"'INTRODUCCIÓN ESPECIES FASE INV'!F30","v":"N/A"},{"$f":"'INTRODUCCIÓN ESPECIES FASE INV'!G30","v":"Aplica"},{"$f":"'INTRODUCCIÓN ESPECIES FASE INV'!H30","v":"Permanente"}]
[{"$f":"'INTRODUCCIÓN ESPECIES FASE INV'!D31","v":0},{"$f":"'INTRODUCCIÓN ESPECIES FASE INV'!B31","v":"RESIDUOS"},{"$f":"'INTRODUCCIÓN ESPECIES FASE INV'!E31","v":"Para cantidades iguales o superiores a 10 kg/mes de residuos sólidos peligrosos, el titular de la presente licencia ambiental, dará cumplimiento a lo establecido en la Resolución 1362 del 2007 del entonces Ministerio de Ambiente, Vivienda y Desarrollo Territorial, o aquella que la modifique, derogue o sustituya, por la cual se establecen los requisitos y el procedimiento para el Registro de Generadores de Residuos o Desechos Peligrosos, a que hacen referencia los artículos 2.2.6.1.6.1 y 2.2.6.1.6.2 del Decreto 1076 de 2015. "},{"$f":"'INTRODUCCIÓN ESPECIES FASE INV'!F31","v":"N/A"},{"$f":"'INTRODUCCIÓN ESPECIES FASE INV'!G31","v":"Aplica"},{"$f":"'INTRODUCCIÓN ESPECIES FASE INV'!H31","v":"Permanente"}]
[{"$f":"'INTRODUCCIÓN ESPECIES FASE INV'!D32","v":0},{"$f":"'INTRODUCCIÓN ESPECIES FASE INV'!B32","v":"RESIDUOS"},{"$f":"'INTRODUCCIÓN ESPECIES FASE INV'!E32","v":"De conformidad con el establecido en el artículo 2.2.6.1.3.1. del Título 6, Parte 2, Libro 2 del Decreto 1076 de 2015 o aquella que la modifique, derogue o sustituya, no se podrá realizar el almacenamiento temporal de residuos peligrosos por más de doce (12) meses; en los casos debidamente sustentados y justificados, se podrá solicitar ante esta autoridad, una extensión de dicho periodo. "},{"$f":"'INTRODUCCIÓN ESPECIES FASE INV'!F32","v":"N/A"},{"$f":"'INTRODUCCIÓN ESPECIES FASE INV'!G32","v":"Aplica"},{"$f":"'INTRODUCCIÓN ESPECIES FASE INV'!H32","v":"Permanente"}]
[{"$f":"'INTRODUCCIÓN ESPECIES FASE INV'!D33","v":0},{"$f":"'INTRODUCCIÓN ESPECIES FASE INV'!B33","v":"RESIDUOS"},{"$f":"'INTRODUCCIÓN ESPECIES FASE INV'!E33","v":"En caso de realizar movimientos transfronterizos para disposición de desechos peligrosos, el titular de la presente licencia ambiental deberá dar cumplimiento a lo dispuesto en el Convenio de Basilea, ratificado por la Ley 253 del 9 de enero de 1996, sobre el control de los movimientos transfronterizos de los desechos peligrosos y su eliminación, y en especial, a las obligaciones que como responsable en su carácter de fabricante o importador de un producto o sustancia química de propiedad peligrosa, le establece el de acuerdo con lo establecido en los Decretos 1443 de 2004 y 4741 de 2005, compilados en el Decreto 1076 de 2015 y demás normas reglamentarias."},{"$f":"'INTRODUCCIÓN ESPECIES FASE INV'!F33","v":"N/A"},{"$f":"'INTRODUCCIÓN ESPECIES FASE INV'!G33","v":"Aplica"},{"$f":"'INTRODUCCIÓN ESPECIES FASE INV'!H33","v":"Permanente"}]
[{"$f":"'INTRODUCCIÓN ESPECIES FASE INV'!D34","v":0},{"$f":"'INTRODUCCIÓN ESPECIES FASE INV'!B34","v":"RESIDUOS"},{"$f":"'INTRODUCCIÓN ESPECIES FASE INV'!E34","v":"El titular de la presente licencia ambiental, informará sobre el tipo de desechos de los productos contenidos en los recipientes o envases que deban ser eliminados, así como de los cuidados en la manipulación de los mismos, a las personas naturales o jurídicas que se encarguen del almacenamiento, recolección, transporte, tratamiento y/o disposición final de los mismos. Presentar en los Informes de Cumplimiento Ambiental - ICA los soportes que evidencien el cumplimiento de la presente obligación."},{"$f":"'INTRODUCCIÓN ESPECIES FASE INV'!F34","v":"N/A"},{"$f":"'INTRODUCCIÓN ESPECIES FASE INV'!G34","v":"Aplica"},{"$f":"'INTRODUCCIÓN ESPECIES FASE INV'!H34","v":"Permanente"}]
[{"$f":"'INTRODUCCIÓN ESPECIES FASE INV'!D35","v":0},{"$f":"'INTRODUCCIÓN ESPECIES FASE INV'!B35","v":"RESIDUOS"},{"$f":"'INTRODUCCIÓN ESPECIES FASE INV'!E35","v":"El titular de la presente licencia ambiental, presentará la gestión de los residuos hospitalarios y similares generados en el proyecto en los Informes de Cumplimiento Ambiental - ICA, dando cumplimiento a las siguientes condiciones:\n\na) Copia de las autorizaciones, permisos y/o licencias de las respectivas empresas encargadas de la gestión de los residuos.\nb) Actas de entrega para el transporte, almacenamiento, aprovechamiento, tratamiento y/o disposición final, que indiquen: nombre de empresa, fecha de entrega, sitio de entrega, tipo de residuos y cantidad.\nc) Certificados de tratamiento, aprovechamiento y/o disposición final, que indiquen: nombre de empresa que gestionó los residuos, nombre de empresa que entregó los residuos, fechas de recepción y gestión de residuos, tipo de residuo, cantidad, tipo de tratamiento realizado  y/o alternativa de disposición final y sitio donde se gestionó el residuo.\nd) Almacenarse de acuerdo al código de colores y las características y condiciones específicas establecidas en el Manual de Procedimientos para la Gestión Integral de Residuos Hospitalarios y Similares, adoptado por la Resolución 1164 de 2002 del Ministerio de Ambiente y Ministerio de Salud, o aquella que la modifique, derogue o sustituya.\ne) Relacionar los volúmenes generados, tratados y/o dispuestos en el registro (base de datos) solicitada por esta Autoridad."},{"$f":"'INTRODUCCIÓN ESPECIES FASE INV'!F35","v":"N/A"},{"$f":"'INTRODUCCIÓN ESPECIES FASE INV'!G35","v":"Aplica"},{"$f":"'INTRODUCCIÓN ESPECIES FASE INV'!H35","v":"Permanente"}]
[{"$f":"'INTRODUCCIÓN ESPECIES FASE INV'!D36","v":0},{"$f":"'INTRODUCCIÓN ESPECIES FASE INV'!B36","v":"RESIDUOS"},{"$f":"'INTRODUCCIÓN ESPECIES FASE INV'!E36","v":"El titular de la presente licencia ambiental, deberá dar cumplimiento al parágrafo del artículo 19 de la  Resolución 472 de 2017 del Ministerio de Ambiente y Desarrollo Sostenible (modificada por la Resolución 1257 del 2021), o aquella otra que la modifique, derogue o sustituya, en lo relacionado con las metas de aprovechamiento (reutilización, tratamiento y reciclaje) de residuos de construcción y demolición – RCD  para proyectos, obras o actividades sujetos a licenciamiento ambiental, y presentar en los respectivos Informes de Cumplimiento Ambiental - ICA:\n\na) Reporte en el que se indique: porcentaje de material aprovechado, respecto del total utilizado en la obra, tipo de material aprovechado, volumen de material aprovechado, sectores de donde proviene el material, actividades/sectores en los que fue aprovechado, periodo en los que fue realizado."},{"$f":"'INTRODUCCIÓN ESPECIES FASE INV'!F36","v":"N/A"},{"$f":"'INTRODUCCIÓN ESPECIES FASE INV'!G36","v":"Aplica"},{"$f":"'INTRODUCCIÓN ESPECIES FASE INV'!H36","v":"Permanente"}]
[{"$f":"'INTRODUCCIÓN ESPECIES FASE INV'!D37","v":0},{"$f":"'INTRODUCCIÓN ESPECIES FASE INV'!B37","v":"RESIDUOS"},{"$f":"'INTRODUCCIÓN ESPECIES FASE INV'!E37","v":"El titular de la presente licencia ambiental, dispondrá los residuos de construcción y demolición – RCD no susceptibles de aprovechamiento de acuerdo con lo establecido en la Resolución 472 de 2017 del Ministerio de Ambiente y Desarrollo Sostenible (modificada por la Resolución 1257 del 2021), o aquella otra que la modifique, derogue o sustituya, en los sitios de disposición final de RCD legalmente autorizados, para lo cual el titular del proyecto entregará en los respectivos Informes de Cumplimiento Ambiental – ICA:\n\na) Copia de las autorizaciones, permisos y/o licencias del sitio de disposición final de RCD.\nb) Actas de entrega, que indiquen: nombre de empresa, fecha de entrega, sitio de entrega, tipo de residuo y cantidad.\nc) Certificados de disposición final, que indiquen: nombre de empresa que gestionó los residuos, nombre de empresa que entregó los residuos, fechas de recepción y gestión de residuos, tipo de residuo, cantidad y sitio donde se gestionó el residuo.\nd) Relacionar los volúmenes de RCD generados, aprovechados, tratados y/o dispuestos por tipo de residuo en el registro (base de datos) solicitada por esta Autoridad."},{"$f":"'INTRODUCCIÓN ESPECIES FASE INV'!F37","v":"N/A"},{"$f":"'INTRODUCCIÓN ESPECIES FASE INV'!G37","v":"Aplica"},{"$f":"'INTRODUCCIÓN ESPECIES FASE INV'!H37","v":"Permanente"}]
[{"$f":"'INTRODUCCIÓN ESPECIES FASE INV'!D38","v":0},{"$f":"'INTRODUCCIÓN ESPECIES FASE INV'!B38","v":"RESIDUOS"},{"$f":"'INTRODUCCIÓN ESPECIES FASE INV'!E38","v":"Los individuos de la especie [nombre de la especie introducida] solamente podrán utilizarse en el marco de las actividades de la fase de investigación o experimental, por tanto, los individuos o material biológico sobrante del proyecto, tendrán que incluirse dentro de las actividades de manejo de residuos de la fase de investigación o experimental, para lo cual se remitirán lo soportes del destino final de estos individuos en el respectivo Informe de Cumplimiento Ambiental - ICA."},{"$f":"'INTRODUCCIÓN ESPECIES FASE INV'!F38","v":"N/A"},{"$f":"'INTRODUCCIÓN ESPECIES FASE INV'!G38","v":"Aplica"},{"$f":"'INTRODUCCIÓN ESPECIES FASE INV'!H38","v":"Permanente"}]
[{"$f":"'INTRODUCCIÓN ESPECIES FASE INV'!D39","v":0},{"$f":"'INTRODUCCIÓN ESPECIES FASE INV'!B39","v":"PLAN DE GESTIÓN DEL RIESGO"},{"$f":"'INTRODUCCIÓN ESPECIES FASE INV'!E39","v":"Presentar en los Informes de Cumplimiento Ambiental – ICA, la revisión y/o complemento del Plan de Contingencia siguiendo los lineamientos descritos en el Decreto 1081 del 2015 adicionado por el Decreto 2157 de 2017 en el Artículo 2.3.1.5.2.1.1, Numeral 3.1.2, Literal f y el Decreto 1076 de 2015 en el Artículo 2.2.2.3.5.1, Numeral 9 y el Artículo 2.2.2.3.9.3 o aquellos que los modifiquen, deroguen o sustituyan y en caso de no presentarse un ajuste en el documento, indicar las razones por las cuales no se realiza.\n\na) Ante nuevas exigencias o cambios en la legislación nacional referente al plan de contingencia, en los plazos establecidos en las mismas.\nb) Cuando se introduzcan cambios en los procesos que aumenten la probabilidad de ocurrencia de una contingencia ambiental y/o consecuencia de la materialización del riesgo.  \nc) Ante cambios en las valoraciones de los escenarios de riesgo presentes en el proyecto.\nd) Ante la ocurrencia de una contingencia que evidencie la necesidad de ajuste del plan.\ne) Ante evidencias producto del proceso de seguimiento y control efectuado por la Autoridad Ambiental Competente."},{"$f":"'INTRODUCCIÓN ESPECIES FASE INV'!F39","v":"N/A"},{"$f":"'INTRODUCCIÓN ESPECIES FASE INV'!G39","v":"Aplica"},{"$f":"'INTRODUCCIÓN ESPECIES FASE INV'!H39","v":"Permanente"}]
[{"$f":"'INTRODUCCIÓN ESPECIES FASE INV'!D40","v":0},{"$f":"'INTRODUCCIÓN ESPECIES FASE INV'!B40","v":"PLAN DE GESTIÓN DEL RIESGO"},{"$f":"'INTRODUCCIÓN ESPECIES FASE INV'!E40","v":"Reportar los eventos de contingencia a través de la plataforma VITAL de conformidad con lo establecido en el artículo 2do de la Resolución 1767 de 2016 o aquellos que los modifiquen, deroguen o sustituyan, ya sea que los eventos sean generados del proyecto hacia el medio o del medio hacia el proyecto, presentando en cada uno de los avances (reportes parciales, de recuperación ambiental y final, según corresponda) las medidas, monitoreos, protocolos y/o acciones ejecutadas en el marco de la atención."},{"$f":"'INTRODUCCIÓN ESPECIES FASE INV'!F40","v":"N/A"},{"$f":"'INTRODUCCIÓN ESPECIES FASE INV'!G40","v":"Aplica"},{"$f":"'INTRODUCCIÓN ESPECIES FASE INV'!H40","v":"Permanente"}]
[{"$f":"'INTRODUCCIÓN ESPECIES FASE INV'!D41","v":0},{"$f":"'INTRODUCCIÓN ESPECIES FASE INV'!B41","v":"PLAN DE GESTIÓN DEL RIESGO"},{"$f":"'INTRODUCCIÓN ESPECIES FASE INV'!E41","v":"Presentar en los Informes de Cumplimiento Ambiental – ICA, los soportes de la ejecución y  estado de las barreras definidas para control de la sobrepoblación o invasión de las especies introducidas. En caso de no presentar resultados de los monitoreos del riesgo, remitir las razones de la no ejecución y soportarlo con las evidencias correspondientes a través de oficios, informes, actas, registros fotográficos, entre otros."},{"$f":"'INTRODUCCIÓN ESPECIES FASE INV'!F41","v":"N/A"},{"$f":"'INTRODUCCIÓN ESPECIES FASE INV'!G41","v":"Aplica"},{"$f":"'INTRODUCCIÓN ESPECIES FASE INV'!H41","v":"Permanente"}]
[{"$f":"'INTRODUCCIÓN ESPECIES FASE INV'!D42","v":0},{"$f":"'INTRODUCCIÓN ESPECIES FASE INV'!B42","v":"VALORACIÓN ECONÓMICA"},{"$f":"'INTRODUCCIÓN ESPECIES FASE INV'!E42","v":"Presentar en cada ICA el seguimiento al análisis de internalización de los impactos ambientales reportando el estado de avance en los indicadores (eficiencia y eficacia) y la medida de manejo propuesta para dicho análisis."},{"$f":"'INTRODUCCIÓN ESPECIES FASE INV'!F42","v":"N/A"},{"$f":"'INTRODUCCIÓN ESPECIES FASE INV'!G42","v":"Aplica"},{"$f":"'INTRODUCCIÓN ESPECIES FASE INV'!H42","v":"Permanente"}]
[{"$f":"'INTRODUCCIÓN ESPECIES FASE INV'!D43","v":0},{"$f":"'INTRODUCCIÓN ESPECIES FASE INV'!B43","v":"VALORACIÓN ECONÓMICA"},{"$f":"'INTRODUCCIÓN ESPECIES FASE INV'!E43","v":"Presentar en los Informes de Cumplimiento Ambiental - ICA respectivos los ajustes del análisis costo / beneficio a partir de los requerimientos pendientes en el acto administrativo o en el caso de que se presenten modificaciones asociadas al proyecto, teniendo en cuenta los lineamientos del documento Criterios técnicos para el uso de herramientas económicas en los proyectos, obras o actividades objeto de licenciamiento ambiental."},{"$f":"'INTRODUCCIÓN ESPECIES FASE INV'!F43","v":"N/A"},{"$f":"'INTRODUCCIÓN ESPECIES FASE INV'!G43","v":"Aplica"},{"$f":"'INTRODUCCIÓN ESPECIES FASE INV'!H43","v":"Permanente"}]
[{"$f":"'INTRODUCCIÓN ESPECIES FASE INV'!D44","v":0},{"$f":"'INTRODUCCIÓN ESPECIES FASE INV'!B44","v":"GESTIÓN SOCIAL"},{"$f":"'INTRODUCCIÓN ESPECIES FASE INV'!E44","v":"El titular de la Licencia Ambiental comunicará a través de canales idóneos a las autoridades municipales, comunidades y demás grupos de interés presentes en el área de Influencia, una vez sea notificada la presente resolución; ii) las entidades ​que ejercen funciones de supervisión sobre el proyecto, obra o actividad y sus competencias, tanto en temas ambientales como administrativos. Las evidencias del cumplimiento de esta obligación se presentarán en el respectivo Informe de Cumplimiento Ambiental - ICA."},{"$f":"'INTRODUCCIÓN ESPECIES FASE INV'!F44","v":"N/A"},{"$f":"'INTRODUCCIÓN ESPECIES FASE INV'!G44","v":"Aplica"},{"$f":"'INTRODUCCIÓN ESPECIES FASE INV'!H44","v":"Temporal"}]
[{"$f":"'INTRODUCCIÓN ESPECIES FASE INV'!D45","v":0},{"$f":"'INTRODUCCIÓN ESPECIES FASE INV'!B45","v":"GESTIÓN SOCIAL"},{"$f":"'INTRODUCCIÓN ESPECIES FASE INV'!E45","v":"Informar por escrito, antes del inicio de actividades y de manera permanente a todos sus contratistas y a todo el personal del proyecto sobre las obligaciones, prohibiciones y medidas de control del presente acto administrativo, el Estudio de Impacto Ambiental y la normativa vigente, y exigir el estricto cumplimiento de las mismas. En cumplimiento del presente requerimiento, se deberán presentar en los Informes de Cumplimiento Ambiental - ICA, copias de las actas de entrega de la información al personal, en las que deberá quedar explícito el contenido de las actividades de información al personal del proyecto, perfil del personal receptor, tipo de vinculación al proyecto (contratista / de planta) y demás soportes correspondientes."},{"$f":"'INTRODUCCIÓN ESPECIES FASE INV'!F45","v":"N/A"},{"$f":"'INTRODUCCIÓN ESPECIES FASE INV'!G45","v":"Aplica"},{"$f":"'INTRODUCCIÓN ESPECIES FASE INV'!H45","v":"Temporal"}]
[{"$f":"'INTRODUCCIÓN ESPECIES FASE INV'!D46","v":0},{"$f":"'INTRODUCCIÓN ESPECIES FASE INV'!B46","v":"GESTIÓN SOCIAL"},{"$f":"'INTRODUCCIÓN ESPECIES FASE INV'!E46","v":"Previo al inicio de las actividades de introducción, el titular de la licencia ambiental deberá realizar reuniones con cada una de las comunidades, autoridades locales y demás actores involucrados (agricultores, apicultores, organizaciones ambientales, ONGs, entre otros) del área de influencia del proyecto, con el fin de dar a conocer el presente acto administrativo, las obras y actividades que en ella se autorizan, los principales impactos y medidas de manejo, y resolver las dudas que se puedan presentar al respecto; de igual manera, se deberán realizar reuniones en los casos de autoridades locales y dignatarios de las JAC que asuman funciones en razón de períodos de cambio de administración. Las convocatorias a estas reuniones se deberán efectuar con suficiente antelación y realizarse de manera pública. Se deberá presentar a esta Autoridad mediante el primer Informe de Cumplimiento Ambiental - ICA, las constancias de recibido de las convocatorias y las copias de las actas de estas reuniones en las que se evidencie el proceso, incluyendo listados de asistencia, temáticas desarrolladas, registro fílmico y/o fotográfico, entre otros."},{"$f":"'INTRODUCCIÓN ESPECIES FASE INV'!F46","v":"N/A"},{"$f":"'INTRODUCCIÓN ESPECIES FASE INV'!G46","v":"Aplica"},{"$f":"'INTRODUCCIÓN ESPECIES FASE INV'!H46","v":"Temporal"}]
[{"$f":"'INTRODUCCIÓN ESPECIES FASE INV'!D47","v":0},{"$f":"'INTRODUCCIÓN ESPECIES FASE INV'!B47","v":"GESTIÓN SOCIAL"},{"$f":"'INTRODUCCIÓN ESPECIES FASE INV'!E47","v":"Previo al inicio de las actividades del proyecto, el titular de la presente licencia ambiental deberá informar a las comunidades y autoridades del área de influencia del proyecto, los canales de recepción de PQRS. De lo anterior, se deberán entregar los respectivos soportes en el primer Informe de Cumplimiento Ambiental - ICA."},{"$f":"'INTRODUCCIÓN ESPECIES FASE INV'!F47","v":"N/A"},{"$f":"'INTRODUCCIÓN ESPECIES FASE INV'!G47","v":"Aplica"},{"$f":"'INTRODUCCIÓN ESPECIES FASE INV'!H47","v":"Temporal"}]
[{"$f":"'INTRODUCCIÓN ESPECIES FASE INV'!D48","v":0},{"$f":"'INTRODUCCIÓN ESPECIES FASE INV'!B48","v":"GESTIÓN SOCIAL"},{"$f":"'INTRODUCCIÓN ESPECIES FASE INV'!E48","v":"El titular de la presente licencia ambiental contará con un formato de recepción de PQRS y elaborará un informe donde se reporten las quejas e inquietudes presentadas, especificando: municipio, vereda, nombre o comunidad que la interpone, datos de contacto del peticionario, descripción del caso, a qué tipo de actividad está asociada respecto a la licencia ambiental, tipo de queja y zona(s) donde se concentra el mayor número de casos. Además, se georreferenciará el sitio o lugar en donde se reporta la PQRS. Presentar en los Informes de Cumplimiento Ambiental - ICA, este informe en formato de Excel, o que sea compatible con Sistemas de Información Geográfica, así como los soportes que evidencien el registro, atención y seguimiento del caso."},{"$f":"'INTRODUCCIÓN ESPECIES FASE INV'!F48","v":"N/A"},{"$f":"'INTRODUCCIÓN ESPECIES FASE INV'!G48","v":"Aplica"},{"$f":"'INTRODUCCIÓN ESPECIES FASE INV'!H48","v":"Permanente"}]
[{"$f":"'INTRODUCCIÓN ESPECIES FASE INV'!D49","v":0},{"$f":"'INTRODUCCIÓN ESPECIES FASE INV'!B49","v":"GESTIÓN SOCIAL"},{"$f":"'INTRODUCCIÓN ESPECIES FASE INV'!E49","v":"El titular de la licencia ambiental presentará en los Informes de Cumplimiento Ambiental - ICA los soportes de las comunicaciones que se den a nivel interno del proyecto, como citaciones a talleres, brigadas, capacitaciones, actualizacion de programas de manejo, entre otras, al igual que los soportes de las comunicaciones externas donde se indague con la alcaldía municipal y la autoridad ambiental regional la recepcion de PQRS presentadas por las comunidades del área de influencia del proyecto."},{"$f":"'INTRODUCCIÓN ESPECIES FASE INV'!F49","v":"N/A"},{"$f":"'INTRODUCCIÓN ESPECIES FASE INV'!G49","v":"Aplica"},{"$f":"'INTRODUCCIÓN ESPECIES FASE INV'!H49","v":"Permanente"}]
[{"$f":"'INTRODUCCIÓN ESPECIES FASE INV'!D50","v":0},{"$f":"'INTRODUCCIÓN ESPECIES FASE INV'!B50","v":"GESTIÓN SOCIAL"},{"$f":"'INTRODUCCIÓN ESPECIES FASE INV'!E50","v":"El titular de la presente licencia ambiental, presentará en el primer Informe de Cumplimiento Ambiental - ICA el cronograma de capacitaciones al personal asociado al proyecto, en el que se indique claramente la temática a tratar, fecha y facilitador."},{"$f":"'INTRODUCCIÓN ESPECIES FASE INV'!F50","v":"N/A"},{"$f":"'INTRODUCCIÓN ESPECIES FASE INV'!G50","v":"Aplica"},{"$f":"'INTRODUCCIÓN ESPECIES FASE INV'!H50","v":"Temporal"}]
[{"$f":"'INTRODUCCIÓN ESPECIES FASE INV'!D51","v":0},{"$f":"'INTRODUCCIÓN ESPECIES FASE INV'!B51","v":"GESTIÓN SOCIAL"},{"$f":"'INTRODUCCIÓN ESPECIES FASE INV'!E51","v":"El titular de la presente licencia ambiental, realizará capacitaciones al personal que realiza la manipulación del [nombre de la especie introducida] en cuanto al manejo de la especie, seguridad industrial, bioseguridad y prevención y mitigación de impactos ambientales, para lo cual deberá diligenciarse un formato en el que conste la fecha de la capacitación, nombre, firma, identificación y perfil (cargo o actividades que desarrollan) del personal que dicta la capacitación y del personal que la recibe, así como un formato en el que se identifique la fecha de entrega/recepción por parte del personal que asiste a las capacitaciones de los folletos informativos, hojas de seguridad y/o cualquier otra información que se entregue al personal que de forma directa o indirecta tendrá contacto con el [nombre de la especie introducida]. Presentar los soportes de estas actividades en los respectivos Informes de Cumplimiento Ambiental - ICA."},{"$f":"'INTRODUCCIÓN ESPECIES FASE INV'!F51","v":"N/A"},{"$f":"'INTRODUCCIÓN ESPECIES FASE INV'!G51","v":"Aplica"},{"$f":"'INTRODUCCIÓN ESPECIES FASE INV'!H51","v":"Permanente"}]
[{"$f":"'INTRODUCCIÓN ESPECIES FASE INV'!D52","v":0},{"$f":"'INTRODUCCIÓN ESPECIES FASE INV'!B52","v":"DESMANTELAMIENTO Y ABANDONO"},{"$f":"'INTRODUCCIÓN ESPECIES FASE INV'!E52","v":"El titular de la presente licencia ambiental presentará por lo menos con tres (3) meses de anticipación al inicio del desmantelamiento y abandono del proyecto el estudio del que trata el artículo 2.2.2.3.9.2 del Decreto 1076 del 2015 o la norma que lo modifique, derogue o sustituya."},{"$f":"'INTRODUCCIÓN ESPECIES FASE INV'!F52","v":"N/A"},{"$f":"'INTRODUCCIÓN ESPECIES FASE INV'!G52","v":"Aplica"},{"$f":"'INTRODUCCIÓN ESPECIES FASE INV'!H52","v":"Temporal"}]
[{"$f":"'INTRODUCCIÓN ESPECIES FASE INV'!D53","v":0},{"$f":"'INTRODUCCIÓN ESPECIES FASE INV'!B53","v":"DESMANTELAMIENTO Y ABANDONO"},{"$f":"'INTRODUCCIÓN ESPECIES FASE INV'!E53","v":"Una vez terminada la fase de investigación o experimental e independientemente del resultado obtenido en la misma, el titular de la presente licencia ambiental retirará y/o dispondrá los elementos y materiales sobrantes en todas las áreas intervenidas por el proyecto. Los elementos físicos que no sean objeto de demolición, deberán ser desinfectados para permitir la eliminación de cualquier rastro de material biológico asociado a la introducción de organismos, de manera que no se generen impactos ambientales adicionales, se altere el paisaje ni se contribuya al deterioro ambiental. Presentar los soportes (fotográficos y documentales) de las actividades desarrolladas en los Informes de Cumplimiento Ambiental - ICA."},{"$f":"'INTRODUCCIÓN ESPECIES FASE INV'!F53","v":"N/A"},{"$f":"'INTRODUCCIÓN ESPECIES FASE INV'!G53","v":"Aplica"},{"$f":"'INTRODUCCIÓN ESPECIES FASE INV'!H53","v":"Temporal"}]
[{"$f":"'INTRODUCCIÓN ESPECIES FASE INV'!D54","v":0},{"$f":"'INTRODUCCIÓN ESPECIES FASE INV'!B54","v":"REQUISITOS DEL ACTO ADMINISTRATIVO"},{"$f":"'INTRODUCCIÓN ESPECIES FASE INV'!E54","v":"La ANLA hará control y seguimiento ambiental a la ejecución de proyectos, obras y actividades en los términos del artículo 2.2.2.3.9.1 del Decreto 1076 del 2015, y verificará el cumplimiento de la presente Resolución. "},{"$f":"'INTRODUCCIÓN ESPECIES FASE INV'!F54","v":" -"},{"$f":"'INTRODUCCIÓN ESPECIES FASE INV'!G54","v":" -"},{"$f":"'INTRODUCCIÓN ESPECIES FASE INV'!H54","v":" -"}]
[{"$f":"'INTRODUCCIÓN ESPECIES FASE INV'!D55","v":0},{"$f":"'INTRODUCCIÓN ESPECIES FASE INV'!B55","v":"REQUISITOS DEL ACTO ADMINISTRATIVO"},{"$f":"'INTRODUCCIÓN ESPECIES FASE INV'!E55","v":"Parágrafo: La Licencia Ambiental que se otorga, no confiere derechos reales sobre los bienes inmuebles que puedan intervenirse o afectarse en la ejecución del proyecto, obra o actividad. Lo anterior, sin perjuicio a lo dispuesto por la Ley 1448 de 2011 o aquella norma que la modifique, deroguen o sustituya, en lo relacionado con restitución de tierras."},{"$f":"'INTRODUCCIÓN ESPECIES FASE INV'!F55","v":" -"},{"$f":"'INTRODUCCIÓN ESPECIES FASE INV'!G55","v":" -"},{"$f":"'INTRODUCCIÓN ESPECIES FASE INV'!H55","v":" -"}]
[{"$f":"'INTRODUCCIÓN ESPECIES FASE INV'!D56","v":0},{"$f":"'INTRODUCCIÓN ESPECIES FASE INV'!B56","v":"REQUISITOS DEL ACTO ADMINISTRATIVO"},{"$f":"'INTRODUCCIÓN ESPECIES FASE INV'!E56","v":"Por la Autoridad Nacional de Licencias Ambientales - ANLA, notificar el presente acto administrativo al representante legal o apoderado, o a la persona autorizada por la sociedad XXXXX, de conformidad con los artículos 67 y siguientes del Código de Procedimiento Administrativo y de lo Contencioso Administrativo. \n\nParágrafo: El expediente queda a disposición para su consulta en medio físico o digital. "},{"$f":"'INTRODUCCIÓN ESPECIES FASE INV'!F56","v":" -"},{"$f":"'INTRODUCCIÓN ESPECIES FASE INV'!G56","v":" -"},{"$f":"'INTRODUCCIÓN ESPECIES FASE INV'!H56","v":" -"}]
[{"$f":"'INTRODUCCIÓN ESPECIES FASE INV'!D57","v":0},{"$f":"'INTRODUCCIÓN ESPECIES FASE INV'!B57","v":"REQUISITOS DEL ACTO ADMINISTRATIVO"},{"$f":"'INTRODUCCIÓN ESPECIES FASE INV'!E57","v":"Por la Autoridad Nacional de Licencias Ambientales - ANLA, notificar el presente acto administrativo a el/la señor(a) XXXXX en su condición de tercer(os) interviniente(s) reconocido(s) dentro de la presente actuación de ser el caso a través del representante legal o apoderado, o a la persona debidamente autorizada, de conformidad con el artículo 71 de la Ley 99 de 1993 y los artículos 67 y siguientes del Código de Procedimiento Administrativo y de lo Contencioso Administrativo. \n\nParágrafo: El expediente queda a disposición para su consulta en medio físico o digital. "},{"$f":"'INTRODUCCIÓN ESPECIES FASE INV'!F57","v":" -"},{"$f":"'INTRODUCCIÓN ESPECIES FASE INV'!G57","v":" -"},{"$f":"'INTRODUCCIÓN ESPECIES FASE INV'!H57","v":" -"}]
[{"$f":"'INTRODUCCIÓN ESPECIES FASE INV'!D58","v":0},{"$f":"'INTRODUCCIÓN ESPECIES FASE INV'!B58","v":"REQUISITOS DEL ACTO ADMINISTRATIVO"},{"$f":"'INTRODUCCIÓN ESPECIES FASE INV'!E58","v":"Por la Autoridad Nacional de Licencias Ambientales - ANLA, comunicar el presente acto administrativo a el/la señor(a) XXXXX en su condición de tercer(os) interviniente(s) reconocido(s) dentro de la presente actuación de ser el caso a través del representante legal o apoderado, o a la persona debidamente autorizada, de conformidad con el artículo 71 de la Ley 99 de 1993."},{"$f":"'INTRODUCCIÓN ESPECIES FASE INV'!F58","v":" -"},{"$f":"'INTRODUCCIÓN ESPECIES FASE INV'!G58","v":" -"},{"$f":"'INTRODUCCIÓN ESPECIES FASE INV'!H58","v":" -"}]
[{"$f":"'INTRODUCCIÓN ESPECIES FASE INV'!D59","v":0},{"$f":"'INTRODUCCIÓN ESPECIES FASE INV'!B59","v":"REQUISITOS DEL ACTO ADMINISTRATIVO"},{"$f":"'INTRODUCCIÓN ESPECIES FASE INV'!E59","v":"Por la Autoridad Nacional de Licencias Ambientales - ANLA, comunicar el contenido del presente acto administrativo a [Espacio para listar entidades que deban recibir copia de la presente resolución tales como: alcaldías municipales, autoridades ambientales de orden regional y/o local, gobernaciones, personerías municipales, Ministerio de Comercio, Industria y Turismo, Ministerio de Salud y Protección Social, Procuraduría Delegada para Asuntos Ambientales y Agrarios, Instituto Colombiano Agropecuario - ICA, entre otros]."},{"$f":"'INTRODUCCIÓN ESPECIES FASE INV'!F59","v":" -"},{"$f":"'INTRODUCCIÓN ESPECIES FASE INV'!G59","v":" -"},{"$f":"'INTRODUCCIÓN ESPECIES FASE INV'!H59","v":" -"}]
[{"$f":"'INTRODUCCIÓN ESPECIES FASE INV'!D60","v":0},{"$f":"'INTRODUCCIÓN ESPECIES FASE INV'!B60","v":"REQUISITOS DEL ACTO ADMINISTRATIVO"},{"$f":"'INTRODUCCIÓN ESPECIES FASE INV'!E60","v":"Por la Autoridad Nacional de Licencias Ambientales - ANLA publicar  la presente Resolución en la Gaceta Ambiental de esta Entidad, de conformidad con el artículo 71 de la Ley 99 de 1993, en concordancia con lo establecido en la Ley 1437 del 18 de enero del 2011, o aquellas que las modifiquen, deroguen o sustituyan."},{"$f":"'INTRODUCCIÓN ESPECIES FASE INV'!F60","v":" -"},{"$f":"'INTRODUCCIÓN ESPECIES FASE INV'!G60","v":" -"},{"$f":"'INTRODUCCIÓN ESPECIES FASE INV'!H60","v":" -"}]
[{"$f":"'INTRODUCCIÓN ESPECIES FASE INV'!D61","v":0},{"$f":"'INTRODUCCIÓN ESPECIES FASE INV'!B61","v":"REQUISITOS DEL ACTO ADMINISTRATIVO"},{"$f":"'INTRODUCCIÓN ESPECIES FASE INV'!E61","v":"Contra el presente acto administrativo procede el recurso de reposición en los términos establecidos en los artículos 74 y siguientes del Código de Procedimiento Administrativo y de lo Contencioso Administrativo, o la norma que lo modifique, derogue o sustituya."},{"$f":"'INTRODUCCIÓN ESPECIES FASE INV'!F61","v":" -"},{"$f":"'INTRODUCCIÓN ESPECIES FASE INV'!G61","v":" -"},{"$f":"'INTRODUCCIÓN ESPECIES FASE INV'!H61","v":" -"}]
[{"$f":"'INTRODUCCIÓN ESPECIES FASE INV'!D62","v":0},{"$f":"'INTRODUCCIÓN ESPECIES FASE INV'!B62","v":"REQUISITOS DEL ACTO ADMINISTRATIVO"},{"$f":"'INTRODUCCIÓN ESPECIES FASE INV'!E62","v":"La licencia ambiental, se otorga por el tiempo de duración de la fase de investigación o experimental que se autoriza en la presente resolución."},{"$f":"'INTRODUCCIÓN ESPECIES FASE INV'!F62","v":" -"},{"$f":"'INTRODUCCIÓN ESPECIES FASE INV'!G62","v":" -"},{"$f":"'INTRODUCCIÓN ESPECIES FASE INV'!H62","v":" -"}]
[{"$f":"'INTRODUCCIÓN ESPECIES FASE INV'!D63","v":0},{"$f":"'INTRODUCCIÓN ESPECIES FASE INV'!B63","v":"REQUISITOS DEL ACTO ADMINISTRATIVO"},{"$f":"'INTRODUCCIÓN ESPECIES FASE INV'!E63","v":"En el caso que, el titular de la licencia ambiental en el término de cinco (5) años contados a partir de la firmeza del presente acto administrativo, no haya dado inicio a la ejecución del proyecto, se procederá a dar aplicación a lo establecido en el artículo 2.2.2.3.8.7. Decreto 1076 de 2015, en relación con la declaratoria de pérdida de vigencia de la licencia ambiental. "},{"$f":"'INTRODUCCIÓN ESPECIES FASE INV'!F63","v":" -"},{"$f":"'INTRODUCCIÓN ESPECIES FASE INV'!G63","v":" -"},{"$f":"'INTRODUCCIÓN ESPECIES FASE INV'!H63","v":" -"}]
[{"$f":"'INTRODUCCIÓN ESPECIES FASE INV'!D64","v":0},{"$f":"'INTRODUCCIÓN ESPECIES FASE INV'!B64","v":"REQUISITOS DEL ACTO ADMINISTRATIVO"},{"$f":"'INTRODUCCIÓN ESPECIES FASE INV'!E64","v":"El incumplimiento de las obligaciones contenidas en el presente acto administrativo y en las normas ambientales vigentes dará lugar a la imposición y ejecución de las medidas preventivas y sanciones que sean aplicables según el caso, de conformidad con lo establecido en la Ley 1333 del 21 de julio de 2009, o la que modifique, derogue o sustituya."},{"$f":"'INTRODUCCIÓN ESPECIES FASE INV'!F64","v":" -"},{"$f":"'INTRODUCCIÓN ESPECIES FASE INV'!G64","v":" -"},{"$f":"'INTRODUCCIÓN ESPECIES FASE INV'!H64","v":" -"}]
[{"$f":"'INTRODUCCIÓN ESPECIES FASE INV'!D65","v":0},{"$f":"'INTRODUCCIÓN ESPECIES FASE INV'!B65","v":"REQUISITOS DEL ACTO ADMINISTRATIVO"},{"$f":"'INTRODUCCIÓN ESPECIES FASE INV'!E65","v":"En el seguimiento, la Autoridad Nacional de Licencias Ambientales -ANLA- podrá  conceder, por solicitud justificada del titular, nuevos plazos para el cumplimiento de obligaciones, sin que esto implique modificación de la Licencia Ambiental. La modificación del plazo siempre deberá estar técnica y jurídicamente sustentada, previa coordinación ante el Grupo de Actuaciones Sancionatorias ambientales de la Oficina Asesora Jurídica o la dependencia que haga sus veces."},{"$f":"'INTRODUCCIÓN ESPECIES FASE INV'!F65","v":" -"},{"$f":"'INTRODUCCIÓN ESPECIES FASE INV'!G65","v":" -"},{"$f":"'INTRODUCCIÓN ESPECIES FASE INV'!H65","v":" -"}]
[{"$f":"'INTRODUCCIÓN ESPECIES FASE INV'!D66","v":0},{"$f":"'INTRODUCCIÓN ESPECIES FASE INV'!B66","v":"REQUISITOS DEL ACTO ADMINISTRATIVO"},{"$f":"'INTRODUCCIÓN ESPECIES FASE INV'!E66","v":"En el evento en que el titular de la licencia ambiental entre en proceso de disolución o régimen de insolvencia o liquidación regulados por las normas vigentes, informará inmediatamente de esta situación a esta Autoridad, con fundamento, entre otros, en los artículos 8, 58, 79, 80, 81, 95 numeral 8 de la Constitución Política de 1991, en las Leyes 43 de 1990, 222 de 1995, 1333 de 2009, demás normas vigentes, y en la jurisprudencia aplicable. La sociedad deberá aprovisionar contablemente las obligaciones contingentes que se deriven de la existencia de un procedimiento ambiental sancionatorio conforme con el artículo 40 de la Ley 1333 de 2009 o la norma que la modifique, derogue o sustituya. "},{"$f":"'INTRODUCCIÓN ESPECIES FASE INV'!F66","v":" -"},{"$f":"'INTRODUCCIÓN ESPECIES FASE INV'!G66","v":" -"},{"$f":"'INTRODUCCIÓN ESPECIES FASE INV'!H66","v":" -"}]

{"sheet":"Temp","index":3,"n_rows":170,"n_cols":4,"rows_kept":170,"cut":false,"hidden":true,"merged":[[0,0,0,3]]}
["ANEXO - OBLIGACIONES MÍNIMAS PARA [COLOCAR NOMBRE DEL PROYECTO]"]
["COMPONENTE","Fase de construcción","Fase de operación y mantenimiento","Fase de desmantelamiento y abandono"]
[{"$f":"IF('INTRODUCCIÓN ESPECIES FASE INV'!#REF!=\"SI\",'INTRODUCCIÓN ESPECIES FASE INV'!#REF!,NA())","v":{"$error":"#REF!"}},{"$f":"IF('INTRODUCCIÓN ESPECIES FASE INV'!#REF!=\"SI\",'INTRODUCCIÓN ESPECIES FASE INV'!#REF!,NA())","v":{"$error":"#REF!"}},{"$f":"IF('INTRODUCCIÓN ESPECIES FASE INV'!#REF!=\"SI\",'INTRODUCCIÓN ESPECIES FASE INV'!#REF!,NA())","v":{"$error":"#REF!"}},{"$f":"IF('INTRODUCCIÓN ESPECIES FASE INV'!#REF!=\"SI\",'OBLIGACIONES APLICABLES'!#REF!,NA())","v":{"$error":"#REF!"}}]
[{"$f":"IF('INTRODUCCIÓN ESPECIES FASE INV'!#REF!=\"SI\",'INTRODUCCIÓN ESPECIES FASE INV'!#REF!,NA())","v":{"$error":"#REF!"}},{"$f":"IF('INTRODUCCIÓN ESPECIES FASE INV'!#REF!=\"SI\",'INTRODUCCIÓN ESPECIES FASE INV'!#REF!,NA())","v":{"$error":"#REF!"}},{"$f":"IF('INTRODUCCIÓN ESPECIES FASE INV'!#REF!=\"SI\",'OBLIGACIONES APLICABLES'!E40,NA())","v":{"$error":"#REF!"}},{"$f":"IF('INTRODUCCIÓN ESPECIES FASE INV'!#REF!=\"SI\",'OBLIGACIONES APLICABLES'!#REF!,NA())","v":{"$error":"#REF!"}}]
[{"$f":"IF('INTRODUCCIÓN ESPECIES FASE INV'!#REF!=\"SI\",'INTRODUCCIÓN ESPECIES FASE INV'!#REF!,NA())","v":{"$error":"#REF!"}},{"$f":"IF('INTRODUCCIÓN ESPECIES FASE INV'!#REF!=\"SI\",'INTRODUCCIÓN ESPECIES FASE INV'!#REF!,NA())","v":{"$error":"#REF!"}},{"$f":"IF('INTRODUCCIÓN ESPECIES FASE INV'!#REF!=\"SI\",'OBLIGACIONES APLICABLES'!E41,NA())","v":{"$error":"#REF!"}},{"$f":"IF('INTRODUCCIÓN ESPECIES FASE INV'!#REF!=\"SI\",'OBLIGACIONES APLICABLES'!#REF!,NA())","v":{"$error":"#REF!"}}]
[{"$f":"IF('INTRODUCCIÓN ESPECIES FASE INV'!#REF!=\"SI\",'INTRODUCCIÓN ESPECIES FASE INV'!#REF!,NA())","v":{"$error":"#REF!"}},{"$f":"IF('INTRODUCCIÓN ESPECIES FASE INV'!#REF!=\"SI\",'INTRODUCCIÓN ESPECIES FASE INV'!#REF!,NA())","v":{"$error":"#REF!"}},{"$f":"IF('INTRODUCCIÓN ESPECIES FASE INV'!#REF!=\"SI\",'OBLIGACIONES APLICABLES'!#REF!,NA())","v":{"$error":"#REF!"}},{"$f":"IF('INTRODUCCIÓN ESPECIES FASE INV'!#REF!=\"SI\",'OBLIGACIONES APLICABLES'!#REF!,NA())","v":{"$error":"#REF!"}}]
[{"$f":"IF('INTRODUCCIÓN ESPECIES FASE INV'!#REF!=\"SI\",'INTRODUCCIÓN ESPECIES FASE INV'!#REF!,NA())","v":{"$error":"#REF!"}},{"$f":"IF('INTRODUCCIÓN ESPECIES FASE INV'!#REF!=\"SI\",'INTRODUCCIÓN ESPECIES FASE INV'!#REF!,NA())","v":{"$error":"#REF!"}},{"$f":"IF('INTRODUCCIÓN ESPECIES FASE INV'!#REF!=\"SI\",'OBLIGACIONES APLICABLES'!#REF!,NA())","v":{"$error":"#REF!"}},{"$f":"IF('INTRODUCCIÓN ESPECIES FASE INV'!#REF!=\"SI\",'OBLIGACIONES APLICABLES'!#REF!,NA())","v":{"$error":"#REF!"}}]
[{"$f":"IF('INTRODUCCIÓN ESPECIES FASE INV'!#REF!=\"SI\",'INTRODUCCIÓN ESPECIES FASE INV'!#REF!,NA())","v":{"$error":"#REF!"}},{"$f":"IF('INTRODUCCIÓN ESPECIES FASE INV'!#REF!=\"SI\",'INTRODUCCIÓN ESPECIES FASE INV'!#REF!,NA())","v":{"$error":"#REF!"}},{"$f":"IF('INTRODUCCIÓN ESPECIES FASE INV'!#REF!=\"SI\",'OBLIGACIONES APLICABLES'!E42,NA())","v":{"$error":"#REF!"}},{"$f":"IF('INTRODUCCIÓN ESPECIES FASE INV'!#REF!=\"SI\",'OBLIGACIONES APLICABLES'!#REF!,NA())","v":{"$error":"#REF!"}}]
[{"$f":"IF('INTRODUCCIÓN ESPECIES FASE INV'!#REF!=\"SI\",'INTRODUCCIÓN ESPECIES FASE INV'!#REF!,NA())","v":{"$error":"#REF!"}},{"$f":"IF('INTRODUCCIÓN ESPECIES FASE INV'!#REF!=\"SI\",'INTRODUCCIÓN ESPECIES FASE INV'!#REF!,NA())","v":{"$error":"#REF!"}},{"$f":"IF('INTRODUCCIÓN ESPECIES FASE INV'!#REF!=\"SI\",'OBLIGACIONES APLICABLES'!E43,NA())","v":{"$error":"#REF!"}},{"$f":"IF('INTRODUCCIÓN ESPECIES FASE INV'!#REF!=\"SI\",'OBLIGACIONES APLICABLES'!#REF!,NA())","v":{"$error":"#REF!"}}]
[{"$f":"IF('INTRODUCCIÓN ESPECIES FASE INV'!#REF!=\"SI\",'INTRODUCCIÓN ESPECIES FASE INV'!#REF!,NA())","v":{"$error":"#REF!"}},{"$f":"IF('INTRODUCCIÓN ESPECIES FASE INV'!#REF!=\"SI\",'INTRODUCCIÓN ESPECIES FASE INV'!#REF!,NA())","v":{"$error":"#REF!"}},{"$f":"IF('INTRODUCCIÓN ESPECIES FASE INV'!#REF!=\"SI\",'OBLIGACIONES APLICABLES'!E44,NA())","v":{"$error":"#REF!"}},{"$f":"IF('INTRODUCCIÓN ESPECIES FASE INV'!#REF!=\"SI\",'OBLIGACIONES APLICABLES'!#REF!,NA())","v":{"$error":"#REF!"}}]
[{"$f":"IF('INTRODUCCIÓN ESPECIES FASE INV'!#REF!=\"SI\",'INTRODUCCIÓN ESPECIES FASE INV'!#REF!,NA())","v":{"$error":"#REF!"}},{"$f":"IF('INTRODUCCIÓN ESPECIES FASE INV'!#REF!=\"SI\",'INTRODUCCIÓN ESPECIES FASE INV'!#REF!,NA())","v":{"$error":"#REF!"}},{"$f":"IF('INTRODUCCIÓN ESPECIES FASE INV'!#REF!=\"SI\",'OBLIGACIONES APLICABLES'!#REF!,NA())","v":{"$error":"#REF!"}},{"$f":"IF('INTRODUCCIÓN ESPECIES FASE INV'!#REF!=\"SI\",'OBLIGACIONES APLICABLES'!#REF!,NA())","v":{"$error":"#REF!"}}]
[{"$f":"IF('INTRODUCCIÓN ESPECIES FASE INV'!#REF!=\"SI\",'INTRODUCCIÓN ESPECIES FASE INV'!#REF!,NA())","v":{"$error":"#REF!"}},{"$f":"IF('INTRODUCCIÓN ESPECIES FASE INV'!#REF!=\"SI\",'INTRODUCCIÓN ESPECIES FASE INV'!#REF!,NA())","v":{"$error":"#REF!"}},{"$f":"IF('INTRODUCCIÓN ESPECIES FASE INV'!#REF!=\"SI\",'OBLIGACIONES APLICABLES'!E45,NA())","v":{"$error":"#REF!"}},{"$f":"IF('INTRODUCCIÓN ESPECIES FASE INV'!#REF!=\"SI\",'OBLIGACIONES APLICABLES'!#REF!,NA())","v":{"$error":"#REF!"}}]
[{"$f":"IF('INTRODUCCIÓN ESPECIES FASE INV'!#REF!=\"SI\",'INTRODUCCIÓN ESPECIES FASE INV'!#REF!,NA())","v":{"$error":"#REF!"}},{"$f":"IF('INTRODUCCIÓN ESPECIES FASE INV'!#REF!=\"SI\",'INTRODUCCIÓN ESPECIES FASE INV'!#REF!,NA())","v":{"$error":"#REF!"}},{"$f":"IF('INTRODUCCIÓN ESPECIES FASE INV'!#REF!=\"SI\",'OBLIGACIONES APLICABLES'!#REF!,NA())","v":{"$error":"#REF!"}},{"$f":"IF('INTRODUCCIÓN ESPECIES FASE INV'!#REF!=\"SI\",'OBLIGACIONES APLICABLES'!#REF!,NA())","v":{"$error":"#REF!"}}]
[{"$f":"IF('INTRODUCCIÓN ESPECIES FASE INV'!#REF!=\"SI\",'INTRODUCCIÓN ESPECIES FASE INV'!#REF!,NA())","v":{"$error":"#REF!"}},{"$f":"IF('INTRODUCCIÓN ESPECIES FASE INV'!#REF!=\"SI\",'INTRODUCCIÓN ESPECIES FASE INV'!#REF!,NA())","v":{"$error":"#REF!"}},{"$f":"IF('INTRODUCCIÓN ESPECIES FASE INV'!#REF!=\"SI\",'OBLIGACIONES APLICABLES'!#REF!,NA())","v":{"$error":"#REF!"}},{"$f":"IF('INTRODUCCIÓN ESPECIES FASE INV'!#REF!=\"SI\",'OBLIGACIONES APLICABLES'!#REF!,NA())","v":{"$error":"#REF!"}}]
[{"$f":"IF('INTRODUCCIÓN ESPECIES FASE INV'!#REF!=\"SI\",'INTRODUCCIÓN ESPECIES FASE INV'!#REF!,NA())","v":{"$error":"#REF!"}},{"$f":"IF('INTRODUCCIÓN ESPECIES FASE INV'!#REF!=\"SI\",'INTRODUCCIÓN ESPECIES FASE INV'!#REF!,NA())","v":{"$error":"#REF!"}},{"$f":"IF('INTRODUCCIÓN ESPECIES FASE INV'!#REF!=\"SI\",'OBLIGACIONES APLICABLES'!#REF!,NA())","v":{"$error":"#REF!"}},{"$f":"IF('INTRODUCCIÓN ESPECIES FASE INV'!#REF!=\"SI\",'OBLIGACIONES APLICABLES'!#REF!,NA())","v":{"$error":"#REF!"}}]
[{"$f":"IF('INTRODUCCIÓN ESPECIES FASE INV'!#REF!=\"SI\",'INTRODUCCIÓN ESPECIES FASE INV'!#REF!,NA())","v":{"$error":"#REF!"}},{"$f":"IF('INTRODUCCIÓN ESPECIES FASE INV'!#REF!=\"SI\",'INTRODUCCIÓN ESPECIES FASE INV'!#REF!,NA())","v":{"$error":"#REF!"}},{"$f":"IF('INTRODUCCIÓN ESPECIES FASE INV'!#REF!=\"SI\",'OBLIGACIONES APLICABLES'!#REF!,NA())","v":{"$error":"#REF!"}},{"$f":"IF('INTRODUCCIÓN ESPECIES FASE INV'!#REF!=\"SI\",'OBLIGACIONES APLICABLES'!#REF!,NA())","v":{"$error":"#REF!"}}]
[{"$f":"IF('INTRODUCCIÓN ESPECIES FASE INV'!#REF!=\"SI\",'INTRODUCCIÓN ESPECIES FASE INV'!#REF!,NA())","v":{"$error":"#REF!"}},{"$f":"IF('INTRODUCCIÓN ESPECIES FASE INV'!#REF!=\"SI\",'INTRODUCCIÓN ESPECIES FASE INV'!#REF!,NA())","v":{"$error":"#REF!"}},{"$f":"IF('INTRODUCCIÓN ESPECIES FASE INV'!#REF!=\"SI\",'OBLIGACIONES APLICABLES'!#REF!,NA())","v":{"$error":"#REF!"}},{"$f":"IF('INTRODUCCIÓN ESPECIES FASE INV'!#REF!=\"SI\",'OBLIGACIONES APLICABLES'!#REF!,NA())","v":{"$error":"#REF!"}}]
[{"$f":"IF('INTRODUCCIÓN ESPECIES FASE INV'!#REF!=\"SI\",'INTRODUCCIÓN ESPECIES FASE INV'!#REF!,NA())","v":{"$error":"#REF!"}},{"$f":"IF('INTRODUCCIÓN ESPECIES FASE INV'!#REF!=\"SI\",'INTRODUCCIÓN ESPECIES FASE INV'!#REF!,NA())","v":{"$error":"#REF!"}},{"$f":"IF('INTRODUCCIÓN ESPECIES FASE INV'!#REF!=\"SI\",'OBLIGACIONES APLICABLES'!#REF!,NA())","v":{"$error":"#REF!"}},{"$f":"IF('INTRODUCCIÓN ESPECIES FASE INV'!#REF!=\"SI\",'OBLIGACIONES APLICABLES'!#REF!,NA())","v":{"$error":"#REF!"}}]
[{"$f":"IF('INTRODUCCIÓN ESPECIES FASE INV'!#REF!=\"SI\",'INTRODUCCIÓN ESPECIES FASE INV'!#REF!,NA())","v":{"$error":"#REF!"}},{"$f":"IF('INTRODUCCIÓN ESPECIES FASE INV'!#REF!=\"SI\",'INTRODUCCIÓN ESPECIES FASE INV'!#REF!,NA())","v":{"$error":"#REF!"}},{"$f":"IF('INTRODUCCIÓN ESPECIES FASE INV'!#REF!=\"SI\",'OBLIGACIONES APLICABLES'!E47,NA())","v":{"$error":"#REF!"}},{"$f":"IF('INTRODUCCIÓN ESPECIES FASE INV'!#REF!=\"SI\",'OBLIGACIONES APLICABLES'!#REF!,NA())","v":{"$error":"#REF!"}}]
[{"$f":"IF('INTRODUCCIÓN ESPECIES FASE INV'!#REF!=\"SI\",'INTRODUCCIÓN ESPECIES FASE INV'!#REF!,NA())","v":{"$error":"#REF!"}},{"$f":"IF('INTRODUCCIÓN ESPECIES FASE INV'!#REF!=\"SI\",'INTRODUCCIÓN ESPECIES FASE INV'!#REF!,NA())","v":{"$error":"#REF!"}},{"$f":"IF('INTRODUCCIÓN ESPECIES FASE INV'!#REF!=\"SI\",'OBLIGACIONES APLICABLES'!#REF!,NA())","v":{"$error":"#REF!"}},{"$f":"IF('INTRODUCCIÓN ESPECIES FASE INV'!#REF!=\"SI\",'OBLIGACIONES APLICABLES'!#REF!,NA())","v":{"$error":"#REF!"}}]
[{"$f":"IF('INTRODUCCIÓN ESPECIES FASE INV'!#REF!=\"SI\",'INTRODUCCIÓN ESPECIES FASE INV'!#REF!,NA())","v":{"$error":"#REF!"}},{"$f":"IF('INTRODUCCIÓN ESPECIES FASE INV'!#REF!=\"SI\",'INTRODUCCIÓN ESPECIES FASE INV'!#REF!,NA())","v":{"$error":"#REF!"}},{"$f":"IF('INTRODUCCIÓN ESPECIES FASE INV'!#REF!=\"SI\",'OBLIGACIONES APLICABLES'!#REF!,NA())","v":{"$error":"#REF!"}},{"$f":"IF('INTRODUCCIÓN ESPECIES FASE INV'!#REF!=\"SI\",'OBLIGACIONES APLICABLES'!#REF!,NA())","v":{"$error":"#REF!"}}]
[{"$f":"IF('INTRODUCCIÓN ESPECIES FASE INV'!#REF!=\"SI\",'INTRODUCCIÓN ESPECIES FASE INV'!#REF!,NA())","v":{"$error":"#REF!"}},{"$f":"IF('INTRODUCCIÓN ESPECIES FASE INV'!#REF!=\"SI\",'INTRODUCCIÓN ESPECIES FASE INV'!#REF!,NA())","v":{"$error":"#REF!"}},{"$f":"IF('INTRODUCCIÓN ESPECIES FASE INV'!#REF!=\"SI\",'OBLIGACIONES APLICABLES'!E48,NA())","v":{"$error":"#REF!"}},{"$f":"IF('INTRODUCCIÓN ESPECIES FASE INV'!#REF!=\"SI\",'OBLIGACIONES APLICABLES'!#REF!,NA())","v":{"$error":"#REF!"}}]
[{"$f":"IF('INTRODUCCIÓN ESPECIES FASE INV'!#REF!=\"SI\",'INTRODUCCIÓN ESPECIES FASE INV'!#REF!,NA())","v":{"$error":"#REF!"}},{"$f":"IF('INTRODUCCIÓN ESPECIES FASE INV'!#REF!=\"SI\",'INTRODUCCIÓN ESPECIES FASE INV'!#REF!,NA())","v":{"$error":"#REF!"}},{"$f":"IF('INTRODUCCIÓN ESPECIES FASE INV'!#REF!=\"SI\",'OBLIGACIONES APLICABLES'!E49,NA())","v":{"$error":"#REF!"}},{"$f":"IF('INTRODUCCIÓN ESPECIES FASE INV'!#REF!=\"SI\",'OBLIGACIONES APLICABLES'!#REF!,NA())","v":{"$error":"#REF!"}}]
[{"$f":"IF('INTRODUCCIÓN ESPECIES FASE INV'!D47=\"SI\",'INTRODUCCIÓN ESPECIES FASE INV'!B47,NA())","v":{"$error":"#N/A"}},{"$f":"IF('INTRODUCCIÓN ESPECIES FASE INV'!D47=\"SI\",'INTRODUCCIÓN ESPECIES FASE INV'!#REF!,NA())","v":{"$error":"#N/A"}},{"$f":"IF('INTRODUCCIÓN ESPECIES FASE INV'!#REF!=\"SI\",'OBLIGACIONES APLICABLES'!#REF!,NA())","v":{"$error":"#REF!"}},{"$f":"IF('INTRODUCCIÓN ESPECIES FASE INV'!#REF!=\"SI\",'OBLIGACIONES APLICABLES'!#REF!,NA())","v":{"$error":"#REF!"}}]
[{"$f":"IF('INTRODUCCIÓN ESPECIES FASE INV'!#REF!=\"SI\",'INTRODUCCIÓN ESPECIES FASE INV'!#REF!,NA())","v":{"$error":"#REF!"}},{"$f":"IF('INTRODUCCIÓN ESPECIES FASE INV'!#REF!=\"SI\",'INTRODUCCIÓN ESPECIES FASE INV'!#REF!,NA())","v":{"$error":"#REF!"}},{"$f":"IF('INTRODUCCIÓN ESPECIES FASE INV'!#REF!=\"SI\",'OBLIGACIONES APLICABLES'!E51,NA())","v":{"$error":"#REF!"}},{"$f":"IF('INTRODUCCIÓN ESPECIES FASE INV'!#REF!=\"SI\",'OBLIGACIONES APLICABLES'!#REF!,NA())","v":{"$error":"#REF!"}}]
[{"$f":"IF('INTRODUCCIÓN ESPECIES FASE INV'!#REF!=\"SI\",'INTRODUCCIÓN ESPECIES FASE INV'!#REF!,NA())","v":{"$error":"#REF!"}},{"$f":"IF('INTRODUCCIÓN ESPECIES FASE INV'!#REF!=\"SI\",'INTRODUCCIÓN ESPECIES FASE INV'!#REF!,NA())","v":{"$error":"#REF!"}},{"$f":"IF('INTRODUCCIÓN ESPECIES FASE INV'!#REF!=\"SI\",'OBLIGACIONES APLICABLES'!E52,NA())","v":{"$error":"#REF!"}},{"$f":"IF('INTRODUCCIÓN ESPECIES FASE INV'!#REF!=\"SI\",'OBLIGACIONES APLICABLES'!#REF!,NA())","v":{"$error":"#REF!"}}]
[{"$f":"IF('INTRODUCCIÓN ESPECIES FASE INV'!#REF!=\"SI\",'INTRODUCCIÓN ESPECIES FASE INV'!#REF!,NA())","v":{"$error":"#REF!"}},{"$f":"IF('INTRODUCCIÓN ESPECIES FASE INV'!#REF!=\"SI\",'INTRODUCCIÓN ESPECIES FASE INV'!#REF!,NA())","v":{"$error":"#REF!"}},{"$f":"IF('INTRODUCCIÓN ESPECIES FASE INV'!#REF!=\"SI\",'OBLIGACIONES APLICABLES'!E53,NA())","v":{"$error":"#REF!"}},{"$f":"IF('INTRODUCCIÓN ESPECIES FASE INV'!#REF!=\"SI\",'OBLIGACIONES APLICABLES'!#REF!,NA())","v":{"$error":"#REF!"}}]
[{"$f":"IF('INTRODUCCIÓN ESPECIES FASE INV'!D15=\"SI\",'INTRODUCCIÓN ESPECIES FASE INV'!B15,NA())","v":{"$error":"#N/A"}},{"$f":"IF('INTRODUCCIÓN ESPECIES FASE INV'!D15=\"SI\",'INTRODUCCIÓN ESPECIES FASE INV'!#REF!,NA())","v":{"$error":"#N/A"}},{"$f":"IF('INTRODUCCIÓN ESPECIES FASE INV'!#REF!=\"SI\",'OBLIGACIONES APLICABLES'!E54,NA())","v":{"$error":"#REF!"}},{"$f":"IF('INTRODUCCIÓN ESPECIES FASE INV'!#REF!=\"SI\",'OBLIGACIONES APLICABLES'!#REF!,NA())","v":{"$error":"#REF!"}}]
[{"$f":"IF('INTRODUCCIÓN ESPECIES FASE INV'!#REF!=\"SI\",'INTRODUCCIÓN ESPECIES FASE INV'!#REF!,NA())","v":{"$error":"#REF!"}},{"$f":"IF('INTRODUCCIÓN ESPECIES FASE INV'!#REF!=\"SI\",'INTRODUCCIÓN ESPECIES FASE INV'!#REF!,NA())","v":{"$error":"#REF!"}},{"$f":"IF('INTRODUCCIÓN ESPECIES FASE INV'!#REF!=\"SI\",'OBLIGACIONES APLICABLES'!E55,NA())","v":{"$error":"#REF!"}},{"$f":"IF('INTRODUCCIÓN ESPECIES FASE INV'!#REF!=\"SI\",'OBLIGACIONES APLICABLES'!#REF!,NA())","v":{"$error":"#REF!"}}]
[{"$f":"IF('INTRODUCCIÓN ESPECIES FASE INV'!D16=\"SI\",'INTRODUCCIÓN ESPECIES FASE INV'!B16,NA())","v":{"$error":"#N/A"}},{"$f":"IF('INTRODUCCIÓN ESPECIES FASE INV'!D16=\"SI\",'INTRODUCCIÓN ESPECIES FASE INV'!#REF!,NA())","v":{"$error":"#N/A"}},{"$f":"IF('INTRODUCCIÓN ESPECIES FASE INV'!#REF!=\"SI\",'OBLIGACIONES APLICABLES'!E56,NA())","v":{"$error":"#REF!"}},{"$f":"IF('INTRODUCCIÓN ESPECIES FASE INV'!#REF!=\"SI\",'OBLIGACIONES APLICABLES'!#REF!,NA())","v":{"$error":"#REF!"}}]
[{"$f":"IF('INTRODUCCIÓN ESPECIES FASE INV'!#REF!=\"SI\",'INTRODUCCIÓN ESPECIES FASE INV'!#REF!,NA())","v":{"$error":"#REF!"}},{"$f":"IF('INTRODUCCIÓN ESPECIES FASE INV'!#REF!=\"SI\",'INTRODUCCIÓN ESPECIES FASE INV'!#REF!,NA())","v":{"$error":"#REF!"}},{"$f":"IF('INTRODUCCIÓN ESPECIES FASE INV'!#REF!=\"SI\",'OBLIGACIONES APLICABLES'!E57,NA())","v":{"$error":"#REF!"}},{"$f":"IF('INTRODUCCIÓN ESPECIES FASE INV'!#REF!=\"SI\",'OBLIGACIONES APLICABLES'!#REF!,NA())","v":{"$error":"#REF!"}}]
[{"$f":"IF('INTRODUCCIÓN ESPECIES FASE INV'!#REF!=\"SI\",'INTRODUCCIÓN ESPECIES FASE INV'!#REF!,NA())","v":{"$error":"#REF!"}},{"$f":"IF('INTRODUCCIÓN ESPECIES FASE INV'!#REF!=\"SI\",'INTRODUCCIÓN ESPECIES FASE INV'!#REF!,NA())","v":{"$error":"#REF!"}},{"$f":"IF('INTRODUCCIÓN ESPECIES FASE INV'!#REF!=\"SI\",'OBLIGACIONES APLICABLES'!#REF!,NA())","v":{"$error":"#REF!"}},{"$f":"IF('INTRODUCCIÓN ESPECIES FASE INV'!#REF!=\"SI\",'OBLIGACIONES APLICABLES'!#REF!,NA())","v":{"$error":"#REF!"}}]
[{"$f":"IF('INTRODUCCIÓN ESPECIES FASE INV'!D39=\"SI\",'INTRODUCCIÓN ESPECIES FASE INV'!B39,NA())","v":{"$error":"#N/A"}},{"$f":"IF('INTRODUCCIÓN ESPECIES FASE INV'!D39=\"SI\",'INTRODUCCIÓN ESPECIES FASE INV'!#REF!,NA())","v":{"$error":"#N/A"}},{"$f":"IF('INTRODUCCIÓN ESPECIES FASE INV'!#REF!=\"SI\",'OBLIGACIONES APLICABLES'!#REF!,NA())","v":{"$error":"#REF!"}},{"$f":"IF('INTRODUCCIÓN ESPECIES FASE INV'!#REF!=\"SI\",'OBLIGACIONES APLICABLES'!#REF!,NA())","v":{"$error":"#REF!"}}]
[{"$f":"IF('INTRODUCCIÓN ESPECIES FASE INV'!D55=\"SI\",'INTRODUCCIÓN ESPECIES FASE INV'!B55,NA())","v":{"$error":"#N/A"}},{"$f":"IF('INTRODUCCIÓN ESPECIES FASE INV'!D55=\"SI\",'INTRODUCCIÓN ESPECIES FASE INV'!#REF!,NA())","v":{"$error":"#N/A"}},{"$f":"IF('INTRODUCCIÓN ESPECIES FASE INV'!#REF!=\"SI\",'OBLIGACIONES APLICABLES'!#REF!,NA())","v":{"$error":"#REF!"}},{"$f":"IF('INTRODUCCIÓN ESPECIES FASE INV'!#REF!=\"SI\",'OBLIGACIONES APLICABLES'!#REF!,NA())","v":{"$error":"#REF!"}}]
[{"$f":"IF('INTRODUCCIÓN ESPECIES FASE INV'!D57=\"SI\",'INTRODUCCIÓN ESPECIES FASE INV'!B57,NA())","v":{"$error":"#N/A"}},{"$f":"IF('INTRODUCCIÓN ESPECIES FASE INV'!D57=\"SI\",'INTRODUCCIÓN ESPECIES FASE INV'!#REF!,NA())","v":{"$error":"#N/A"}},{"$f":"IF('INTRODUCCIÓN ESPECIES FASE INV'!#REF!=\"SI\",'OBLIGACIONES APLICABLES'!#REF!,NA())","v":{"$error":"#REF!"}},{"$f":"IF('INTRODUCCIÓN ESPECIES FASE INV'!#REF!=\"SI\",'OBLIGACIONES APLICABLES'!#REF!,NA())","v":{"$error":"#REF!"}}]
[{"$f":"IF('INTRODUCCIÓN ESPECIES FASE INV'!D58=\"SI\",'INTRODUCCIÓN ESPECIES FASE INV'!B58,NA())","v":{"$error":"#N/A"}},{"$f":"IF('INTRODUCCIÓN ESPECIES FASE INV'!D58=\"SI\",'INTRODUCCIÓN ESPECIES FASE INV'!#REF!,NA())","v":{"$error":"#N/A"}},{"$f":"IF('INTRODUCCIÓN ESPECIES FASE INV'!#REF!=\"SI\",'OBLIGACIONES APLICABLES'!#REF!,NA())","v":{"$error":"#REF!"}},{"$f":"IF('INTRODUCCIÓN ESPECIES FASE INV'!#REF!=\"SI\",'OBLIGACIONES APLICABLES'!#REF!,NA())","v":{"$error":"#REF!"}}]
[{"$f":"IF('INTRODUCCIÓN ESPECIES FASE INV'!#REF!=\"SI\",'INTRODUCCIÓN ESPECIES FASE INV'!#REF!,NA())","v":{"$error":"#REF!"}},{"$f":"IF('INTRODUCCIÓN ESPECIES FASE INV'!#REF!=\"SI\",'INTRODUCCIÓN ESPECIES FASE INV'!#REF!,NA())","v":{"$error":"#REF!"}},{"$f":"IF('INTRODUCCIÓN ESPECIES FASE INV'!#REF!=\"SI\",'OBLIGACIONES APLICABLES'!#REF!,NA())","v":{"$error":"#REF!"}},{"$f":"IF('INTRODUCCIÓN ESPECIES FASE INV'!#REF!=\"SI\",'OBLIGACIONES APLICABLES'!#REF!,NA())","v":{"$error":"#REF!"}}]
[{"$f":"IF('INTRODUCCIÓN ESPECIES FASE INV'!D59=\"SI\",'INTRODUCCIÓN ESPECIES FASE INV'!B59,NA())","v":{"$error":"#N/A"}},{"$f":"IF('INTRODUCCIÓN ESPECIES FASE INV'!D59=\"SI\",'INTRODUCCIÓN ESPECIES FASE INV'!#REF!,NA())","v":{"$error":"#N/A"}},{"$f":"IF('INTRODUCCIÓN ESPECIES FASE INV'!#REF!=\"SI\",'OBLIGACIONES APLICABLES'!#REF!,NA())","v":{"$error":"#REF!"}},{"$f":"IF('INTRODUCCIÓN ESPECIES FASE INV'!#REF!=\"SI\",'OBLIGACIONES APLICABLES'!#REF!,NA())","v":{"$error":"#REF!"}}]
[{"$f":"IF('INTRODUCCIÓN ESPECIES FASE INV'!#REF!=\"SI\",'INTRODUCCIÓN ESPECIES FASE INV'!#REF!,NA())","v":{"$error":"#REF!"}},{"$f":"IF('INTRODUCCIÓN ESPECIES FASE INV'!#REF!=\"SI\",'INTRODUCCIÓN ESPECIES FASE INV'!#REF!,NA())","v":{"$error":"#REF!"}},{"$f":"IF('INTRODUCCIÓN ESPECIES FASE INV'!#REF!=\"SI\",'OBLIGACIONES APLICABLES'!#REF!,NA())","v":{"$error":"#REF!"}},{"$f":"IF('INTRODUCCIÓN ESPECIES FASE INV'!#REF!=\"SI\",'OBLIGACIONES APLICABLES'!#REF!,NA())","v":{"$error":"#REF!"}}]
[{"$f":"IF('INTRODUCCIÓN ESPECIES FASE INV'!D62=\"SI\",'INTRODUCCIÓN ESPECIES FASE INV'!B62,NA())","v":{"$error":"#N/A"}},{"$f":"IF('INTRODUCCIÓN ESPECIES FASE INV'!D62=\"SI\",'INTRODUCCIÓN ESPECIES FASE INV'!#REF!,NA())","v":{"$error":"#N/A"}},{"$f":"IF('INTRODUCCIÓN ESPECIES FASE INV'!#REF!=\"SI\",'OBLIGACIONES APLICABLES'!#REF!,NA())","v":{"$error":"#REF!"}},{"$f":"IF('INTRODUCCIÓN ESPECIES FASE INV'!#REF!=\"SI\",'OBLIGACIONES APLICABLES'!#REF!,NA())","v":{"$error":"#REF!"}}]
[{"$f":"IF('INTRODUCCIÓN ESPECIES FASE INV'!#REF!=\"SI\",'INTRODUCCIÓN ESPECIES FASE INV'!#REF!,NA())","v":{"$error":"#REF!"}},{"$f":"IF('INTRODUCCIÓN ESPECIES FASE INV'!#REF!=\"SI\",'INTRODUCCIÓN ESPECIES FASE INV'!#REF!,NA())","v":{"$error":"#REF!"}},{"$f":"IF('INTRODUCCIÓN ESPECIES FASE INV'!#REF!=\"SI\",'OBLIGACIONES APLICABLES'!#REF!,NA())","v":{"$error":"#REF!"}},{"$f":"IF('INTRODUCCIÓN ESPECIES FASE INV'!#REF!=\"SI\",'OBLIGACIONES APLICABLES'!#REF!,NA())","v":{"$error":"#REF!"}}]
[{"$f":"IF('INTRODUCCIÓN ESPECIES FASE INV'!D63=\"SI\",'INTRODUCCIÓN ESPECIES FASE INV'!B63,NA())","v":{"$error":"#N/A"}},{"$f":"IF('INTRODUCCIÓN ESPECIES FASE INV'!D63=\"SI\",'INTRODUCCIÓN ESPECIES FASE INV'!#REF!,NA())","v":{"$error":"#N/A"}},{"$f":"IF('INTRODUCCIÓN ESPECIES FASE INV'!#REF!=\"SI\",'OBLIGACIONES APLICABLES'!#REF!,NA())","v":{"$error":"#REF!"}},{"$f":"IF('INTRODUCCIÓN ESPECIES FASE INV'!#REF!=\"SI\",'OBLIGACIONES APLICABLES'!#REF!,NA())","v":{"$error":"#REF!"}}]
[{"$f":"IF('INTRODUCCIÓN ESPECIES FASE INV'!D64=\"SI\",'INTRODUCCIÓN ESPECIES FASE INV'!B64,NA())","v":{"$error":"#N/A"}},{"$f":"IF('INTRODUCCIÓN ESPECIES FASE INV'!D64=\"SI\",'INTRODUCCIÓN ESPECIES FASE INV'!#REF!,NA())","v":{"$error":"#N/A"}},{"$f":"IF('INTRODUCCIÓN ESPECIES FASE INV'!#REF!=\"SI\",'OBLIGACIONES APLICABLES'!#REF!,NA())","v":{"$error":"#REF!"}},{"$f":"IF('INTRODUCCIÓN ESPECIES FASE INV'!#REF!=\"SI\",'OBLIGACIONES APLICABLES'!#REF!,NA())","v":{"$error":"#REF!"}}]
[{"$f":"IF('INTRODUCCIÓN ESPECIES FASE INV'!#REF!=\"SI\",'INTRODUCCIÓN ESPECIES FASE INV'!#REF!,NA())","v":{"$error":"#REF!"}},{"$f":"IF('INTRODUCCIÓN ESPECIES FASE INV'!#REF!=\"SI\",'INTRODUCCIÓN ESPECIES FASE INV'!#REF!,NA())","v":{"$error":"#REF!"}},{"$f":"IF('INTRODUCCIÓN ESPECIES FASE INV'!#REF!=\"SI\",'OBLIGACIONES APLICABLES'!#REF!,NA())","v":{"$error":"#REF!"}},{"$f":"IF('INTRODUCCIÓN ESPECIES FASE INV'!#REF!=\"SI\",'OBLIGACIONES APLICABLES'!#REF!,NA())","v":{"$error":"#REF!"}}]
[{"$f":"IF('INTRODUCCIÓN ESPECIES FASE INV'!#REF!=\"SI\",'INTRODUCCIÓN ESPECIES FASE INV'!#REF!,NA())","v":{"$error":"#REF!"}},{"$f":"IF('INTRODUCCIÓN ESPECIES FASE INV'!#REF!=\"SI\",'INTRODUCCIÓN ESPECIES FASE INV'!#REF!,NA())","v":{"$error":"#REF!"}},{"$f":"IF('INTRODUCCIÓN ESPECIES FASE INV'!#REF!=\"SI\",'OBLIGACIONES APLICABLES'!#REF!,NA())","v":{"$error":"#REF!"}},{"$f":"IF('INTRODUCCIÓN ESPECIES FASE INV'!#REF!=\"SI\",'OBLIGACIONES APLICABLES'!#REF!,NA())","v":{"$error":"#REF!"}}]
[{"$f":"IF('INTRODUCCIÓN ESPECIES FASE INV'!#REF!=\"SI\",'INTRODUCCIÓN ESPECIES FASE INV'!#REF!,NA())","v":{"$error":"#REF!"}},{"$f":"IF('INTRODUCCIÓN ESPECIES FASE INV'!#REF!=\"SI\",'INTRODUCCIÓN ESPECIES FASE INV'!#REF!,NA())","v":{"$error":"#REF!"}},{"$f":"IF('INTRODUCCIÓN ESPECIES FASE INV'!#REF!=\"SI\",'OBLIGACIONES APLICABLES'!#REF!,NA())","v":{"$error":"#REF!"}},{"$f":"IF('INTRODUCCIÓN ESPECIES FASE INV'!#REF!=\"SI\",'OBLIGACIONES APLICABLES'!#REF!,NA())","v":{"$error":"#REF!"}}]
[{"$f":"IF('INTRODUCCIÓN ESPECIES FASE INV'!#REF!=\"SI\",'INTRODUCCIÓN ESPECIES FASE INV'!#REF!,NA())","v":{"$error":"#REF!"}},{"$f":"IF('INTRODUCCIÓN ESPECIES FASE INV'!#REF!=\"SI\",'INTRODUCCIÓN ESPECIES FASE INV'!#REF!,NA())","v":{"$error":"#REF!"}},{"$f":"IF('INTRODUCCIÓN ESPECIES FASE INV'!#REF!=\"SI\",'OBLIGACIONES APLICABLES'!#REF!,NA())","v":{"$error":"#REF!"}},{"$f":"IF('INTRODUCCIÓN ESPECIES FASE INV'!#REF!=\"SI\",'OBLIGACIONES APLICABLES'!#REF!,NA())","v":{"$error":"#REF!"}}]
[{"$f":"IF('INTRODUCCIÓN ESPECIES FASE INV'!#REF!=\"SI\",'INTRODUCCIÓN ESPECIES FASE INV'!#REF!,NA())","v":{"$error":"#REF!"}},{"$f":"IF('INTRODUCCIÓN ESPECIES FASE INV'!#REF!=\"SI\",'INTRODUCCIÓN ESPECIES FASE INV'!#REF!,NA())","v":{"$error":"#REF!"}},{"$f":"IF('INTRODUCCIÓN ESPECIES FASE INV'!#REF!=\"SI\",'OBLIGACIONES APLICABLES'!#REF!,NA())","v":{"$error":"#REF!"}},{"$f":"IF('INTRODUCCIÓN ESPECIES FASE INV'!#REF!=\"SI\",'OBLIGACIONES APLICABLES'!#REF!,NA())","v":{"$error":"#REF!"}}]
[{"$f":"IF('INTRODUCCIÓN ESPECIES FASE INV'!#REF!=\"SI\",'INTRODUCCIÓN ESPECIES FASE INV'!#REF!,NA())","v":{"$error":"#REF!"}},{"$f":"IF('INTRODUCCIÓN ESPECIES FASE INV'!#REF!=\"SI\",'INTRODUCCIÓN ESPECIES FASE INV'!#REF!,NA())","v":{"$error":"#REF!"}},{"$f":"IF('INTRODUCCIÓN ESPECIES FASE INV'!#REF!=\"SI\",'OBLIGACIONES APLICABLES'!#REF!,NA())","v":{"$error":"#REF!"}},{"$f":"IF('INTRODUCCIÓN ESPECIES FASE INV'!#REF!=\"SI\",'OBLIGACIONES APLICABLES'!#REF!,NA())","v":{"$error":"#REF!"}}]
[{"$f":"IF('INTRODUCCIÓN ESPECIES FASE INV'!#REF!=\"SI\",'INTRODUCCIÓN ESPECIES FASE INV'!#REF!,NA())","v":{"$error":"#REF!"}},{"$f":"IF('INTRODUCCIÓN ESPECIES FASE INV'!#REF!=\"SI\",'INTRODUCCIÓN ESPECIES FASE INV'!#REF!,NA())","v":{"$error":"#REF!"}},{"$f":"IF('INTRODUCCIÓN ESPECIES FASE INV'!#REF!=\"SI\",'OBLIGACIONES APLICABLES'!#REF!,NA())","v":{"$error":"#REF!"}},{"$f":"IF('INTRODUCCIÓN ESPECIES FASE INV'!#REF!=\"SI\",'OBLIGACIONES APLICABLES'!#REF!,NA())","v":{"$error":"#REF!"}}]
[{"$f":"IF('INTRODUCCIÓN ESPECIES FASE INV'!#REF!=\"SI\",'INTRODUCCIÓN ESPECIES FASE INV'!#REF!,NA())","v":{"$error":"#REF!"}},{"$f":"IF('INTRODUCCIÓN ESPECIES FASE INV'!#REF!=\"SI\",'INTRODUCCIÓN ESPECIES FASE INV'!#REF!,NA())","v":{"$error":"#REF!"}},{"$f":"IF('INTRODUCCIÓN ESPECIES FASE INV'!#REF!=\"SI\",'OBLIGACIONES APLICABLES'!#REF!,NA())","v":{"$error":"#REF!"}},{"$f":"IF('INTRODUCCIÓN ESPECIES FASE INV'!#REF!=\"SI\",'OBLIGACIONES APLICABLES'!#REF!,NA())","v":{"$error":"#REF!"}}]
[{"$f":"IF('INTRODUCCIÓN ESPECIES FASE INV'!#REF!=\"SI\",'INTRODUCCIÓN ESPECIES FASE INV'!#REF!,NA())","v":{"$error":"#REF!"}},{"$f":"IF('INTRODUCCIÓN ESPECIES FASE INV'!#REF!=\"SI\",'INTRODUCCIÓN ESPECIES FASE INV'!#REF!,NA())","v":{"$error":"#REF!"}},{"$f":"IF('INTRODUCCIÓN ESPECIES FASE INV'!#REF!=\"SI\",'OBLIGACIONES APLICABLES'!#REF!,NA())","v":{"$error":"#REF!"}},{"$f":"IF('INTRODUCCIÓN ESPECIES FASE INV'!#REF!=\"SI\",'OBLIGACIONES APLICABLES'!#REF!,NA())","v":{"$error":"#REF!"}}]
[{"$f":"IF('INTRODUCCIÓN ESPECIES FASE INV'!#REF!=\"SI\",'INTRODUCCIÓN ESPECIES FASE INV'!#REF!,NA())","v":{"$error":"#REF!"}},{"$f":"IF('INTRODUCCIÓN ESPECIES FASE INV'!#REF!=\"SI\",'INTRODUCCIÓN ESPECIES FASE INV'!#REF!,NA())","v":{"$error":"#REF!"}},{"$f":"IF('INTRODUCCIÓN ESPECIES FASE INV'!#REF!=\"SI\",'OBLIGACIONES APLICABLES'!#REF!,NA())","v":{"$error":"#REF!"}},{"$f":"IF('INTRODUCCIÓN ESPECIES FASE INV'!#REF!=\"SI\",'OBLIGACIONES APLICABLES'!#REF!,NA())","v":{"$error":"#REF!"}}]
[{"$f":"IF('INTRODUCCIÓN ESPECIES FASE INV'!#REF!=\"SI\",'INTRODUCCIÓN ESPECIES FASE INV'!#REF!,NA())","v":{"$error":"#REF!"}},{"$f":"IF('INTRODUCCIÓN ESPECIES FASE INV'!#REF!=\"SI\",'INTRODUCCIÓN ESPECIES FASE INV'!#REF!,NA())","v":{"$error":"#REF!"}},{"$f":"IF('INTRODUCCIÓN ESPECIES FASE INV'!#REF!=\"SI\",'OBLIGACIONES APLICABLES'!#REF!,NA())","v":{"$error":"#REF!"}},{"$f":"IF('INTRODUCCIÓN ESPECIES FASE INV'!#REF!=\"SI\",'OBLIGACIONES APLICABLES'!#REF!,NA())","v":{"$error":"#REF!"}}]
[{"$f":"IF('INTRODUCCIÓN ESPECIES FASE INV'!#REF!=\"SI\",'INTRODUCCIÓN ESPECIES FASE INV'!#REF!,NA())","v":{"$error":"#REF!"}},{"$f":"IF('INTRODUCCIÓN ESPECIES FASE INV'!#REF!=\"SI\",'INTRODUCCIÓN ESPECIES FASE INV'!#REF!,NA())","v":{"$error":"#REF!"}},{"$f":"IF('INTRODUCCIÓN ESPECIES FASE INV'!#REF!=\"SI\",'OBLIGACIONES APLICABLES'!#REF!,NA())","v":{"$error":"#REF!"}},{"$f":"IF('INTRODUCCIÓN ESPECIES FASE INV'!#REF!=\"SI\",'OBLIGACIONES APLICABLES'!#REF!,NA())","v":{"$error":"#REF!"}}]
[{"$f":"IF('INTRODUCCIÓN ESPECIES FASE INV'!D66=\"SI\",'INTRODUCCIÓN ESPECIES FASE INV'!B66,NA())","v":{"$error":"#N/A"}},{"$f":"IF('INTRODUCCIÓN ESPECIES FASE INV'!D66=\"SI\",'INTRODUCCIÓN ESPECIES FASE INV'!#REF!,NA())","v":{"$error":"#N/A"}},{"$f":"IF('INTRODUCCIÓN ESPECIES FASE INV'!#REF!=\"SI\",'OBLIGACIONES APLICABLES'!#REF!,NA())","v":{"$error":"#REF!"}},{"$f":"IF('INTRODUCCIÓN ESPECIES FASE INV'!#REF!=\"SI\",'OBLIGACIONES APLICABLES'!#REF!,NA())","v":{"$error":"#REF!"}}]
[{"$f":"IF('INTRODUCCIÓN ESPECIES FASE INV'!#REF!=\"SI\",'INTRODUCCIÓN ESPECIES FASE INV'!#REF!,NA())","v":{"$error":"#REF!"}},{"$f":"IF('INTRODUCCIÓN ESPECIES FASE INV'!#REF!=\"SI\",'INTRODUCCIÓN ESPECIES FASE INV'!#REF!,NA())","v":{"$error":"#REF!"}},{"$f":"IF('INTRODUCCIÓN ESPECIES FASE INV'!#REF!=\"SI\",'OBLIGACIONES APLICABLES'!#REF!,NA())","v":{"$error":"#REF!"}},{"$f":"IF('INTRODUCCIÓN ESPECIES FASE INV'!#REF!=\"SI\",'OBLIGACIONES APLICABLES'!#REF!,NA())","v":{"$error":"#REF!"}}]
[{"$f":"IF('INTRODUCCIÓN ESPECIES FASE INV'!#REF!=\"SI\",'INTRODUCCIÓN ESPECIES FASE INV'!#REF!,NA())","v":{"$error":"#REF!"}},{"$f":"IF('INTRODUCCIÓN ESPECIES FASE INV'!#REF!=\"SI\",'INTRODUCCIÓN ESPECIES FASE INV'!#REF!,NA())","v":{"$error":"#REF!"}},{"$f":"IF('INTRODUCCIÓN ESPECIES FASE INV'!#REF!=\"SI\",'OBLIGACIONES APLICABLES'!#REF!,NA())","v":{"$error":"#REF!"}},{"$f":"IF('INTRODUCCIÓN ESPECIES FASE INV'!#REF!=\"SI\",'OBLIGACIONES APLICABLES'!#REF!,NA())","v":{"$error":"#REF!"}}]
[{"$f":"IF('INTRODUCCIÓN ESPECIES FASE INV'!#REF!=\"SI\",'INTRODUCCIÓN ESPECIES FASE INV'!#REF!,NA())","v":{"$error":"#REF!"}},{"$f":"IF('INTRODUCCIÓN ESPECIES FASE INV'!#REF!=\"SI\",'INTRODUCCIÓN ESPECIES FASE INV'!#REF!,NA())","v":{"$error":"#REF!"}},{"$f":"IF('INTRODUCCIÓN ESPECIES FASE INV'!#REF!=\"SI\",'OBLIGACIONES APLICABLES'!#REF!,NA())","v":{"$error":"#REF!"}},{"$f":"IF('INTRODUCCIÓN ESPECIES FASE INV'!#REF!=\"SI\",'OBLIGACIONES APLICABLES'!#REF!,NA())","v":{"$error":"#REF!"}}]
[{"$f":"IF('INTRODUCCIÓN ESPECIES FASE INV'!#REF!=\"SI\",'INTRODUCCIÓN ESPECIES FASE INV'!#REF!,NA())","v":{"$error":"#REF!"}},{"$f":"IF('INTRODUCCIÓN ESPECIES FASE INV'!#REF!=\"SI\",'INTRODUCCIÓN ESPECIES FASE INV'!#REF!,NA())","v":{"$error":"#REF!"}},{"$f":"IF('INTRODUCCIÓN ESPECIES FASE INV'!#REF!=\"SI\",'OBLIGACIONES APLICABLES'!#REF!,NA())","v":{"$error":"#REF!"}},{"$f":"IF('INTRODUCCIÓN ESPECIES FASE INV'!#REF!=\"SI\",'OBLIGACIONES APLICABLES'!#REF!,NA())","v":{"$error":"#REF!"}}]
[{"$f":"IF('INTRODUCCIÓN ESPECIES FASE INV'!#REF!=\"SI\",'INTRODUCCIÓN ESPECIES FASE INV'!#REF!,NA())","v":{"$error":"#REF!"}},{"$f":"IF('INTRODUCCIÓN ESPECIES FASE INV'!#REF!=\"SI\",'INTRODUCCIÓN ESPECIES FASE INV'!#REF!,NA())","v":{"$error":"#REF!"}},{"$f":"IF('INTRODUCCIÓN ESPECIES FASE INV'!#REF!=\"SI\",'OBLIGACIONES APLICABLES'!#REF!,NA())","v":{"$error":"#REF!"}},{"$f":"IF('INTRODUCCIÓN ESPECIES FASE INV'!#REF!=\"SI\",'OBLIGACIONES APLICABLES'!#REF!,NA())","v":{"$error":"#REF!"}}]
[{"$f":"IF('INTRODUCCIÓN ESPECIES FASE INV'!#REF!=\"SI\",'INTRODUCCIÓN ESPECIES FASE INV'!#REF!,NA())","v":{"$error":"#REF!"}},{"$f":"IF('INTRODUCCIÓN ESPECIES FASE INV'!#REF!=\"SI\",'INTRODUCCIÓN ESPECIES FASE INV'!#REF!,NA())","v":{"$error":"#REF!"}},{"$f":"IF('INTRODUCCIÓN ESPECIES FASE INV'!#REF!=\"SI\",'OBLIGACIONES APLICABLES'!#REF!,NA())","v":{"$error":"#REF!"}},{"$f":"IF('INTRODUCCIÓN ESPECIES FASE INV'!#REF!=\"SI\",'OBLIGACIONES APLICABLES'!#REF!,NA())","v":{"$error":"#REF!"}}]
[{"$f":"IF('INTRODUCCIÓN ESPECIES FASE INV'!#REF!=\"SI\",'INTRODUCCIÓN ESPECIES FASE INV'!#REF!,NA())","v":{"$error":"#REF!"}},{"$f":"IF('INTRODUCCIÓN ESPECIES FASE INV'!#REF!=\"SI\",'INTRODUCCIÓN ESPECIES FASE INV'!#REF!,NA())","v":{"$error":"#REF!"}},{"$f":"IF('INTRODUCCIÓN ESPECIES FASE INV'!#REF!=\"SI\",'OBLIGACIONES APLICABLES'!#REF!,NA())","v":{"$error":"#REF!"}},{"$f":"IF('INTRODUCCIÓN ESPECIES FASE INV'!#REF!=\"SI\",'OBLIGACIONES APLICABLES'!#REF!,NA())","v":{"$error":"#REF!"}}]
[{"$f":"IF('INTRODUCCIÓN ESPECIES FASE INV'!#REF!=\"SI\",'INTRODUCCIÓN ESPECIES FASE INV'!#REF!,NA())","v":{"$error":"#REF!"}},{"$f":"IF('INTRODUCCIÓN ESPECIES FASE INV'!#REF!=\"SI\",'INTRODUCCIÓN ESPECIES FASE INV'!#REF!,NA())","v":{"$error":"#REF!"}},{"$f":"IF('INTRODUCCIÓN ESPECIES FASE INV'!#REF!=\"SI\",'OBLIGACIONES APLICABLES'!#REF!,NA())","v":{"$error":"#REF!"}},{"$f":"IF('INTRODUCCIÓN ESPECIES FASE INV'!#REF!=\"SI\",'OBLIGACIONES APLICABLES'!#REF!,NA())","v":{"$error":"#REF!"}}]
[{"$f":"IF('INTRODUCCIÓN ESPECIES FASE INV'!#REF!=\"SI\",'INTRODUCCIÓN ESPECIES FASE INV'!#REF!,NA())","v":{"$error":"#REF!"}},{"$f":"IF('INTRODUCCIÓN ESPECIES FASE INV'!#REF!=\"SI\",'INTRODUCCIÓN ESPECIES FASE INV'!#REF!,NA())","v":{"$error":"#REF!"}},{"$f":"IF('INTRODUCCIÓN ESPECIES FASE INV'!#REF!=\"SI\",'OBLIGACIONES APLICABLES'!#REF!,NA())","v":{"$error":"#REF!"}},{"$f":"IF('INTRODUCCIÓN ESPECIES FASE INV'!#REF!=\"SI\",'OBLIGACIONES APLICABLES'!#REF!,NA())","v":{"$error":"#REF!"}}]
[{"$f":"IF('INTRODUCCIÓN ESPECIES FASE INV'!#REF!=\"SI\",'INTRODUCCIÓN ESPECIES FASE INV'!#REF!,NA())","v":{"$error":"#REF!"}},{"$f":"IF('INTRODUCCIÓN ESPECIES FASE INV'!#REF!=\"SI\",'INTRODUCCIÓN ESPECIES FASE INV'!#REF!,NA())","v":{"$error":"#REF!"}},{"$f":"IF('INTRODUCCIÓN ESPECIES FASE INV'!#REF!=\"SI\",'OBLIGACIONES APLICABLES'!#REF!,NA())","v":{"$error":"#REF!"}},{"$f":"IF('INTRODUCCIÓN ESPECIES FASE INV'!#REF!=\"SI\",'OBLIGACIONES APLICABLES'!#REF!,NA())","v":{"$error":"#REF!"}}]
[{"$f":"IF('INTRODUCCIÓN ESPECIES FASE INV'!#REF!=\"SI\",'INTRODUCCIÓN ESPECIES FASE INV'!#REF!,NA())","v":{"$error":"#REF!"}},{"$f":"IF('INTRODUCCIÓN ESPECIES FASE INV'!#REF!=\"SI\",'INTRODUCCIÓN ESPECIES FASE INV'!#REF!,NA())","v":{"$error":"#REF!"}},{"$f":"IF('INTRODUCCIÓN ESPECIES FASE INV'!#REF!=\"SI\",'OBLIGACIONES APLICABLES'!#REF!,NA())","v":{"$error":"#REF!"}},{"$f":"IF('INTRODUCCIÓN ESPECIES FASE INV'!#REF!=\"SI\",'OBLIGACIONES APLICABLES'!#REF!,NA())","v":{"$error":"#REF!"}}]
[{"$f":"IF('INTRODUCCIÓN ESPECIES FASE INV'!#REF!=\"SI\",'INTRODUCCIÓN ESPECIES FASE INV'!#REF!,NA())","v":{"$error":"#REF!"}},{"$f":"IF('INTRODUCCIÓN ESPECIES FASE INV'!#REF!=\"SI\",'INTRODUCCIÓN ESPECIES FASE INV'!#REF!,NA())","v":{"$error":"#REF!"}},{"$f":"IF('INTRODUCCIÓN ESPECIES FASE INV'!#REF!=\"SI\",'OBLIGACIONES APLICABLES'!#REF!,NA())","v":{"$error":"#REF!"}},{"$f":"IF('INTRODUCCIÓN ESPECIES FASE INV'!#REF!=\"SI\",'OBLIGACIONES APLICABLES'!#REF!,NA())","v":{"$error":"#REF!"}}]
[{"$f":"IF('INTRODUCCIÓN ESPECIES FASE INV'!#REF!=\"SI\",'INTRODUCCIÓN ESPECIES FASE INV'!#REF!,NA())","v":{"$error":"#REF!"}},{"$f":"IF('INTRODUCCIÓN ESPECIES FASE INV'!#REF!=\"SI\",'INTRODUCCIÓN ESPECIES FASE INV'!#REF!,NA())","v":{"$error":"#REF!"}},{"$f":"IF('INTRODUCCIÓN ESPECIES FASE INV'!#REF!=\"SI\",'OBLIGACIONES APLICABLES'!#REF!,NA())","v":{"$error":"#REF!"}},{"$f":"IF('INTRODUCCIÓN ESPECIES FASE INV'!#REF!=\"SI\",'OBLIGACIONES APLICABLES'!#REF!,NA())","v":{"$error":"#REF!"}}]
[{"$f":"IF('INTRODUCCIÓN ESPECIES FASE INV'!#REF!=\"SI\",'INTRODUCCIÓN ESPECIES FASE INV'!#REF!,NA())","v":{"$error":"#REF!"}},{"$f":"IF('INTRODUCCIÓN ESPECIES FASE INV'!#REF!=\"SI\",'INTRODUCCIÓN ESPECIES FASE INV'!#REF!,NA())","v":{"$error":"#REF!"}},{"$f":"IF('INTRODUCCIÓN ESPECIES FASE INV'!#REF!=\"SI\",'OBLIGACIONES APLICABLES'!#REF!,NA())","v":{"$error":"#REF!"}},{"$f":"IF('INTRODUCCIÓN ESPECIES FASE INV'!#REF!=\"SI\",'OBLIGACIONES APLICABLES'!#REF!,NA())","v":{"$error":"#REF!"}}]
[{"$f":"IF('INTRODUCCIÓN ESPECIES FASE INV'!#REF!=\"SI\",'INTRODUCCIÓN ESPECIES FASE INV'!#REF!,NA())","v":{"$error":"#REF!"}},{"$f":"IF('INTRODUCCIÓN ESPECIES FASE INV'!#REF!=\"SI\",'INTRODUCCIÓN ESPECIES FASE INV'!#REF!,NA())","v":{"$error":"#REF!"}},{"$f":"IF('INTRODUCCIÓN ESPECIES FASE INV'!#REF!=\"SI\",'OBLIGACIONES APLICABLES'!#REF!,NA())","v":{"$error":"#REF!"}},{"$f":"IF('INTRODUCCIÓN ESPECIES FASE INV'!#REF!=\"SI\",'OBLIGACIONES APLICABLES'!#REF!,NA())","v":{"$error":"#REF!"}}]
[{"$f":"IF('INTRODUCCIÓN ESPECIES FASE INV'!#REF!=\"SI\",'INTRODUCCIÓN ESPECIES FASE INV'!#REF!,NA())","v":{"$error":"#REF!"}},{"$f":"IF('INTRODUCCIÓN ESPECIES FASE INV'!#REF!=\"SI\",'INTRODUCCIÓN ESPECIES FASE INV'!#REF!,NA())","v":{"$error":"#REF!"}},{"$f":"IF('INTRODUCCIÓN ESPECIES FASE INV'!#REF!=\"SI\",'OBLIGACIONES APLICABLES'!#REF!,NA())","v":{"$error":"#REF!"}},{"$f":"IF('INTRODUCCIÓN ESPECIES FASE INV'!#REF!=\"SI\",'OBLIGACIONES APLICABLES'!#REF!,NA())","v":{"$error":"#REF!"}}]
[{"$f":"IF('INTRODUCCIÓN ESPECIES FASE INV'!#REF!=\"SI\",'INTRODUCCIÓN ESPECIES FASE INV'!#REF!,NA())","v":{"$error":"#REF!"}},{"$f":"IF('INTRODUCCIÓN ESPECIES FASE INV'!#REF!=\"SI\",'INTRODUCCIÓN ESPECIES FASE INV'!#REF!,NA())","v":{"$error":"#REF!"}},{"$f":"IF('INTRODUCCIÓN ESPECIES FASE INV'!#REF!=\"SI\",'OBLIGACIONES APLICABLES'!#REF!,NA())","v":{"$error":"#REF!"}},{"$f":"IF('INTRODUCCIÓN ESPECIES FASE INV'!#REF!=\"SI\",'OBLIGACIONES APLICABLES'!#REF!,NA())","v":{"$error":"#REF!"}}]
[{"$f":"IF('INTRODUCCIÓN ESPECIES FASE INV'!#REF!=\"SI\",'INTRODUCCIÓN ESPECIES FASE INV'!#REF!,NA())","v":{"$error":"#REF!"}},{"$f":"IF('INTRODUCCIÓN ESPECIES FASE INV'!#REF!=\"SI\",'INTRODUCCIÓN ESPECIES FASE INV'!#REF!,NA())","v":{"$error":"#REF!"}},{"$f":"IF('INTRODUCCIÓN ESPECIES FASE INV'!#REF!=\"SI\",'OBLIGACIONES APLICABLES'!#REF!,NA())","v":{"$error":"#REF!"}},{"$f":"IF('INTRODUCCIÓN ESPECIES FASE INV'!#REF!=\"SI\",'OBLIGACIONES APLICABLES'!#REF!,NA())","v":{"$error":"#REF!"}}]
[{"$f":"IF('INTRODUCCIÓN ESPECIES FASE INV'!#REF!=\"SI\",'INTRODUCCIÓN ESPECIES FASE INV'!#REF!,NA())","v":{"$error":"#REF!"}},{"$f":"IF('INTRODUCCIÓN ESPECIES FASE INV'!#REF!=\"SI\",'INTRODUCCIÓN ESPECIES FASE INV'!#REF!,NA())","v":{"$error":"#REF!"}},{"$f":"IF('INTRODUCCIÓN ESPECIES FASE INV'!#REF!=\"SI\",'OBLIGACIONES APLICABLES'!#REF!,NA())","v":{"$error":"#REF!"}},{"$f":"IF('INTRODUCCIÓN ESPECIES FASE INV'!#REF!=\"SI\",'OBLIGACIONES APLICABLES'!#REF!,NA())","v":{"$error":"#REF!"}}]
[{"$f":"IF('INTRODUCCIÓN ESPECIES FASE INV'!#REF!=\"SI\",'INTRODUCCIÓN ESPECIES FASE INV'!#REF!,NA())","v":{"$error":"#REF!"}},{"$f":"IF('INTRODUCCIÓN ESPECIES FASE INV'!#REF!=\"SI\",'INTRODUCCIÓN ESPECIES FASE INV'!#REF!,NA())","v":{"$error":"#REF!"}},{"$f":"IF('INTRODUCCIÓN ESPECIES FASE INV'!#REF!=\"SI\",'OBLIGACIONES APLICABLES'!#REF!,NA())","v":{"$error":"#REF!"}},{"$f":"IF('INTRODUCCIÓN ESPECIES FASE INV'!#REF!=\"SI\",'OBLIGACIONES APLICABLES'!#REF!,NA())","v":{"$error":"#REF!"}}]
[{"$f":"IF('INTRODUCCIÓN ESPECIES FASE INV'!#REF!=\"SI\",'INTRODUCCIÓN ESPECIES FASE INV'!#REF!,NA())","v":{"$error":"#REF!"}},{"$f":"IF('INTRODUCCIÓN ESPECIES FASE INV'!#REF!=\"SI\",'INTRODUCCIÓN ESPECIES FASE INV'!#REF!,NA())","v":{"$error":"#REF!"}},{"$f":"IF('INTRODUCCIÓN ESPECIES FASE INV'!#REF!=\"SI\",'OBLIGACIONES APLICABLES'!#REF!,NA())","v":{"$error":"#REF!"}},{"$f":"IF('INTRODUCCIÓN ESPECIES FASE INV'!#REF!=\"SI\",'OBLIGACIONES APLICABLES'!#REF!,NA())","v":{"$error":"#REF!"}}]
[{"$f":"IF('INTRODUCCIÓN ESPECIES FASE INV'!#REF!=\"SI\",'INTRODUCCIÓN ESPECIES FASE INV'!#REF!,NA())","v":{"$error":"#REF!"}},{"$f":"IF('INTRODUCCIÓN ESPECIES FASE INV'!#REF!=\"SI\",'INTRODUCCIÓN ESPECIES FASE INV'!#REF!,NA())","v":{"$error":"#REF!"}},{"$f":"IF('INTRODUCCIÓN ESPECIES FASE INV'!#REF!=\"SI\",'OBLIGACIONES APLICABLES'!#REF!,NA())","v":{"$error":"#REF!"}},{"$f":"IF('INTRODUCCIÓN ESPECIES FASE INV'!#REF!=\"SI\",'OBLIGACIONES APLICABLES'!#REF!,NA())","v":{"$error":"#REF!"}}]
[{"$f":"IF('INTRODUCCIÓN ESPECIES FASE INV'!#REF!=\"SI\",'INTRODUCCIÓN ESPECIES FASE INV'!#REF!,NA())","v":{"$error":"#REF!"}},{"$f":"IF('INTRODUCCIÓN ESPECIES FASE INV'!#REF!=\"SI\",'INTRODUCCIÓN ESPECIES FASE INV'!#REF!,NA())","v":{"$error":"#REF!"}},{"$f":"IF('INTRODUCCIÓN ESPECIES FASE INV'!#REF!=\"SI\",'OBLIGACIONES APLICABLES'!#REF!,NA())","v":{"$error":"#REF!"}},{"$f":"IF('INTRODUCCIÓN ESPECIES FASE INV'!#REF!=\"SI\",'OBLIGACIONES APLICABLES'!#REF!,NA())","v":{"$error":"#REF!"}}]
[{"$f":"IF('INTRODUCCIÓN ESPECIES FASE INV'!#REF!=\"SI\",'INTRODUCCIÓN ESPECIES FASE INV'!#REF!,NA())","v":{"$error":"#REF!"}},{"$f":"IF('INTRODUCCIÓN ESPECIES FASE INV'!#REF!=\"SI\",'INTRODUCCIÓN ESPECIES FASE INV'!#REF!,NA())","v":{"$error":"#REF!"}},{"$f":"IF('INTRODUCCIÓN ESPECIES FASE INV'!#REF!=\"SI\",'OBLIGACIONES APLICABLES'!#REF!,NA())","v":{"$error":"#REF!"}},{"$f":"IF('INTRODUCCIÓN ESPECIES FASE INV'!#REF!=\"SI\",'OBLIGACIONES APLICABLES'!#REF!,NA())","v":{"$error":"#REF!"}}]
[{"$f":"IF('INTRODUCCIÓN ESPECIES FASE INV'!#REF!=\"SI\",'INTRODUCCIÓN ESPECIES FASE INV'!#REF!,NA())","v":{"$error":"#REF!"}},{"$f":"IF('INTRODUCCIÓN ESPECIES FASE INV'!#REF!=\"SI\",'INTRODUCCIÓN ESPECIES FASE INV'!#REF!,NA())","v":{"$error":"#REF!"}},{"$f":"IF('INTRODUCCIÓN ESPECIES FASE INV'!#REF!=\"SI\",'OBLIGACIONES APLICABLES'!#REF!,NA())","v":{"$error":"#REF!"}},{"$f":"IF('INTRODUCCIÓN ESPECIES FASE INV'!#REF!=\"SI\",'OBLIGACIONES APLICABLES'!#REF!,NA())","v":{"$error":"#REF!"}}]
[{"$f":"IF('INTRODUCCIÓN ESPECIES FASE INV'!#REF!=\"SI\",'INTRODUCCIÓN ESPECIES FASE INV'!#REF!,NA())","v":{"$error":"#REF!"}},{"$f":"IF('INTRODUCCIÓN ESPECIES FASE INV'!#REF!=\"SI\",'INTRODUCCIÓN ESPECIES FASE INV'!#REF!,NA())","v":{"$error":"#REF!"}},{"$f":"IF('INTRODUCCIÓN ESPECIES FASE INV'!#REF!=\"SI\",'OBLIGACIONES APLICABLES'!#REF!,NA())","v":{"$error":"#REF!"}},{"$f":"IF('INTRODUCCIÓN ESPECIES FASE INV'!#REF!=\"SI\",'OBLIGACIONES APLICABLES'!#REF!,NA())","v":{"$error":"#REF!"}}]
[{"$f":"IF('INTRODUCCIÓN ESPECIES FASE INV'!#REF!=\"SI\",'INTRODUCCIÓN ESPECIES FASE INV'!#REF!,NA())","v":{"$error":"#REF!"}},{"$f":"IF('INTRODUCCIÓN ESPECIES FASE INV'!#REF!=\"SI\",'INTRODUCCIÓN ESPECIES FASE INV'!#REF!,NA())","v":{"$error":"#REF!"}},{"$f":"IF('INTRODUCCIÓN ESPECIES FASE INV'!#REF!=\"SI\",'OBLIGACIONES APLICABLES'!#REF!,NA())","v":{"$error":"#REF!"}},{"$f":"IF('INTRODUCCIÓN ESPECIES FASE INV'!#REF!=\"SI\",'OBLIGACIONES APLICABLES'!#REF!,NA())","v":{"$error":"#REF!"}}]
[{"$f":"IF('INTRODUCCIÓN ESPECIES FASE INV'!#REF!=\"SI\",'INTRODUCCIÓN ESPECIES FASE INV'!#REF!,NA())","v":{"$error":"#REF!"}},{"$f":"IF('INTRODUCCIÓN ESPECIES FASE INV'!#REF!=\"SI\",'INTRODUCCIÓN ESPECIES FASE INV'!#REF!,NA())","v":{"$error":"#REF!"}},{"$f":"IF('INTRODUCCIÓN ESPECIES FASE INV'!#REF!=\"SI\",'OBLIGACIONES APLICABLES'!#REF!,NA())","v":{"$error":"#REF!"}},{"$f":"IF('INTRODUCCIÓN ESPECIES FASE INV'!#REF!=\"SI\",'OBLIGACIONES APLICABLES'!#REF!,NA())","v":{"$error":"#REF!"}}]
[{"$f":"IF('INTRODUCCIÓN ESPECIES FASE INV'!#REF!=\"SI\",'INTRODUCCIÓN ESPECIES FASE INV'!#REF!,NA())","v":{"$error":"#REF!"}},{"$f":"IF('INTRODUCCIÓN ESPECIES FASE INV'!#REF!=\"SI\",'INTRODUCCIÓN ESPECIES FASE INV'!#REF!,NA())","v":{"$error":"#REF!"}},{"$f":"IF('INTRODUCCIÓN ESPECIES FASE INV'!#REF!=\"SI\",'OBLIGACIONES APLICABLES'!#REF!,NA())","v":{"$error":"#REF!"}},{"$f":"IF('INTRODUCCIÓN ESPECIES FASE INV'!#REF!=\"SI\",'OBLIGACIONES APLICABLES'!#REF!,NA())","v":{"$error":"#REF!"}}]
[{"$f":"IF('INTRODUCCIÓN ESPECIES FASE INV'!#REF!=\"SI\",'INTRODUCCIÓN ESPECIES FASE INV'!#REF!,NA())","v":{"$error":"#REF!"}},{"$f":"IF('INTRODUCCIÓN ESPECIES FASE INV'!#REF!=\"SI\",'INTRODUCCIÓN ESPECIES FASE INV'!#REF!,NA())","v":{"$error":"#REF!"}},{"$f":"IF('INTRODUCCIÓN ESPECIES FASE INV'!#REF!=\"SI\",'OBLIGACIONES APLICABLES'!#REF!,NA())","v":{"$error":"#REF!"}},{"$f":"IF('INTRODUCCIÓN ESPECIES FASE INV'!#REF!=\"SI\",'OBLIGACIONES APLICABLES'!#REF!,NA())","v":{"$error":"#REF!"}}]
[{"$f":"IF('INTRODUCCIÓN ESPECIES FASE INV'!#REF!=\"SI\",'INTRODUCCIÓN ESPECIES FASE INV'!#REF!,NA())","v":{"$error":"#REF!"}},{"$f":"IF('INTRODUCCIÓN ESPECIES FASE INV'!#REF!=\"SI\",'INTRODUCCIÓN ESPECIES FASE INV'!#REF!,NA())","v":{"$error":"#REF!"}},{"$f":"IF('INTRODUCCIÓN ESPECIES FASE INV'!#REF!=\"SI\",'OBLIGACIONES APLICABLES'!#REF!,NA())","v":{"$error":"#REF!"}},{"$f":"IF('INTRODUCCIÓN ESPECIES FASE INV'!#REF!=\"SI\",'OBLIGACIONES APLICABLES'!#REF!,NA())","v":{"$error":"#REF!"}}]
[{"$f":"IF('INTRODUCCIÓN ESPECIES FASE INV'!#REF!=\"SI\",'INTRODUCCIÓN ESPECIES FASE INV'!#REF!,NA())","v":{"$error":"#REF!"}},{"$f":"IF('INTRODUCCIÓN ESPECIES FASE INV'!#REF!=\"SI\",'INTRODUCCIÓN ESPECIES FASE INV'!#REF!,NA())","v":{"$error":"#REF!"}},{"$f":"IF('INTRODUCCIÓN ESPECIES FASE INV'!#REF!=\"SI\",'OBLIGACIONES APLICABLES'!#REF!,NA())","v":{"$error":"#REF!"}},{"$f":"IF('INTRODUCCIÓN ESPECIES FASE INV'!#REF!=\"SI\",'OBLIGACIONES APLICABLES'!#REF!,NA())","v":{"$error":"#REF!"}}]
[{"$f":"IF('INTRODUCCIÓN ESPECIES FASE INV'!#REF!=\"SI\",'INTRODUCCIÓN ESPECIES FASE INV'!#REF!,NA())","v":{"$error":"#REF!"}},{"$f":"IF('INTRODUCCIÓN ESPECIES FASE INV'!#REF!=\"SI\",'INTRODUCCIÓN ESPECIES FASE INV'!#REF!,NA())","v":{"$error":"#REF!"}},{"$f":"IF('INTRODUCCIÓN ESPECIES FASE INV'!#REF!=\"SI\",'OBLIGACIONES APLICABLES'!#REF!,NA())","v":{"$error":"#REF!"}},{"$f":"IF('INTRODUCCIÓN ESPECIES FASE INV'!#REF!=\"SI\",'OBLIGACIONES APLICABLES'!#REF!,NA())","v":{"$error":"#REF!"}}]
[{"$f":"IF('INTRODUCCIÓN ESPECIES FASE INV'!#REF!=\"SI\",'INTRODUCCIÓN ESPECIES FASE INV'!#REF!,NA())","v":{"$error":"#REF!"}},{"$f":"IF('INTRODUCCIÓN ESPECIES FASE INV'!#REF!=\"SI\",'INTRODUCCIÓN ESPECIES FASE INV'!#REF!,NA())","v":{"$error":"#REF!"}},{"$f":"IF('INTRODUCCIÓN ESPECIES FASE INV'!#REF!=\"SI\",'OBLIGACIONES APLICABLES'!#REF!,NA())","v":{"$error":"#REF!"}},{"$f":"IF('INTRODUCCIÓN ESPECIES FASE INV'!#REF!=\"SI\",'OBLIGACIONES APLICABLES'!#REF!,NA())","v":{"$error":"#REF!"}}]
[{"$f":"IF('INTRODUCCIÓN ESPECIES FASE INV'!#REF!=\"SI\",'INTRODUCCIÓN ESPECIES FASE INV'!#REF!,NA())","v":{"$error":"#REF!"}},{"$f":"IF('INTRODUCCIÓN ESPECIES FASE INV'!#REF!=\"SI\",'INTRODUCCIÓN ESPECIES FASE INV'!#REF!,NA())","v":{"$error":"#REF!"}},{"$f":"IF('INTRODUCCIÓN ESPECIES FASE INV'!#REF!=\"SI\",'OBLIGACIONES APLICABLES'!#REF!,NA())","v":{"$error":"#REF!"}},{"$f":"IF('INTRODUCCIÓN ESPECIES FASE INV'!#REF!=\"SI\",'OBLIGACIONES APLICABLES'!#REF!,NA())","v":{"$error":"#REF!"}}]
[{"$f":"IF('INTRODUCCIÓN ESPECIES FASE INV'!#REF!=\"SI\",'INTRODUCCIÓN ESPECIES FASE INV'!#REF!,NA())","v":{"$error":"#REF!"}},{"$f":"IF('INTRODUCCIÓN ESPECIES FASE INV'!#REF!=\"SI\",'INTRODUCCIÓN ESPECIES FASE INV'!#REF!,NA())","v":{"$error":"#REF!"}},{"$f":"IF('INTRODUCCIÓN ESPECIES FASE INV'!#REF!=\"SI\",'OBLIGACIONES APLICABLES'!#REF!,NA())","v":{"$error":"#REF!"}},{"$f":"IF('INTRODUCCIÓN ESPECIES FASE INV'!#REF!=\"SI\",'OBLIGACIONES APLICABLES'!#REF!,NA())","v":{"$error":"#REF!"}}]
[{"$f":"IF('INTRODUCCIÓN ESPECIES FASE INV'!#REF!=\"SI\",'INTRODUCCIÓN ESPECIES FASE INV'!#REF!,NA())","v":{"$error":"#REF!"}},{"$f":"IF('INTRODUCCIÓN ESPECIES FASE INV'!#REF!=\"SI\",'INTRODUCCIÓN ESPECIES FASE INV'!#REF!,NA())","v":{"$error":"#REF!"}},{"$f":"IF('INTRODUCCIÓN ESPECIES FASE INV'!#REF!=\"SI\",'OBLIGACIONES APLICABLES'!#REF!,NA())","v":{"$error":"#REF!"}},{"$f":"IF('INTRODUCCIÓN ESPECIES FASE INV'!#REF!=\"SI\",'OBLIGACIONES APLICABLES'!#REF!,NA())","v":{"$error":"#REF!"}}]
[{"$f":"IF('INTRODUCCIÓN ESPECIES FASE INV'!#REF!=\"SI\",'INTRODUCCIÓN ESPECIES FASE INV'!#REF!,NA())","v":{"$error":"#REF!"}},{"$f":"IF('INTRODUCCIÓN ESPECIES FASE INV'!#REF!=\"SI\",'INTRODUCCIÓN ESPECIES FASE INV'!#REF!,NA())","v":{"$error":"#REF!"}},{"$f":"IF('INTRODUCCIÓN ESPECIES FASE INV'!#REF!=\"SI\",'OBLIGACIONES APLICABLES'!#REF!,NA())","v":{"$error":"#REF!"}},{"$f":"IF('INTRODUCCIÓN ESPECIES FASE INV'!#REF!=\"SI\",'OBLIGACIONES APLICABLES'!#REF!,NA())","v":{"$error":"#REF!"}}]
[{"$f":"IF('INTRODUCCIÓN ESPECIES FASE INV'!#REF!=\"SI\",'INTRODUCCIÓN ESPECIES FASE INV'!#REF!,NA())","v":{"$error":"#REF!"}},{"$f":"IF('INTRODUCCIÓN ESPECIES FASE INV'!#REF!=\"SI\",'INTRODUCCIÓN ESPECIES FASE INV'!#REF!,NA())","v":{"$error":"#REF!"}},{"$f":"IF('INTRODUCCIÓN ESPECIES FASE INV'!#REF!=\"SI\",'OBLIGACIONES APLICABLES'!#REF!,NA())","v":{"$error":"#REF!"}},{"$f":"IF('INTRODUCCIÓN ESPECIES FASE INV'!#REF!=\"SI\",'OBLIGACIONES APLICABLES'!#REF!,NA())","v":{"$error":"#REF!"}}]
[{"$f":"IF('INTRODUCCIÓN ESPECIES FASE INV'!#REF!=\"SI\",'INTRODUCCIÓN ESPECIES FASE INV'!#REF!,NA())","v":{"$error":"#REF!"}},{"$f":"IF('INTRODUCCIÓN ESPECIES FASE INV'!#REF!=\"SI\",'INTRODUCCIÓN ESPECIES FASE INV'!#REF!,NA())","v":{"$error":"#REF!"}},{"$f":"IF('INTRODUCCIÓN ESPECIES FASE INV'!#REF!=\"SI\",'OBLIGACIONES APLICABLES'!#REF!,NA())","v":{"$error":"#REF!"}},{"$f":"IF('INTRODUCCIÓN ESPECIES FASE INV'!#REF!=\"SI\",'OBLIGACIONES APLICABLES'!#REF!,NA())","v":{"$error":"#REF!"}}]
[{"$f":"IF('INTRODUCCIÓN ESPECIES FASE INV'!#REF!=\"SI\",'INTRODUCCIÓN ESPECIES FASE INV'!#REF!,NA())","v":{"$error":"#REF!"}},{"$f":"IF('INTRODUCCIÓN ESPECIES FASE INV'!#REF!=\"SI\",'INTRODUCCIÓN ESPECIES FASE INV'!#REF!,NA())","v":{"$error":"#REF!"}},{"$f":"IF('INTRODUCCIÓN ESPECIES FASE INV'!#REF!=\"SI\",'OBLIGACIONES APLICABLES'!#REF!,NA())","v":{"$error":"#REF!"}},{"$f":"IF('INTRODUCCIÓN ESPECIES FASE INV'!#REF!=\"SI\",'OBLIGACIONES APLICABLES'!#REF!,NA())","v":{"$error":"#REF!"}}]
[{"$f":"IF('INTRODUCCIÓN ESPECIES FASE INV'!#REF!=\"SI\",'INTRODUCCIÓN ESPECIES FASE INV'!#REF!,NA())","v":{"$error":"#REF!"}},{"$f":"IF('INTRODUCCIÓN ESPECIES FASE INV'!#REF!=\"SI\",'INTRODUCCIÓN ESPECIES FASE INV'!#REF!,NA())","v":{"$error":"#REF!"}},{"$f":"IF('INTRODUCCIÓN ESPECIES FASE INV'!#REF!=\"SI\",'OBLIGACIONES APLICABLES'!#REF!,NA())","v":{"$error":"#REF!"}},{"$f":"IF('INTRODUCCIÓN ESPECIES FASE INV'!#REF!=\"SI\",'OBLIGACIONES APLICABLES'!#REF!,NA())","v":{"$error":"#REF!"}}]
[{"$f":"IF('INTRODUCCIÓN ESPECIES FASE INV'!#REF!=\"SI\",'INTRODUCCIÓN ESPECIES FASE INV'!#REF!,NA())","v":{"$error":"#REF!"}},{"$f":"IF('INTRODUCCIÓN ESPECIES FASE INV'!#REF!=\"SI\",'INTRODUCCIÓN ESPECIES FASE INV'!#REF!,NA())","v":{"$error":"#REF!"}},{"$f":"IF('INTRODUCCIÓN ESPECIES FASE INV'!#REF!=\"SI\",'OBLIGACIONES APLICABLES'!#REF!,NA())","v":{"$error":"#REF!"}},{"$f":"IF('INTRODUCCIÓN ESPECIES FASE INV'!#REF!=\"SI\",'OBLIGACIONES APLICABLES'!#REF!,NA())","v":{"$error":"#REF!"}}]
[{"$f":"IF('INTRODUCCIÓN ESPECIES FASE INV'!#REF!=\"SI\",'INTRODUCCIÓN ESPECIES FASE INV'!#REF!,NA())","v":{"$error":"#REF!"}},{"$f":"IF('INTRODUCCIÓN ESPECIES FASE INV'!#REF!=\"SI\",'INTRODUCCIÓN ESPECIES FASE INV'!#REF!,NA())","v":{"$error":"#REF!"}},{"$f":"IF('INTRODUCCIÓN ESPECIES FASE INV'!#REF!=\"SI\",'OBLIGACIONES APLICABLES'!#REF!,NA())","v":{"$error":"#REF!"}},{"$f":"IF('INTRODUCCIÓN ESPECIES FASE INV'!#REF!=\"SI\",'OBLIGACIONES APLICABLES'!#REF!,NA())","v":{"$error":"#REF!"}}]
[{"$f":"IF('INTRODUCCIÓN ESPECIES FASE INV'!#REF!=\"SI\",'INTRODUCCIÓN ESPECIES FASE INV'!#REF!,NA())","v":{"$error":"#REF!"}},{"$f":"IF('INTRODUCCIÓN ESPECIES FASE INV'!#REF!=\"SI\",'INTRODUCCIÓN ESPECIES FASE INV'!#REF!,NA())","v":{"$error":"#REF!"}},{"$f":"IF('INTRODUCCIÓN ESPECIES FASE INV'!#REF!=\"SI\",'OBLIGACIONES APLICABLES'!#REF!,NA())","v":{"$error":"#REF!"}},{"$f":"IF('INTRODUCCIÓN ESPECIES FASE INV'!#REF!=\"SI\",'OBLIGACIONES APLICABLES'!#REF!,NA())","v":{"$error":"#REF!"}}]
[{"$f":"IF('INTRODUCCIÓN ESPECIES FASE INV'!#REF!=\"SI\",'INTRODUCCIÓN ESPECIES FASE INV'!#REF!,NA())","v":{"$error":"#REF!"}},{"$f":"IF('INTRODUCCIÓN ESPECIES FASE INV'!#REF!=\"SI\",'INTRODUCCIÓN ESPECIES FASE INV'!#REF!,NA())","v":{"$error":"#REF!"}},{"$f":"IF('INTRODUCCIÓN ESPECIES FASE INV'!#REF!=\"SI\",'OBLIGACIONES APLICABLES'!#REF!,NA())","v":{"$error":"#REF!"}},{"$f":"IF('INTRODUCCIÓN ESPECIES FASE INV'!#REF!=\"SI\",'OBLIGACIONES APLICABLES'!#REF!,NA())","v":{"$error":"#REF!"}}]
[{"$f":"IF('INTRODUCCIÓN ESPECIES FASE INV'!#REF!=\"SI\",'INTRODUCCIÓN ESPECIES FASE INV'!#REF!,NA())","v":{"$error":"#REF!"}},{"$f":"IF('INTRODUCCIÓN ESPECIES FASE INV'!#REF!=\"SI\",'INTRODUCCIÓN ESPECIES FASE INV'!#REF!,NA())","v":{"$error":"#REF!"}},{"$f":"IF('INTRODUCCIÓN ESPECIES FASE INV'!#REF!=\"SI\",'OBLIGACIONES APLICABLES'!#REF!,NA())","v":{"$error":"#REF!"}},{"$f":"IF('INTRODUCCIÓN ESPECIES FASE INV'!#REF!=\"SI\",'OBLIGACIONES APLICABLES'!#REF!,NA())","v":{"$error":"#REF!"}}]
[{"$f":"IF('INTRODUCCIÓN ESPECIES FASE INV'!#REF!=\"SI\",'INTRODUCCIÓN ESPECIES FASE INV'!#REF!,NA())","v":{"$error":"#REF!"}},{"$f":"IF('INTRODUCCIÓN ESPECIES FASE INV'!#REF!=\"SI\",'INTRODUCCIÓN ESPECIES FASE INV'!#REF!,NA())","v":{"$error":"#REF!"}},{"$f":"IF('INTRODUCCIÓN ESPECIES FASE INV'!#REF!=\"SI\",'OBLIGACIONES APLICABLES'!#REF!,NA())","v":{"$error":"#REF!"}},{"$f":"IF('INTRODUCCIÓN ESPECIES FASE INV'!#REF!=\"SI\",'OBLIGACIONES APLICABLES'!#REF!,NA())","v":{"$error":"#REF!"}}]
[{"$f":"IF('INTRODUCCIÓN ESPECIES FASE INV'!#REF!=\"SI\",'INTRODUCCIÓN ESPECIES FASE INV'!#REF!,NA())","v":{"$error":"#REF!"}},{"$f":"IF('INTRODUCCIÓN ESPECIES FASE INV'!#REF!=\"SI\",'INTRODUCCIÓN ESPECIES FASE INV'!#REF!,NA())","v":{"$error":"#REF!"}},{"$f":"IF('INTRODUCCIÓN ESPECIES FASE INV'!#REF!=\"SI\",'OBLIGACIONES APLICABLES'!#REF!,NA())","v":{"$error":"#REF!"}},{"$f":"IF('INTRODUCCIÓN ESPECIES FASE INV'!#REF!=\"SI\",'OBLIGACIONES APLICABLES'!#REF!,NA())","v":{"$error":"#REF!"}}]
[{"$f":"IF('INTRODUCCIÓN ESPECIES FASE INV'!#REF!=\"SI\",'INTRODUCCIÓN ESPECIES FASE INV'!#REF!,NA())","v":{"$error":"#REF!"}},{"$f":"IF('INTRODUCCIÓN ESPECIES FASE INV'!#REF!=\"SI\",'INTRODUCCIÓN ESPECIES FASE INV'!#REF!,NA())","v":{"$error":"#REF!"}},{"$f":"IF('INTRODUCCIÓN ESPECIES FASE INV'!#REF!=\"SI\",'OBLIGACIONES APLICABLES'!#REF!,NA())","v":{"$error":"#REF!"}},{"$f":"IF('INTRODUCCIÓN ESPECIES FASE INV'!#REF!=\"SI\",'OBLIGACIONES APLICABLES'!#REF!,NA())","v":{"$error":"#REF!"}}]
[{"$f":"IF('INTRODUCCIÓN ESPECIES FASE INV'!#REF!=\"SI\",'INTRODUCCIÓN ESPECIES FASE INV'!#REF!,NA())","v":{"$error":"#REF!"}},{"$f":"IF('INTRODUCCIÓN ESPECIES FASE INV'!#REF!=\"SI\",'INTRODUCCIÓN ESPECIES FASE INV'!#REF!,NA())","v":{"$error":"#REF!"}},{"$f":"IF('INTRODUCCIÓN ESPECIES FASE INV'!#REF!=\"SI\",'OBLIGACIONES APLICABLES'!#REF!,NA())","v":{"$error":"#REF!"}},{"$f":"IF('INTRODUCCIÓN ESPECIES FASE INV'!#REF!=\"SI\",'OBLIGACIONES APLICABLES'!#REF!,NA())","v":{"$error":"#REF!"}}]
[{"$f":"IF('INTRODUCCIÓN ESPECIES FASE INV'!#REF!=\"SI\",'INTRODUCCIÓN ESPECIES FASE INV'!#REF!,NA())","v":{"$error":"#REF!"}},{"$f":"IF('INTRODUCCIÓN ESPECIES FASE INV'!#REF!=\"SI\",'INTRODUCCIÓN ESPECIES FASE INV'!#REF!,NA())","v":{"$error":"#REF!"}},{"$f":"IF('INTRODUCCIÓN ESPECIES FASE INV'!#REF!=\"SI\",'OBLIGACIONES APLICABLES'!#REF!,NA())","v":{"$error":"#REF!"}},{"$f":"IF('INTRODUCCIÓN ESPECIES FASE INV'!#REF!=\"SI\",'OBLIGACIONES APLICABLES'!#REF!,NA())","v":{"$error":"#REF!"}}]
[{"$f":"IF('INTRODUCCIÓN ESPECIES FASE INV'!#REF!=\"SI\",'INTRODUCCIÓN ESPECIES FASE INV'!#REF!,NA())","v":{"$error":"#REF!"}},{"$f":"IF('INTRODUCCIÓN ESPECIES FASE INV'!#REF!=\"SI\",'INTRODUCCIÓN ESPECIES FASE INV'!#REF!,NA())","v":{"$error":"#REF!"}},{"$f":"IF('INTRODUCCIÓN ESPECIES FASE INV'!#REF!=\"SI\",'OBLIGACIONES APLICABLES'!#REF!,NA())","v":{"$error":"#REF!"}},{"$f":"IF('INTRODUCCIÓN ESPECIES FASE INV'!#REF!=\"SI\",'OBLIGACIONES APLICABLES'!#REF!,NA())","v":{"$error":"#REF!"}}]
[{"$f":"IF('INTRODUCCIÓN ESPECIES FASE INV'!#REF!=\"SI\",'INTRODUCCIÓN ESPECIES FASE INV'!#REF!,NA())","v":{"$error":"#REF!"}},{"$f":"IF('INTRODUCCIÓN ESPECIES FASE INV'!#REF!=\"SI\",'INTRODUCCIÓN ESPECIES FASE INV'!#REF!,NA())","v":{"$error":"#REF!"}},{"$f":"IF('INTRODUCCIÓN ESPECIES FASE INV'!#REF!=\"SI\",'OBLIGACIONES APLICABLES'!#REF!,NA())","v":{"$error":"#REF!"}},{"$f":"IF('INTRODUCCIÓN ESPECIES FASE INV'!#REF!=\"SI\",'OBLIGACIONES APLICABLES'!#REF!,NA())","v":{"$error":"#REF!"}}]
[{"$f":"IF('INTRODUCCIÓN ESPECIES FASE INV'!#REF!=\"SI\",'INTRODUCCIÓN ESPECIES FASE INV'!#REF!,NA())","v":{"$error":"#REF!"}},{"$f":"IF('INTRODUCCIÓN ESPECIES FASE INV'!#REF!=\"SI\",'INTRODUCCIÓN ESPECIES FASE INV'!#REF!,NA())","v":{"$error":"#REF!"}},{"$f":"IF('INTRODUCCIÓN ESPECIES FASE INV'!#REF!=\"SI\",'OBLIGACIONES APLICABLES'!#REF!,NA())","v":{"$error":"#REF!"}},{"$f":"IF('INTRODUCCIÓN ESPECIES FASE INV'!#REF!=\"SI\",'OBLIGACIONES APLICABLES'!#REF!,NA())","v":{"$error":"#REF!"}}]
[{"$f":"IF('INTRODUCCIÓN ESPECIES FASE INV'!#REF!=\"SI\",'INTRODUCCIÓN ESPECIES FASE INV'!#REF!,NA())","v":{"$error":"#REF!"}},{"$f":"IF('INTRODUCCIÓN ESPECIES FASE INV'!#REF!=\"SI\",'INTRODUCCIÓN ESPECIES FASE INV'!#REF!,NA())","v":{"$error":"#REF!"}},{"$f":"IF('INTRODUCCIÓN ESPECIES FASE INV'!#REF!=\"SI\",'OBLIGACIONES APLICABLES'!#REF!,NA())","v":{"$error":"#REF!"}},{"$f":"IF('INTRODUCCIÓN ESPECIES FASE INV'!#REF!=\"SI\",'OBLIGACIONES APLICABLES'!#REF!,NA())","v":{"$error":"#REF!"}}]
[{"$f":"IF('INTRODUCCIÓN ESPECIES FASE INV'!#REF!=\"SI\",'INTRODUCCIÓN ESPECIES FASE INV'!#REF!,NA())","v":{"$error":"#REF!"}},{"$f":"IF('INTRODUCCIÓN ESPECIES FASE INV'!#REF!=\"SI\",'INTRODUCCIÓN ESPECIES FASE INV'!#REF!,NA())","v":{"$error":"#REF!"}},{"$f":"IF('INTRODUCCIÓN ESPECIES FASE INV'!#REF!=\"SI\",'OBLIGACIONES APLICABLES'!#REF!,NA())","v":{"$error":"#REF!"}},{"$f":"IF('INTRODUCCIÓN ESPECIES FASE INV'!#REF!=\"SI\",'OBLIGACIONES APLICABLES'!#REF!,NA())","v":{"$error":"#REF!"}}]
[{"$f":"IF('INTRODUCCIÓN ESPECIES FASE INV'!#REF!=\"SI\",'INTRODUCCIÓN ESPECIES FASE INV'!#REF!,NA())","v":{"$error":"#REF!"}},{"$f":"IF('INTRODUCCIÓN ESPECIES FASE INV'!#REF!=\"SI\",'INTRODUCCIÓN ESPECIES FASE INV'!#REF!,NA())","v":{"$error":"#REF!"}},{"$f":"IF('INTRODUCCIÓN ESPECIES FASE INV'!#REF!=\"SI\",'OBLIGACIONES APLICABLES'!#REF!,NA())","v":{"$error":"#REF!"}},{"$f":"IF('INTRODUCCIÓN ESPECIES FASE INV'!#REF!=\"SI\",'OBLIGACIONES APLICABLES'!#REF!,NA())","v":{"$error":"#REF!"}}]
[{"$f":"IF('INTRODUCCIÓN ESPECIES FASE INV'!#REF!=\"SI\",'INTRODUCCIÓN ESPECIES FASE INV'!#REF!,NA())","v":{"$error":"#REF!"}},{"$f":"IF('INTRODUCCIÓN ESPECIES FASE INV'!#REF!=\"SI\",'INTRODUCCIÓN ESPECIES FASE INV'!#REF!,NA())","v":{"$error":"#REF!"}},{"$f":"IF('INTRODUCCIÓN ESPECIES FASE INV'!#REF!=\"SI\",'OBLIGACIONES APLICABLES'!#REF!,NA())","v":{"$error":"#REF!"}},{"$f":"IF('INTRODUCCIÓN ESPECIES FASE INV'!#REF!=\"SI\",'OBLIGACIONES APLICABLES'!#REF!,NA())","v":{"$error":"#REF!"}}]
[{"$f":"IF('INTRODUCCIÓN ESPECIES FASE INV'!#REF!=\"SI\",'INTRODUCCIÓN ESPECIES FASE INV'!#REF!,NA())","v":{"$error":"#REF!"}},{"$f":"IF('INTRODUCCIÓN ESPECIES FASE INV'!#REF!=\"SI\",'INTRODUCCIÓN ESPECIES FASE INV'!#REF!,NA())","v":{"$error":"#REF!"}},{"$f":"IF('INTRODUCCIÓN ESPECIES FASE INV'!#REF!=\"SI\",'OBLIGACIONES APLICABLES'!#REF!,NA())","v":{"$error":"#REF!"}},{"$f":"IF('INTRODUCCIÓN ESPECIES FASE INV'!#REF!=\"SI\",'OBLIGACIONES APLICABLES'!#REF!,NA())","v":{"$error":"#REF!"}}]
[{"$f":"IF('INTRODUCCIÓN ESPECIES FASE INV'!#REF!=\"SI\",'INTRODUCCIÓN ESPECIES FASE INV'!#REF!,NA())","v":{"$error":"#REF!"}},{"$f":"IF('INTRODUCCIÓN ESPECIES FASE INV'!#REF!=\"SI\",'INTRODUCCIÓN ESPECIES FASE INV'!#REF!,NA())","v":{"$error":"#REF!"}},{"$f":"IF('INTRODUCCIÓN ESPECIES FASE INV'!#REF!=\"SI\",'OBLIGACIONES APLICABLES'!#REF!,NA())","v":{"$error":"#REF!"}},{"$f":"IF('INTRODUCCIÓN ESPECIES FASE INV'!#REF!=\"SI\",'OBLIGACIONES APLICABLES'!#REF!,NA())","v":{"$error":"#REF!"}}]
[{"$f":"IF('INTRODUCCIÓN ESPECIES FASE INV'!#REF!=\"SI\",'INTRODUCCIÓN ESPECIES FASE INV'!#REF!,NA())","v":{"$error":"#REF!"}},{"$f":"IF('INTRODUCCIÓN ESPECIES FASE INV'!#REF!=\"SI\",'INTRODUCCIÓN ESPECIES FASE INV'!#REF!,NA())","v":{"$error":"#REF!"}},{"$f":"IF('INTRODUCCIÓN ESPECIES FASE INV'!#REF!=\"SI\",'OBLIGACIONES APLICABLES'!#REF!,NA())","v":{"$error":"#REF!"}},{"$f":"IF('INTRODUCCIÓN ESPECIES FASE INV'!#REF!=\"SI\",'OBLIGACIONES APLICABLES'!#REF!,NA())","v":{"$error":"#REF!"}}]
[{"$f":"IF('INTRODUCCIÓN ESPECIES FASE INV'!#REF!=\"SI\",'INTRODUCCIÓN ESPECIES FASE INV'!#REF!,NA())","v":{"$error":"#REF!"}},{"$f":"IF('INTRODUCCIÓN ESPECIES FASE INV'!#REF!=\"SI\",'INTRODUCCIÓN ESPECIES FASE INV'!#REF!,NA())","v":{"$error":"#REF!"}},{"$f":"IF('INTRODUCCIÓN ESPECIES FASE INV'!#REF!=\"SI\",'OBLIGACIONES APLICABLES'!#REF!,NA())","v":{"$error":"#REF!"}},{"$f":"IF('INTRODUCCIÓN ESPECIES FASE INV'!#REF!=\"SI\",'OBLIGACIONES APLICABLES'!#REF!,NA())","v":{"$error":"#REF!"}}]
[{"$f":"IF('INTRODUCCIÓN ESPECIES FASE INV'!#REF!=\"SI\",'INTRODUCCIÓN ESPECIES FASE INV'!#REF!,NA())","v":{"$error":"#REF!"}},{"$f":"IF('INTRODUCCIÓN ESPECIES FASE INV'!#REF!=\"SI\",'INTRODUCCIÓN ESPECIES FASE INV'!#REF!,NA())","v":{"$error":"#REF!"}},{"$f":"IF('INTRODUCCIÓN ESPECIES FASE INV'!#REF!=\"SI\",'OBLIGACIONES APLICABLES'!#REF!,NA())","v":{"$error":"#REF!"}},{"$f":"IF('INTRODUCCIÓN ESPECIES FASE INV'!#REF!=\"SI\",'OBLIGACIONES APLICABLES'!#REF!,NA())","v":{"$error":"#REF!"}}]
[{"$f":"IF('INTRODUCCIÓN ESPECIES FASE INV'!#REF!=\"SI\",'INTRODUCCIÓN ESPECIES FASE INV'!#REF!,NA())","v":{"$error":"#REF!"}},{"$f":"IF('INTRODUCCIÓN ESPECIES FASE INV'!#REF!=\"SI\",'INTRODUCCIÓN ESPECIES FASE INV'!#REF!,NA())","v":{"$error":"#REF!"}},{"$f":"IF('INTRODUCCIÓN ESPECIES FASE INV'!#REF!=\"SI\",'OBLIGACIONES APLICABLES'!#REF!,NA())","v":{"$error":"#REF!"}},{"$f":"IF('INTRODUCCIÓN ESPECIES FASE INV'!#REF!=\"SI\",'OBLIGACIONES APLICABLES'!#REF!,NA())","v":{"$error":"#REF!"}}]
[{"$f":"IF('INTRODUCCIÓN ESPECIES FASE INV'!#REF!=\"SI\",'INTRODUCCIÓN ESPECIES FASE INV'!#REF!,NA())","v":{"$error":"#REF!"}},{"$f":"IF('INTRODUCCIÓN ESPECIES FASE INV'!#REF!=\"SI\",'INTRODUCCIÓN ESPECIES FASE INV'!#REF!,NA())","v":{"$error":"#REF!"}},{"$f":"IF('INTRODUCCIÓN ESPECIES FASE INV'!#REF!=\"SI\",'OBLIGACIONES APLICABLES'!#REF!,NA())","v":{"$error":"#REF!"}},{"$f":"IF('INTRODUCCIÓN ESPECIES FASE INV'!#REF!=\"SI\",'OBLIGACIONES APLICABLES'!#REF!,NA())","v":{"$error":"#REF!"}}]
[{"$f":"IF('INTRODUCCIÓN ESPECIES FASE INV'!#REF!=\"SI\",'INTRODUCCIÓN ESPECIES FASE INV'!#REF!,NA())","v":{"$error":"#REF!"}},{"$f":"IF('INTRODUCCIÓN ESPECIES FASE INV'!#REF!=\"SI\",'INTRODUCCIÓN ESPECIES FASE INV'!#REF!,NA())","v":{"$error":"#REF!"}},{"$f":"IF('INTRODUCCIÓN ESPECIES FASE INV'!#REF!=\"SI\",'OBLIGACIONES APLICABLES'!#REF!,NA())","v":{"$error":"#REF!"}},{"$f":"IF('INTRODUCCIÓN ESPECIES FASE INV'!#REF!=\"SI\",'OBLIGACIONES APLICABLES'!#REF!,NA())","v":{"$error":"#REF!"}}]
[{"$f":"IF('INTRODUCCIÓN ESPECIES FASE INV'!#REF!=\"SI\",'INTRODUCCIÓN ESPECIES FASE INV'!#REF!,NA())","v":{"$error":"#REF!"}},{"$f":"IF('INTRODUCCIÓN ESPECIES FASE INV'!#REF!=\"SI\",'INTRODUCCIÓN ESPECIES FASE INV'!#REF!,NA())","v":{"$error":"#REF!"}},{"$f":"IF('INTRODUCCIÓN ESPECIES FASE INV'!#REF!=\"SI\",'OBLIGACIONES APLICABLES'!#REF!,NA())","v":{"$error":"#REF!"}},{"$f":"IF('INTRODUCCIÓN ESPECIES FASE INV'!#REF!=\"SI\",'OBLIGACIONES APLICABLES'!#REF!,NA())","v":{"$error":"#REF!"}}]
[{"$f":"IF('INTRODUCCIÓN ESPECIES FASE INV'!#REF!=\"SI\",'INTRODUCCIÓN ESPECIES FASE INV'!#REF!,NA())","v":{"$error":"#REF!"}},{"$f":"IF('INTRODUCCIÓN ESPECIES FASE INV'!#REF!=\"SI\",'INTRODUCCIÓN ESPECIES FASE INV'!#REF!,NA())","v":{"$error":"#REF!"}},{"$f":"IF('INTRODUCCIÓN ESPECIES FASE INV'!#REF!=\"SI\",'OBLIGACIONES APLICABLES'!#REF!,NA())","v":{"$error":"#REF!"}},{"$f":"IF('INTRODUCCIÓN ESPECIES FASE INV'!#REF!=\"SI\",'OBLIGACIONES APLICABLES'!#REF!,NA())","v":{"$error":"#REF!"}}]
[{"$f":"IF('INTRODUCCIÓN ESPECIES FASE INV'!#REF!=\"SI\",'INTRODUCCIÓN ESPECIES FASE INV'!#REF!,NA())","v":{"$error":"#REF!"}},{"$f":"IF('INTRODUCCIÓN ESPECIES FASE INV'!#REF!=\"SI\",'INTRODUCCIÓN ESPECIES FASE INV'!#REF!,NA())","v":{"$error":"#REF!"}},{"$f":"IF('INTRODUCCIÓN ESPECIES FASE INV'!#REF!=\"SI\",'OBLIGACIONES APLICABLES'!#REF!,NA())","v":{"$error":"#REF!"}},{"$f":"IF('INTRODUCCIÓN ESPECIES FASE INV'!#REF!=\"SI\",'OBLIGACIONES APLICABLES'!#REF!,NA())","v":{"$error":"#REF!"}}]
[{"$f":"IF('INTRODUCCIÓN ESPECIES FASE INV'!#REF!=\"SI\",'INTRODUCCIÓN ESPECIES FASE INV'!#REF!,NA())","v":{"$error":"#REF!"}},{"$f":"IF('INTRODUCCIÓN ESPECIES FASE INV'!#REF!=\"SI\",'INTRODUCCIÓN ESPECIES FASE INV'!#REF!,NA())","v":{"$error":"#REF!"}},{"$f":"IF('INTRODUCCIÓN ESPECIES FASE INV'!#REF!=\"SI\",'OBLIGACIONES APLICABLES'!#REF!,NA())","v":{"$error":"#REF!"}},{"$f":"IF('INTRODUCCIÓN ESPECIES FASE INV'!#REF!=\"SI\",'OBLIGACIONES APLICABLES'!#REF!,NA())","v":{"$error":"#REF!"}}]
[{"$f":"IF('INTRODUCCIÓN ESPECIES FASE INV'!#REF!=\"SI\",'INTRODUCCIÓN ESPECIES FASE INV'!#REF!,NA())","v":{"$error":"#REF!"}},{"$f":"IF('INTRODUCCIÓN ESPECIES FASE INV'!#REF!=\"SI\",'INTRODUCCIÓN ESPECIES FASE INV'!#REF!,NA())","v":{"$error":"#REF!"}},{"$f":"IF('INTRODUCCIÓN ESPECIES FASE INV'!#REF!=\"SI\",'OBLIGACIONES APLICABLES'!#REF!,NA())","v":{"$error":"#REF!"}},{"$f":"IF('INTRODUCCIÓN ESPECIES FASE INV'!#REF!=\"SI\",'OBLIGACIONES APLICABLES'!#REF!,NA())","v":{"$error":"#REF!"}}]
[{"$f":"IF('INTRODUCCIÓN ESPECIES FASE INV'!#REF!=\"SI\",'INTRODUCCIÓN ESPECIES FASE INV'!#REF!,NA())","v":{"$error":"#REF!"}},{"$f":"IF('INTRODUCCIÓN ESPECIES FASE INV'!#REF!=\"SI\",'INTRODUCCIÓN ESPECIES FASE INV'!#REF!,NA())","v":{"$error":"#REF!"}},{"$f":"IF('INTRODUCCIÓN ESPECIES FASE INV'!#REF!=\"SI\",'OBLIGACIONES APLICABLES'!#REF!,NA())","v":{"$error":"#REF!"}},{"$f":"IF('INTRODUCCIÓN ESPECIES FASE INV'!#REF!=\"SI\",'OBLIGACIONES APLICABLES'!#REF!,NA())","v":{"$error":"#REF!"}}]
[{"$f":"IF('INTRODUCCIÓN ESPECIES FASE INV'!#REF!=\"SI\",'INTRODUCCIÓN ESPECIES FASE INV'!#REF!,NA())","v":{"$error":"#REF!"}},{"$f":"IF('INTRODUCCIÓN ESPECIES FASE INV'!#REF!=\"SI\",'INTRODUCCIÓN ESPECIES FASE INV'!#REF!,NA())","v":{"$error":"#REF!"}},{"$f":"IF('INTRODUCCIÓN ESPECIES FASE INV'!#REF!=\"SI\",'OBLIGACIONES APLICABLES'!#REF!,NA())","v":{"$error":"#REF!"}},{"$f":"IF('INTRODUCCIÓN ESPECIES FASE INV'!#REF!=\"SI\",'OBLIGACIONES APLICABLES'!#REF!,NA())","v":{"$error":"#REF!"}}]
[{"$f":"IF('INTRODUCCIÓN ESPECIES FASE INV'!#REF!=\"SI\",'INTRODUCCIÓN ESPECIES FASE INV'!#REF!,NA())","v":{"$error":"#REF!"}},{"$f":"IF('INTRODUCCIÓN ESPECIES FASE INV'!#REF!=\"SI\",'INTRODUCCIÓN ESPECIES FASE INV'!#REF!,NA())","v":{"$error":"#REF!"}},{"$f":"IF('INTRODUCCIÓN ESPECIES FASE INV'!#REF!=\"SI\",'OBLIGACIONES APLICABLES'!#REF!,NA())","v":{"$error":"#REF!"}},{"$f":"IF('INTRODUCCIÓN ESPECIES FASE INV'!#REF!=\"SI\",'OBLIGACIONES APLICABLES'!#REF!,NA())","v":{"$error":"#REF!"}}]
[{"$f":"IF('INTRODUCCIÓN ESPECIES FASE INV'!#REF!=\"SI\",'INTRODUCCIÓN ESPECIES FASE INV'!#REF!,NA())","v":{"$error":"#REF!"}},{"$f":"IF('INTRODUCCIÓN ESPECIES FASE INV'!#REF!=\"SI\",'INTRODUCCIÓN ESPECIES FASE INV'!#REF!,NA())","v":{"$error":"#REF!"}},{"$f":"IF('INTRODUCCIÓN ESPECIES FASE INV'!#REF!=\"SI\",'OBLIGACIONES APLICABLES'!#REF!,NA())","v":{"$error":"#REF!"}},{"$f":"IF('INTRODUCCIÓN ESPECIES FASE INV'!#REF!=\"SI\",'OBLIGACIONES APLICABLES'!#REF!,NA())","v":{"$error":"#REF!"}}]
[{"$f":"IF('INTRODUCCIÓN ESPECIES FASE INV'!#REF!=\"SI\",'INTRODUCCIÓN ESPECIES FASE INV'!#REF!,NA())","v":{"$error":"#REF!"}},{"$f":"IF('INTRODUCCIÓN ESPECIES FASE INV'!#REF!=\"SI\",'INTRODUCCIÓN ESPECIES FASE INV'!#REF!,NA())","v":{"$error":"#REF!"}},{"$f":"IF('INTRODUCCIÓN ESPECIES FASE INV'!#REF!=\"SI\",'OBLIGACIONES APLICABLES'!#REF!,NA())","v":{"$error":"#REF!"}},{"$f":"IF('INTRODUCCIÓN ESPECIES FASE INV'!#REF!=\"SI\",'OBLIGACIONES APLICABLES'!#REF!,NA())","v":{"$error":"#REF!"}}]
[{"$f":"IF('INTRODUCCIÓN ESPECIES FASE INV'!#REF!=\"SI\",'INTRODUCCIÓN ESPECIES FASE INV'!#REF!,NA())","v":{"$error":"#REF!"}},{"$f":"IF('INTRODUCCIÓN ESPECIES FASE INV'!#REF!=\"SI\",'INTRODUCCIÓN ESPECIES FASE INV'!#REF!,NA())","v":{"$error":"#REF!"}},{"$f":"IF('INTRODUCCIÓN ESPECIES FASE INV'!#REF!=\"SI\",'OBLIGACIONES APLICABLES'!#REF!,NA())","v":{"$error":"#REF!"}},{"$f":"IF('INTRODUCCIÓN ESPECIES FASE INV'!#REF!=\"SI\",'OBLIGACIONES APLICABLES'!#REF!,NA())","v":{"$error":"#REF!"}}]
[{"$f":"IF('INTRODUCCIÓN ESPECIES FASE INV'!#REF!=\"SI\",'INTRODUCCIÓN ESPECIES FASE INV'!#REF!,NA())","v":{"$error":"#REF!"}},{"$f":"IF('INTRODUCCIÓN ESPECIES FASE INV'!#REF!=\"SI\",'INTRODUCCIÓN ESPECIES FASE INV'!#REF!,NA())","v":{"$error":"#REF!"}},{"$f":"IF('INTRODUCCIÓN ESPECIES FASE INV'!#REF!=\"SI\",'OBLIGACIONES APLICABLES'!#REF!,NA())","v":{"$error":"#REF!"}},{"$f":"IF('INTRODUCCIÓN ESPECIES FASE INV'!#REF!=\"SI\",'OBLIGACIONES APLICABLES'!#REF!,NA())","v":{"$error":"#REF!"}}]
[{"$f":"IF('INTRODUCCIÓN ESPECIES FASE INV'!#REF!=\"SI\",'INTRODUCCIÓN ESPECIES FASE INV'!#REF!,NA())","v":{"$error":"#REF!"}},{"$f":"IF('INTRODUCCIÓN ESPECIES FASE INV'!#REF!=\"SI\",'INTRODUCCIÓN ESPECIES FASE INV'!#REF!,NA())","v":{"$error":"#REF!"}},{"$f":"IF('INTRODUCCIÓN ESPECIES FASE INV'!#REF!=\"SI\",'OBLIGACIONES APLICABLES'!#REF!,NA())","v":{"$error":"#REF!"}},{"$f":"IF('INTRODUCCIÓN ESPECIES FASE INV'!#REF!=\"SI\",'OBLIGACIONES APLICABLES'!#REF!,NA())","v":{"$error":"#REF!"}}]
[{"$f":"IF('INTRODUCCIÓN ESPECIES FASE INV'!#REF!=\"SI\",'INTRODUCCIÓN ESPECIES FASE INV'!#REF!,NA())","v":{"$error":"#REF!"}},{"$f":"IF('INTRODUCCIÓN ESPECIES FASE INV'!#REF!=\"SI\",'INTRODUCCIÓN ESPECIES FASE INV'!#REF!,NA())","v":{"$error":"#REF!"}},{"$f":"IF('INTRODUCCIÓN ESPECIES FASE INV'!#REF!=\"SI\",'OBLIGACIONES APLICABLES'!#REF!,NA())","v":{"$error":"#REF!"}},{"$f":"IF('INTRODUCCIÓN ESPECIES FASE INV'!#REF!=\"SI\",'OBLIGACIONES APLICABLES'!#REF!,NA())","v":{"$error":"#REF!"}}]
[{"$f":"IF('INTRODUCCIÓN ESPECIES FASE INV'!#REF!=\"SI\",'INTRODUCCIÓN ESPECIES FASE INV'!#REF!,NA())","v":{"$error":"#REF!"}},{"$f":"IF('INTRODUCCIÓN ESPECIES FASE INV'!#REF!=\"SI\",'INTRODUCCIÓN ESPECIES FASE INV'!#REF!,NA())","v":{"$error":"#REF!"}},{"$f":"IF('INTRODUCCIÓN ESPECIES FASE INV'!#REF!=\"SI\",'OBLIGACIONES APLICABLES'!#REF!,NA())","v":{"$error":"#REF!"}},{"$f":"IF('INTRODUCCIÓN ESPECIES FASE INV'!#REF!=\"SI\",'OBLIGACIONES APLICABLES'!#REF!,NA())","v":{"$error":"#REF!"}}]
[{"$f":"IF('INTRODUCCIÓN ESPECIES FASE INV'!#REF!=\"SI\",'INTRODUCCIÓN ESPECIES FASE INV'!#REF!,NA())","v":{"$error":"#REF!"}},{"$f":"IF('INTRODUCCIÓN ESPECIES FASE INV'!#REF!=\"SI\",'INTRODUCCIÓN ESPECIES FASE INV'!#REF!,NA())","v":{"$error":"#REF!"}},{"$f":"IF('INTRODUCCIÓN ESPECIES FASE INV'!#REF!=\"SI\",'OBLIGACIONES APLICABLES'!#REF!,NA())","v":{"$error":"#REF!"}},{"$f":"IF('INTRODUCCIÓN ESPECIES FASE INV'!#REF!=\"SI\",'OBLIGACIONES APLICABLES'!#REF!,NA())","v":{"$error":"#REF!"}}]
[{"$f":"IF('INTRODUCCIÓN ESPECIES FASE INV'!#REF!=\"SI\",'INTRODUCCIÓN ESPECIES FASE INV'!#REF!,NA())","v":{"$error":"#REF!"}},{"$f":"IF('INTRODUCCIÓN ESPECIES FASE INV'!#REF!=\"SI\",'INTRODUCCIÓN ESPECIES FASE INV'!#REF!,NA())","v":{"$error":"#REF!"}},{"$f":"IF('INTRODUCCIÓN ESPECIES FASE INV'!#REF!=\"SI\",'OBLIGACIONES APLICABLES'!#REF!,NA())","v":{"$error":"#REF!"}},{"$f":"IF('INTRODUCCIÓN ESPECIES FASE INV'!#REF!=\"SI\",'OBLIGACIONES APLICABLES'!#REF!,NA())","v":{"$error":"#REF!"}}]
[{"$f":"IF('INTRODUCCIÓN ESPECIES FASE INV'!#REF!=\"SI\",'INTRODUCCIÓN ESPECIES FASE INV'!#REF!,NA())","v":{"$error":"#REF!"}},{"$f":"IF('INTRODUCCIÓN ESPECIES FASE INV'!#REF!=\"SI\",'INTRODUCCIÓN ESPECIES FASE INV'!#REF!,NA())","v":{"$error":"#REF!"}},{"$f":"IF('INTRODUCCIÓN ESPECIES FASE INV'!#REF!=\"SI\",'OBLIGACIONES APLICABLES'!#REF!,NA())","v":{"$error":"#REF!"}},{"$f":"IF('INTRODUCCIÓN ESPECIES FASE INV'!#REF!=\"SI\",'OBLIGACIONES APLICABLES'!#REF!,NA())","v":{"$error":"#REF!"}}]
[{"$f":"IF('INTRODUCCIÓN ESPECIES FASE INV'!#REF!=\"SI\",'INTRODUCCIÓN ESPECIES FASE INV'!#REF!,NA())","v":{"$error":"#REF!"}},{"$f":"IF('INTRODUCCIÓN ESPECIES FASE INV'!#REF!=\"SI\",'INTRODUCCIÓN ESPECIES FASE INV'!#REF!,NA())","v":{"$error":"#REF!"}},{"$f":"IF('INTRODUCCIÓN ESPECIES FASE INV'!#REF!=\"SI\",'OBLIGACIONES APLICABLES'!#REF!,NA())","v":{"$error":"#REF!"}},{"$f":"IF('INTRODUCCIÓN ESPECIES FASE INV'!#REF!=\"SI\",'OBLIGACIONES APLICABLES'!#REF!,NA())","v":{"$error":"#REF!"}}]
[{"$f":"IF('INTRODUCCIÓN ESPECIES FASE INV'!#REF!=\"SI\",'INTRODUCCIÓN ESPECIES FASE INV'!#REF!,NA())","v":{"$error":"#REF!"}},{"$f":"IF('INTRODUCCIÓN ESPECIES FASE INV'!#REF!=\"SI\",'INTRODUCCIÓN ESPECIES FASE INV'!#REF!,NA())","v":{"$error":"#REF!"}},{"$f":"IF('INTRODUCCIÓN ESPECIES FASE INV'!#REF!=\"SI\",'OBLIGACIONES APLICABLES'!#REF!,NA())","v":{"$error":"#REF!"}},{"$f":"IF('INTRODUCCIÓN ESPECIES FASE INV'!#REF!=\"SI\",'OBLIGACIONES APLICABLES'!#REF!,NA())","v":{"$error":"#REF!"}}]
[{"$f":"IF('INTRODUCCIÓN ESPECIES FASE INV'!#REF!=\"SI\",'INTRODUCCIÓN ESPECIES FASE INV'!#REF!,NA())","v":{"$error":"#REF!"}},{"$f":"IF('INTRODUCCIÓN ESPECIES FASE INV'!#REF!=\"SI\",'INTRODUCCIÓN ESPECIES FASE INV'!#REF!,NA())","v":{"$error":"#REF!"}},{"$f":"IF('INTRODUCCIÓN ESPECIES FASE INV'!#REF!=\"SI\",'OBLIGACIONES APLICABLES'!#REF!,NA())","v":{"$error":"#REF!"}},{"$f":"IF('INTRODUCCIÓN ESPECIES FASE INV'!#REF!=\"SI\",'OBLIGACIONES APLICABLES'!#REF!,NA())","v":{"$error":"#REF!"}}]
[{"$f":"IF('INTRODUCCIÓN ESPECIES FASE INV'!#REF!=\"SI\",'INTRODUCCIÓN ESPECIES FASE INV'!#REF!,NA())","v":{"$error":"#REF!"}},{"$f":"IF('INTRODUCCIÓN ESPECIES FASE INV'!#REF!=\"SI\",'INTRODUCCIÓN ESPECIES FASE INV'!#REF!,NA())","v":{"$error":"#REF!"}},{"$f":"IF('INTRODUCCIÓN ESPECIES FASE INV'!#REF!=\"SI\",'OBLIGACIONES APLICABLES'!#REF!,NA())","v":{"$error":"#REF!"}},{"$f":"IF('INTRODUCCIÓN ESPECIES FASE INV'!#REF!=\"SI\",'OBLIGACIONES APLICABLES'!#REF!,NA())","v":{"$error":"#REF!"}}]
[{"$f":"IF('INTRODUCCIÓN ESPECIES FASE INV'!#REF!=\"SI\",'INTRODUCCIÓN ESPECIES FASE INV'!#REF!,NA())","v":{"$error":"#REF!"}},{"$f":"IF('INTRODUCCIÓN ESPECIES FASE INV'!#REF!=\"SI\",'INTRODUCCIÓN ESPECIES FASE INV'!#REF!,NA())","v":{"$error":"#REF!"}},{"$f":"IF('INTRODUCCIÓN ESPECIES FASE INV'!#REF!=\"SI\",'OBLIGACIONES APLICABLES'!#REF!,NA())","v":{"$error":"#REF!"}},{"$f":"IF('INTRODUCCIÓN ESPECIES FASE INV'!#REF!=\"SI\",'OBLIGACIONES APLICABLES'!#REF!,NA())","v":{"$error":"#REF!"}}]
[{"$f":"IF('INTRODUCCIÓN ESPECIES FASE INV'!#REF!=\"SI\",'INTRODUCCIÓN ESPECIES FASE INV'!#REF!,NA())","v":{"$error":"#REF!"}},{"$f":"IF('INTRODUCCIÓN ESPECIES FASE INV'!#REF!=\"SI\",'INTRODUCCIÓN ESPECIES FASE INV'!#REF!,NA())","v":{"$error":"#REF!"}},{"$f":"IF('INTRODUCCIÓN ESPECIES FASE INV'!#REF!=\"SI\",'OBLIGACIONES APLICABLES'!#REF!,NA())","v":{"$error":"#REF!"}},{"$f":"IF('INTRODUCCIÓN ESPECIES FASE INV'!#REF!=\"SI\",'OBLIGACIONES APLICABLES'!#REF!,NA())","v":{"$error":"#REF!"}}]
[{"$f":"IF('INTRODUCCIÓN ESPECIES FASE INV'!#REF!=\"SI\",'INTRODUCCIÓN ESPECIES FASE INV'!#REF!,NA())","v":{"$error":"#REF!"}},{"$f":"IF('INTRODUCCIÓN ESPECIES FASE INV'!#REF!=\"SI\",'INTRODUCCIÓN ESPECIES FASE INV'!#REF!,NA())","v":{"$error":"#REF!"}},{"$f":"IF('INTRODUCCIÓN ESPECIES FASE INV'!#REF!=\"SI\",'OBLIGACIONES APLICABLES'!#REF!,NA())","v":{"$error":"#REF!"}},{"$f":"IF('INTRODUCCIÓN ESPECIES FASE INV'!#REF!=\"SI\",'OBLIGACIONES APLICABLES'!#REF!,NA())","v":{"$error":"#REF!"}}]
[{"$f":"IF('INTRODUCCIÓN ESPECIES FASE INV'!#REF!=\"SI\",'INTRODUCCIÓN ESPECIES FASE INV'!#REF!,NA())","v":{"$error":"#REF!"}},{"$f":"IF('INTRODUCCIÓN ESPECIES FASE INV'!#REF!=\"SI\",'INTRODUCCIÓN ESPECIES FASE INV'!#REF!,NA())","v":{"$error":"#REF!"}},{"$f":"IF('INTRODUCCIÓN ESPECIES FASE INV'!#REF!=\"SI\",'OBLIGACIONES APLICABLES'!#REF!,NA())","v":{"$error":"#REF!"}},{"$f":"IF('INTRODUCCIÓN ESPECIES FASE INV'!#REF!=\"SI\",'OBLIGACIONES APLICABLES'!#REF!,NA())","v":{"$error":"#REF!"}}]
[{"$f":"IF('INTRODUCCIÓN ESPECIES FASE INV'!#REF!=\"SI\",'INTRODUCCIÓN ESPECIES FASE INV'!#REF!,NA())","v":{"$error":"#REF!"}},{"$f":"IF('INTRODUCCIÓN ESPECIES FASE INV'!#REF!=\"SI\",'INTRODUCCIÓN ESPECIES FASE INV'!#REF!,NA())","v":{"$error":"#REF!"}},{"$f":"IF('INTRODUCCIÓN ESPECIES FASE INV'!#REF!=\"SI\",'OBLIGACIONES APLICABLES'!#REF!,NA())","v":{"$error":"#REF!"}},{"$f":"IF('INTRODUCCIÓN ESPECIES FASE INV'!#REF!=\"SI\",'OBLIGACIONES APLICABLES'!#REF!,NA())","v":{"$error":"#REF!"}}]
[{"$f":"IF('INTRODUCCIÓN ESPECIES FASE INV'!#REF!=\"SI\",'INTRODUCCIÓN ESPECIES FASE INV'!#REF!,NA())","v":{"$error":"#REF!"}},{"$f":"IF('INTRODUCCIÓN ESPECIES FASE INV'!#REF!=\"SI\",'INTRODUCCIÓN ESPECIES FASE INV'!#REF!,NA())","v":{"$error":"#REF!"}},{"$f":"IF('INTRODUCCIÓN ESPECIES FASE INV'!#REF!=\"SI\",'OBLIGACIONES APLICABLES'!#REF!,NA())","v":{"$error":"#REF!"}},{"$f":"IF('INTRODUCCIÓN ESPECIES FASE INV'!#REF!=\"SI\",'OBLIGACIONES APLICABLES'!#REF!,NA())","v":{"$error":"#REF!"}}]
[{"$f":"IF('INTRODUCCIÓN ESPECIES FASE INV'!#REF!=\"SI\",'INTRODUCCIÓN ESPECIES FASE INV'!#REF!,NA())","v":{"$error":"#REF!"}},{"$f":"IF('INTRODUCCIÓN ESPECIES FASE INV'!#REF!=\"SI\",'INTRODUCCIÓN ESPECIES FASE INV'!#REF!,NA())","v":{"$error":"#REF!"}},{"$f":"IF('INTRODUCCIÓN ESPECIES FASE INV'!#REF!=\"SI\",'OBLIGACIONES APLICABLES'!#REF!,NA())","v":{"$error":"#REF!"}},{"$f":"IF('INTRODUCCIÓN ESPECIES FASE INV'!#REF!=\"SI\",'OBLIGACIONES APLICABLES'!#REF!,NA())","v":{"$error":"#REF!"}}]
[{"$f":"IF('INTRODUCCIÓN ESPECIES FASE INV'!#REF!=\"SI\",'INTRODUCCIÓN ESPECIES FASE INV'!#REF!,NA())","v":{"$error":"#REF!"}},{"$f":"IF('INTRODUCCIÓN ESPECIES FASE INV'!#REF!=\"SI\",'INTRODUCCIÓN ESPECIES FASE INV'!#REF!,NA())","v":{"$error":"#REF!"}},{"$f":"IF('INTRODUCCIÓN ESPECIES FASE INV'!#REF!=\"SI\",'OBLIGACIONES APLICABLES'!#REF!,NA())","v":{"$error":"#REF!"}},{"$f":"IF('INTRODUCCIÓN ESPECIES FASE INV'!#REF!=\"SI\",'OBLIGACIONES APLICABLES'!#REF!,NA())","v":{"$error":"#REF!"}}]
[{"$f":"IF('INTRODUCCIÓN ESPECIES FASE INV'!#REF!=\"SI\",'INTRODUCCIÓN ESPECIES FASE INV'!#REF!,NA())","v":{"$error":"#REF!"}},{"$f":"IF('INTRODUCCIÓN ESPECIES FASE INV'!#REF!=\"SI\",'INTRODUCCIÓN ESPECIES FASE INV'!#REF!,NA())","v":{"$error":"#REF!"}},{"$f":"IF('INTRODUCCIÓN ESPECIES FASE INV'!#REF!=\"SI\",'OBLIGACIONES APLICABLES'!#REF!,NA())","v":{"$error":"#REF!"}},{"$f":"IF('INTRODUCCIÓN ESPECIES FASE INV'!#REF!=\"SI\",'OBLIGACIONES APLICABLES'!#REF!,NA())","v":{"$error":"#REF!"}}]
[{"$f":"IF('INTRODUCCIÓN ESPECIES FASE INV'!#REF!=\"SI\",'INTRODUCCIÓN ESPECIES FASE INV'!#REF!,NA())","v":{"$error":"#REF!"}},{"$f":"IF('INTRODUCCIÓN ESPECIES FASE INV'!#REF!=\"SI\",'INTRODUCCIÓN ESPECIES FASE INV'!#REF!,NA())","v":{"$error":"#REF!"}},{"$f":"IF('INTRODUCCIÓN ESPECIES FASE INV'!#REF!=\"SI\",'OBLIGACIONES APLICABLES'!#REF!,NA())","v":{"$error":"#REF!"}},{"$f":"IF('INTRODUCCIÓN ESPECIES FASE INV'!#REF!=\"SI\",'OBLIGACIONES APLICABLES'!#REF!,NA())","v":{"$error":"#REF!"}}]
[{"$f":"IF('INTRODUCCIÓN ESPECIES FASE INV'!#REF!=\"SI\",'INTRODUCCIÓN ESPECIES FASE INV'!#REF!,NA())","v":{"$error":"#REF!"}},{"$f":"IF('INTRODUCCIÓN ESPECIES FASE INV'!#REF!=\"SI\",'INTRODUCCIÓN ESPECIES FASE INV'!#REF!,NA())","v":{"$error":"#REF!"}},{"$f":"IF('INTRODUCCIÓN ESPECIES FASE INV'!#REF!=\"SI\",'OBLIGACIONES APLICABLES'!#REF!,NA())","v":{"$error":"#REF!"}},{"$f":"IF('INTRODUCCIÓN ESPECIES FASE INV'!#REF!=\"SI\",'OBLIGACIONES APLICABLES'!#REF!,NA())","v":{"$error":"#REF!"}}]
[{"$f":"IF('INTRODUCCIÓN ESPECIES FASE INV'!#REF!=\"SI\",'INTRODUCCIÓN ESPECIES FASE INV'!#REF!,NA())","v":{"$error":"#REF!"}},{"$f":"IF('INTRODUCCIÓN ESPECIES FASE INV'!#REF!=\"SI\",'INTRODUCCIÓN ESPECIES FASE INV'!#REF!,NA())","v":{"$error":"#REF!"}},{"$f":"IF('INTRODUCCIÓN ESPECIES FASE INV'!#REF!=\"SI\",'OBLIGACIONES APLICABLES'!#REF!,NA())","v":{"$error":"#REF!"}},{"$f":"IF('INTRODUCCIÓN ESPECIES FASE INV'!#REF!=\"SI\",'OBLIGACIONES APLICABLES'!#REF!,NA())","v":{"$error":"#REF!"}}]
[{"$f":"IF('INTRODUCCIÓN ESPECIES FASE INV'!#REF!=\"SI\",'INTRODUCCIÓN ESPECIES FASE INV'!#REF!,NA())","v":{"$error":"#REF!"}},{"$f":"IF('INTRODUCCIÓN ESPECIES FASE INV'!#REF!=\"SI\",'INTRODUCCIÓN ESPECIES FASE INV'!#REF!,NA())","v":{"$error":"#REF!"}},{"$f":"IF('INTRODUCCIÓN ESPECIES FASE INV'!#REF!=\"SI\",'OBLIGACIONES APLICABLES'!#REF!,NA())","v":{"$error":"#REF!"}},{"$f":"IF('INTRODUCCIÓN ESPECIES FASE INV'!#REF!=\"SI\",'OBLIGACIONES APLICABLES'!#REF!,NA())","v":{"$error":"#REF!"}}]
[{"$f":"IF('INTRODUCCIÓN ESPECIES FASE INV'!#REF!=\"SI\",'INTRODUCCIÓN ESPECIES FASE INV'!#REF!,NA())","v":{"$error":"#REF!"}},{"$f":"IF('INTRODUCCIÓN ESPECIES FASE INV'!#REF!=\"SI\",'INTRODUCCIÓN ESPECIES FASE INV'!#REF!,NA())","v":{"$error":"#REF!"}},{"$f":"IF('INTRODUCCIÓN ESPECIES FASE INV'!#REF!=\"SI\",'OBLIGACIONES APLICABLES'!#REF!,NA())","v":{"$error":"#REF!"}},{"$f":"IF('INTRODUCCIÓN ESPECIES FASE INV'!#REF!=\"SI\",'OBLIGACIONES APLICABLES'!#REF!,NA())","v":{"$error":"#REF!"}}]
[{"$f":"IF('INTRODUCCIÓN ESPECIES FASE INV'!#REF!=\"SI\",'INTRODUCCIÓN ESPECIES FASE INV'!#REF!,NA())","v":{"$error":"#REF!"}},{"$f":"IF('INTRODUCCIÓN ESPECIES FASE INV'!#REF!=\"SI\",'INTRODUCCIÓN ESPECIES FASE INV'!#REF!,NA())","v":{"$error":"#REF!"}},{"$f":"IF('INTRODUCCIÓN ESPECIES FASE INV'!#REF!=\"SI\",'OBLIGACIONES APLICABLES'!#REF!,NA())","v":{"$error":"#REF!"}},{"$f":"IF('INTRODUCCIÓN ESPECIES FASE INV'!#REF!=\"SI\",'OBLIGACIONES APLICABLES'!#REF!,NA())","v":{"$error":"#REF!"}}]
[{"$f":"IF('INTRODUCCIÓN ESPECIES FASE INV'!#REF!=\"SI\",'INTRODUCCIÓN ESPECIES FASE INV'!#REF!,NA())","v":{"$error":"#REF!"}},{"$f":"IF('INTRODUCCIÓN ESPECIES FASE INV'!#REF!=\"SI\",'INTRODUCCIÓN ESPECIES FASE INV'!#REF!,NA())","v":{"$error":"#REF!"}},{"$f":"IF('INTRODUCCIÓN ESPECIES FASE INV'!#REF!=\"SI\",'OBLIGACIONES APLICABLES'!#REF!,NA())","v":{"$error":"#REF!"}},{"$f":"IF('INTRODUCCIÓN ESPECIES FASE INV'!#REF!=\"SI\",'OBLIGACIONES APLICABLES'!#REF!,NA())","v":{"$error":"#REF!"}}]
[{"$f":"IF('INTRODUCCIÓN ESPECIES FASE INV'!#REF!=\"SI\",'INTRODUCCIÓN ESPECIES FASE INV'!#REF!,NA())","v":{"$error":"#REF!"}},{"$f":"IF('INTRODUCCIÓN ESPECIES FASE INV'!#REF!=\"SI\",'INTRODUCCIÓN ESPECIES FASE INV'!#REF!,NA())","v":{"$error":"#REF!"}},{"$f":"IF('INTRODUCCIÓN ESPECIES FASE INV'!#REF!=\"SI\",'OBLIGACIONES APLICABLES'!#REF!,NA())","v":{"$error":"#REF!"}},{"$f":"IF('INTRODUCCIÓN ESPECIES FASE INV'!#REF!=\"SI\",'OBLIGACIONES APLICABLES'!#REF!,NA())","v":{"$error":"#REF!"}}]
[{"$f":"IF('INTRODUCCIÓN ESPECIES FASE INV'!#REF!=\"SI\",'INTRODUCCIÓN ESPECIES FASE INV'!#REF!,NA())","v":{"$error":"#REF!"}},{"$f":"IF('INTRODUCCIÓN ESPECIES FASE INV'!#REF!=\"SI\",'INTRODUCCIÓN ESPECIES FASE INV'!#REF!,NA())","v":{"$error":"#REF!"}},{"$f":"IF('INTRODUCCIÓN ESPECIES FASE INV'!#REF!=\"SI\",'OBLIGACIONES APLICABLES'!#REF!,NA())","v":{"$error":"#REF!"}},{"$f":"IF('INTRODUCCIÓN ESPECIES FASE INV'!#REF!=\"SI\",'OBLIGACIONES APLICABLES'!#REF!,NA())","v":{"$error":"#REF!"}}]
[{"$f":"IF('INTRODUCCIÓN ESPECIES FASE INV'!#REF!=\"SI\",'INTRODUCCIÓN ESPECIES FASE INV'!#REF!,NA())","v":{"$error":"#REF!"}},{"$f":"IF('INTRODUCCIÓN ESPECIES FASE INV'!#REF!=\"SI\",'INTRODUCCIÓN ESPECIES FASE INV'!#REF!,NA())","v":{"$error":"#REF!"}},{"$f":"IF('INTRODUCCIÓN ESPECIES FASE INV'!#REF!=\"SI\",'OBLIGACIONES APLICABLES'!#REF!,NA())","v":{"$error":"#REF!"}},{"$f":"IF('INTRODUCCIÓN ESPECIES FASE INV'!#REF!=\"SI\",'OBLIGACIONES APLICABLES'!#REF!,NA())","v":{"$error":"#REF!"}}]
[{"$f":"IF('INTRODUCCIÓN ESPECIES FASE INV'!#REF!=\"SI\",'INTRODUCCIÓN ESPECIES FASE INV'!#REF!,NA())","v":{"$error":"#REF!"}},{"$f":"IF('INTRODUCCIÓN ESPECIES FASE INV'!#REF!=\"SI\",'INTRODUCCIÓN ESPECIES FASE INV'!#REF!,NA())","v":{"$error":"#REF!"}},{"$f":"IF('INTRODUCCIÓN ESPECIES FASE INV'!#REF!=\"SI\",'OBLIGACIONES APLICABLES'!#REF!,NA())","v":{"$error":"#REF!"}},{"$f":"IF('INTRODUCCIÓN ESPECIES FASE INV'!#REF!=\"SI\",'OBLIGACIONES APLICABLES'!#REF!,NA())","v":{"$error":"#REF!"}}]
[{"$f":"IF('INTRODUCCIÓN ESPECIES FASE INV'!#REF!=\"SI\",'INTRODUCCIÓN ESPECIES FASE INV'!#REF!,NA())","v":{"$error":"#REF!"}},{"$f":"IF('INTRODUCCIÓN ESPECIES FASE INV'!#REF!=\"SI\",'INTRODUCCIÓN ESPECIES FASE INV'!#REF!,NA())","v":{"$error":"#REF!"}},{"$f":"IF('INTRODUCCIÓN ESPECIES FASE INV'!#REF!=\"SI\",'OBLIGACIONES APLICABLES'!#REF!,NA())","v":{"$error":"#REF!"}},{"$f":"IF('INTRODUCCIÓN ESPECIES FASE INV'!#REF!=\"SI\",'OBLIGACIONES APLICABLES'!#REF!,NA())","v":{"$error":"#REF!"}}]
[{"$f":"IF('INTRODUCCIÓN ESPECIES FASE INV'!#REF!=\"SI\",'INTRODUCCIÓN ESPECIES FASE INV'!#REF!,NA())","v":{"$error":"#REF!"}},{"$f":"IF('INTRODUCCIÓN ESPECIES FASE INV'!#REF!=\"SI\",'INTRODUCCIÓN ESPECIES FASE INV'!#REF!,NA())","v":{"$error":"#REF!"}},{"$f":"IF('INTRODUCCIÓN ESPECIES FASE INV'!#REF!=\"SI\",'OBLIGACIONES APLICABLES'!#REF!,NA())","v":{"$error":"#REF!"}},{"$f":"IF('INTRODUCCIÓN ESPECIES FASE INV'!#REF!=\"SI\",'OBLIGACIONES APLICABLES'!#REF!,NA())","v":{"$error":"#REF!"}}]
[{"$f":"IF('INTRODUCCIÓN ESPECIES FASE INV'!#REF!=\"SI\",'INTRODUCCIÓN ESPECIES FASE INV'!#REF!,NA())","v":{"$error":"#REF!"}},{"$f":"IF('INTRODUCCIÓN ESPECIES FASE INV'!#REF!=\"SI\",'INTRODUCCIÓN ESPECIES FASE INV'!#REF!,NA())","v":{"$error":"#REF!"}},{"$f":"IF('INTRODUCCIÓN ESPECIES FASE INV'!#REF!=\"SI\",'OBLIGACIONES APLICABLES'!#REF!,NA())","v":{"$error":"#REF!"}},{"$f":"IF('INTRODUCCIÓN ESPECIES FASE INV'!#REF!=\"SI\",'OBLIGACIONES APLICABLES'!#REF!,NA())","v":{"$error":"#REF!"}}]
[{"$f":"IF('INTRODUCCIÓN ESPECIES FASE INV'!#REF!=\"SI\",'INTRODUCCIÓN ESPECIES FASE INV'!#REF!,NA())","v":{"$error":"#REF!"}},{"$f":"IF('INTRODUCCIÓN ESPECIES FASE INV'!#REF!=\"SI\",'INTRODUCCIÓN ESPECIES FASE INV'!#REF!,NA())","v":{"$error":"#REF!"}},{"$f":"IF('INTRODUCCIÓN ESPECIES FASE INV'!#REF!=\"SI\",'OBLIGACIONES APLICABLES'!#REF!,NA())","v":{"$error":"#REF!"}},{"$f":"IF('INTRODUCCIÓN ESPECIES FASE INV'!#REF!=\"SI\",'OBLIGACIONES APLICABLES'!#REF!,NA())","v":{"$error":"#REF!"}}]
[{"$f":"IF('INTRODUCCIÓN ESPECIES FASE INV'!#REF!=\"SI\",'INTRODUCCIÓN ESPECIES FASE INV'!#REF!,NA())","v":{"$error":"#REF!"}},{"$f":"IF('INTRODUCCIÓN ESPECIES FASE INV'!#REF!=\"SI\",'INTRODUCCIÓN ESPECIES FASE INV'!#REF!,NA())","v":{"$error":"#REF!"}},{"$f":"IF('INTRODUCCIÓN ESPECIES FASE INV'!#REF!=\"SI\",'OBLIGACIONES APLICABLES'!#REF!,NA())","v":{"$error":"#REF!"}},{"$f":"IF('INTRODUCCIÓN ESPECIES FASE INV'!#REF!=\"SI\",'OBLIGACIONES APLICABLES'!#REF!,NA())","v":{"$error":"#REF!"}}]

{"sheet":"Hoja2","index":4,"n_rows":74,"n_cols":4,"rows_kept":74,"cut":false,"hidden":true,"merged":[]}
["COMPONENTE","Fase de construcción","Fase de operación y mantenimiento","Fase de desmantelamiento y abandono"]
[{"$f":"IFERROR(INDEX(Temp!A$3:A$170, SMALL(IF(ISERROR(Temp!A$3:A$170), \"\", ROW(Temp!A$3:A$170)-MIN(ROW(Temp!A$3:A$170))+1), ROW(1:1))),\"\")","v":""},{"$f":"IFERROR(INDEX(Temp!B$3:B$170, SMALL(IF(ISERROR(Temp!B$3:B$170), \"\", ROW(Temp!B$3:B$170)-MIN(ROW(Temp!B$3:B$170))+1), ROW(1:1))),\"\")","v":""},{"$f":"IFERROR(INDEX(Temp!C$3:C$170, SMALL(IF(ISERROR(Temp!C$3:C$170), \"\", ROW(Temp!C$3:C$170)-MIN(ROW(Temp!C$3:C$170))+1), ROW(1:1))),\"\")","v":""},{"$f":"IFERROR(INDEX(Temp!D$3:D$170, SMALL(IF(ISERROR(Temp!D$3:D$170), \"\", ROW(Temp!D$3:D$170)-MIN(ROW(Temp!D$3:D$170))+1), ROW(1:1))),\"\")","v":""}]
[{"$f":"IFERROR(INDEX(Temp!A$3:A$170, SMALL(IF(ISERROR(Temp!A$3:A$170), \"\", ROW(Temp!A$3:A$170)-MIN(ROW(Temp!A$3:A$170))+1), ROW(2:2))),\"\")","v":""},{"$f":"IFERROR(INDEX(Temp!B$3:B$170, SMALL(IF(ISERROR(Temp!B$3:B$170), \"\", ROW(Temp!B$3:B$170)-MIN(ROW(Temp!B$3:B$170))+1), ROW(2:2))),\"\")","v":""},{"$f":"IFERROR(INDEX(Temp!C$3:C$170, SMALL(IF(ISERROR(Temp!C$3:C$170), \"\", ROW(Temp!C$3:C$170)-MIN(ROW(Temp!C$3:C$170))+1), ROW(2:2))),\"\")","v":""},{"$f":"IFERROR(INDEX(Temp!D$3:D$170, SMALL(IF(ISERROR(Temp!D$3:D$170), \"\", ROW(Temp!D$3:D$170)-MIN(ROW(Temp!D$3:D$170))+1), ROW(2:2))),\"\")","v":""}]
[{"$f":"IFERROR(INDEX(Temp!A$3:A$170, SMALL(IF(ISERROR(Temp!A$3:A$170), \"\", ROW(Temp!A$3:A$170)-MIN(ROW(Temp!A$3:A$170))+1), ROW(3:3))),\"\")","v":""},{"$f":"IFERROR(INDEX(Temp!B$3:B$170, SMALL(IF(ISERROR(Temp!B$3:B$170), \"\", ROW(Temp!B$3:B$170)-MIN(ROW(Temp!B$3:B$170))+1), ROW(3:3))),\"\")","v":""},{"$f":"IFERROR(INDEX(Temp!C$3:C$170, SMALL(IF(ISERROR(Temp!C$3:C$170), \"\", ROW(Temp!C$3:C$170)-MIN(ROW(Temp!C$3:C$170))+1), ROW(3:3))),\"\")","v":""},{"$f":"IFERROR(INDEX(Temp!D$3:D$170, SMALL(IF(ISERROR(Temp!D$3:D$170), \"\", ROW(Temp!D$3:D$170)-MIN(ROW(Temp!D$3:D$170))+1), ROW(3:3))),\"\")","v":""}]
[{"$f":"IFERROR(INDEX(Temp!A$3:A$170, SMALL(IF(ISERROR(Temp!A$3:A$170), \"\", ROW(Temp!A$3:A$170)-MIN(ROW(Temp!A$3:A$170))+1), ROW(4:4))),\"\")","v":""},{"$f":"IFERROR(INDEX(Temp!B$3:B$170, SMALL(IF(ISERROR(Temp!B$3:B$170), \"\", ROW(Temp!B$3:B$170)-MIN(ROW(Temp!B$3:B$170))+1), ROW(4:4))),\"\")","v":""},{"$f":"IFERROR(INDEX(Temp!C$3:C$170, SMALL(IF(ISERROR(Temp!C$3:C$170), \"\", ROW(Temp!C$3:C$170)-MIN(ROW(Temp!C$3:C$170))+1), ROW(4:4))),\"\")","v":""},{"$f":"IFERROR(INDEX(Temp!D$3:D$170, SMALL(IF(ISERROR(Temp!D$3:D$170), \"\", ROW(Temp!D$3:D$170)-MIN(ROW(Temp!D$3:D$170))+1), ROW(4:4))),\"\")","v":""}]
[{"$f":"IFERROR(INDEX(Temp!A$3:A$170, SMALL(IF(ISERROR(Temp!A$3:A$170), \"\", ROW(Temp!A$3:A$170)-MIN(ROW(Temp!A$3:A$170))+1), ROW(5:5))),\"\")","v":""},{"$f":"IFERROR(INDEX(Temp!B$3:B$170, SMALL(IF(ISERROR(Temp!B$3:B$170), \"\", ROW(Temp!B$3:B$170)-MIN(ROW(Temp!B$3:B$170))+1), ROW(5:5))),\"\")","v":""},{"$f":"IFERROR(INDEX(Temp!C$3:C$170, SMALL(IF(ISERROR(Temp!C$3:C$170), \"\", ROW(Temp!C$3:C$170)-MIN(ROW(Temp!C$3:C$170))+1), ROW(5:5))),\"\")","v":""},{"$f":"IFERROR(INDEX(Temp!D$3:D$170, SMALL(IF(ISERROR(Temp!D$3:D$170), \"\", ROW(Temp!D$3:D$170)-MIN(ROW(Temp!D$3:D$170))+1), ROW(5:5))),\"\")","v":""}]
[{"$f":"IFERROR(INDEX(Temp!A$3:A$170, SMALL(IF(ISERROR(Temp!A$3:A$170), \"\", ROW(Temp!A$3:A$170)-MIN(ROW(Temp!A$3:A$170))+1), ROW(6:6))),\"\")","v":""},{"$f":"IFERROR(INDEX(Temp!B$3:B$170, SMALL(IF(ISERROR(Temp!B$3:B$170), \"\", ROW(Temp!B$3:B$170)-MIN(ROW(Temp!B$3:B$170))+1), ROW(6:6))),\"\")","v":""},{"$f":"IFERROR(INDEX(Temp!C$3:C$170, SMALL(IF(ISERROR(Temp!C$3:C$170), \"\", ROW(Temp!C$3:C$170)-MIN(ROW(Temp!C$3:C$170))+1), ROW(6:6))),\"\")","v":""},{"$f":"IFERROR(INDEX(Temp!D$3:D$170, SMALL(IF(ISERROR(Temp!D$3:D$170), \"\", ROW(Temp!D$3:D$170)-MIN(ROW(Temp!D$3:D$170))+1), ROW(6:6))),\"\")","v":""}]
[{"$f":"IFERROR(INDEX(Temp!A$3:A$170, SMALL(IF(ISERROR(Temp!A$3:A$170), \"\", ROW(Temp!A$3:A$170)-MIN(ROW(Temp!A$3:A$170))+1), ROW(7:7))),\"\")","v":""},{"$f":"IFERROR(INDEX(Temp!B$3:B$170, SMALL(IF(ISERROR(Temp!B$3:B$170), \"\", ROW(Temp!B$3:B$170)-MIN(ROW(Temp!B$3:B$170))+1), ROW(7:7))),\"\")","v":""},{"$f":"IFERROR(INDEX(Temp!C$3:C$170, SMALL(IF(ISERROR(Temp!C$3:C$170), \"\", ROW(Temp!C$3:C$170)-MIN(ROW(Temp!C$3:C$170))+1), ROW(7:7))),\"\")","v":""},{"$f":"IFERROR(INDEX(Temp!D$3:D$170, SMALL(IF(ISERROR(Temp!D$3:D$170), \"\", ROW(Temp!D$3:D$170)-MIN(ROW(Temp!D$3:D$170))+1), ROW(7:7))),\"\")","v":""}]
[{"$f":"IFERROR(INDEX(Temp!A$3:A$170, SMALL(IF(ISERROR(Temp!A$3:A$170), \"\", ROW(Temp!A$3:A$170)-MIN(ROW(Temp!A$3:A$170))+1), ROW(8:8))),\"\")","v":""},{"$f":"IFERROR(INDEX(Temp!B$3:B$170, SMALL(IF(ISERROR(Temp!B$3:B$170), \"\", ROW(Temp!B$3:B$170)-MIN(ROW(Temp!B$3:B$170))+1), ROW(8:8))),\"\")","v":""},{"$f":"IFERROR(INDEX(Temp!C$3:C$170, SMALL(IF(ISERROR(Temp!C$3:C$170), \"\", ROW(Temp!C$3:C$170)-MIN(ROW(Temp!C$3:C$170))+1), ROW(8:8))),\"\")","v":""},{"$f":"IFERROR(INDEX(Temp!D$3:D$170, SMALL(IF(ISERROR(Temp!D$3:D$170), \"\", ROW(Temp!D$3:D$170)-MIN(ROW(Temp!D$3:D$170))+1), ROW(8:8))),\"\")","v":""}]
[{"$f":"IFERROR(INDEX(Temp!A$3:A$170, SMALL(IF(ISERROR(Temp!A$3:A$170), \"\", ROW(Temp!A$3:A$170)-MIN(ROW(Temp!A$3:A$170))+1), ROW(9:9))),\"\")","v":""},{"$f":"IFERROR(INDEX(Temp!B$3:B$170, SMALL(IF(ISERROR(Temp!B$3:B$170), \"\", ROW(Temp!B$3:B$170)-MIN(ROW(Temp!B$3:B$170))+1), ROW(9:9))),\"\")","v":""},{"$f":"IFERROR(INDEX(Temp!C$3:C$170, SMALL(IF(ISERROR(Temp!C$3:C$170), \"\", ROW(Temp!C$3:C$170)-MIN(ROW(Temp!C$3:C$170))+1), ROW(9:9))),\"\")","v":""},{"$f":"IFERROR(INDEX(Temp!D$3:D$170, SMALL(IF(ISERROR(Temp!D$3:D$170), \"\", ROW(Temp!D$3:D$170)-MIN(ROW(Temp!D$3:D$170))+1), ROW(9:9))),\"\")","v":""}]
[{"$f":"IFERROR(INDEX(Temp!A$3:A$170, SMALL(IF(ISERROR(Temp!A$3:A$170), \"\", ROW(Temp!A$3:A$170)-MIN(ROW(Temp!A$3:A$170))+1), ROW(10:10))),\"\")","v":""},{"$f":"IFERROR(INDEX(Temp!B$3:B$170, SMALL(IF(ISERROR(Temp!B$3:B$170), \"\", ROW(Temp!B$3:B$170)-MIN(ROW(Temp!B$3:B$170))+1), ROW(10:10))),\"\")","v":""},{"$f":"IFERROR(INDEX(Temp!C$3:C$170, SMALL(IF(ISERROR(Temp!C$3:C$170), \"\", ROW(Temp!C$3:C$170)-MIN(ROW(Temp!C$3:C$170))+1), ROW(10:10))),\"\")","v":""},{"$f":"IFERROR(INDEX(Temp!D$3:D$170, SMALL(IF(ISERROR(Temp!D$3:D$170), \"\", ROW(Temp!D$3:D$170)-MIN(ROW(Temp!D$3:D$170))+1), ROW(10:10))),\"\")","v":""}]
[{"$f":"IFERROR(INDEX(Temp!A$3:A$170, SMALL(IF(ISERROR(Temp!A$3:A$170), \"\", ROW(Temp!A$3:A$170)-MIN(ROW(Temp!A$3:A$170))+1), ROW(11:11))),\"\")","v":""},{"$f":"IFERROR(INDEX(Temp!B$3:B$170, SMALL(IF(ISERROR(Temp!B$3:B$170), \"\", ROW(Temp!B$3:B$170)-MIN(ROW(Temp!B$3:B$170))+1), ROW(11:11))),\"\")","v":""},{"$f":"IFERROR(INDEX(Temp!C$3:C$170, SMALL(IF(ISERROR(Temp!C$3:C$170), \"\", ROW(Temp!C$3:C$170)-MIN(ROW(Temp!C$3:C$170))+1), ROW(11:11))),\"\")","v":""},{"$f":"IFERROR(INDEX(Temp!D$3:D$170, SMALL(IF(ISERROR(Temp!D$3:D$170), \"\", ROW(Temp!D$3:D$170)-MIN(ROW(Temp!D$3:D$170))+1), ROW(11:11))),\"\")","v":""}]
[{"$f":"IFERROR(INDEX(Temp!A$3:A$170, SMALL(IF(ISERROR(Temp!A$3:A$170), \"\", ROW(Temp!A$3:A$170)-MIN(ROW(Temp!A$3:A$170))+1), ROW(12:12))),\"\")","v":""},{"$f":"IFERROR(INDEX(Temp!B$3:B$170, SMALL(IF(ISERROR(Temp!B$3:B$170), \"\", ROW(Temp!B$3:B$170)-MIN(ROW(Temp!B$3:B$170))+1), ROW(12:12))),\"\")","v":""},{"$f":"IFERROR(INDEX(Temp!C$3:C$170, SMALL(IF(ISERROR(Temp!C$3:C$170), \"\", ROW(Temp!C$3:C$170)-MIN(ROW(Temp!C$3:C$170))+1), ROW(12:12))),\"\")","v":""},{"$f":"IFERROR(INDEX(Temp!D$3:D$170, SMALL(IF(ISERROR(Temp!D$3:D$170), \"\", ROW(Temp!D$3:D$170)-MIN(ROW(Temp!D$3:D$170))+1), ROW(12:12))),\"\")","v":""}]
[{"$f":"IFERROR(INDEX(Temp!A$3:A$170, SMALL(IF(ISERROR(Temp!A$3:A$170), \"\", ROW(Temp!A$3:A$170)-MIN(ROW(Temp!A$3:A$170))+1), ROW(13:13))),\"\")","v":""},{"$f":"IFERROR(INDEX(Temp!B$3:B$170, SMALL(IF(ISERROR(Temp!B$3:B$170), \"\", ROW(Temp!B$3:B$170)-MIN(ROW(Temp!B$3:B$170))+1), ROW(13:13))),\"\")","v":""},{"$f":"IFERROR(INDEX(Temp!C$3:C$170, SMALL(IF(ISERROR(Temp!C$3:C$170), \"\", ROW(Temp!C$3:C$170)-MIN(ROW(Temp!C$3:C$170))+1), ROW(13:13))),\"\")","v":""},{"$f":"IFERROR(INDEX(Temp!D$3:D$170, SMALL(IF(ISERROR(Temp!D$3:D$170), \"\", ROW(Temp!D$3:D$170)-MIN(ROW(Temp!D$3:D$170))+1), ROW(13:13))),\"\")","v":""}]
[{"$f":"IFERROR(INDEX(Temp!A$3:A$170, SMALL(IF(ISERROR(Temp!A$3:A$170), \"\", ROW(Temp!A$3:A$170)-MIN(ROW(Temp!A$3:A$170))+1), ROW(14:14))),\"\")","v":""},{"$f":"IFERROR(INDEX(Temp!B$3:B$170, SMALL(IF(ISERROR(Temp!B$3:B$170), \"\", ROW(Temp!B$3:B$170)-MIN(ROW(Temp!B$3:B$170))+1), ROW(14:14))),\"\")","v":""},{"$f":"IFERROR(INDEX(Temp!C$3:C$170, SMALL(IF(ISERROR(Temp!C$3:C$170), \"\", ROW(Temp!C$3:C$170)-MIN(ROW(Temp!C$3:C$170))+1), ROW(14:14))),\"\")","v":""},{"$f":"IFERROR(INDEX(Temp!D$3:D$170, SMALL(IF(ISERROR(Temp!D$3:D$170), \"\", ROW(Temp!D$3:D$170)-MIN(ROW(Temp!D$3:D$170))+1), ROW(14:14))),\"\")","v":""}]
[{"$f":"IFERROR(INDEX(Temp!A$3:A$170, SMALL(IF(ISERROR(Temp!A$3:A$170), \"\", ROW(Temp!A$3:A$170)-MIN(ROW(Temp!A$3:A$170))+1), ROW(15:15))),\"\")","v":""},{"$f":"IFERROR(INDEX(Temp!B$3:B$170, SMALL(IF(ISERROR(Temp!B$3:B$170), \"\", ROW(Temp!B$3:B$170)-MIN(ROW(Temp!B$3:B$170))+1), ROW(15:15))),\"\")","v":""},{"$f":"IFERROR(INDEX(Temp!C$3:C$170, SMALL(IF(ISERROR(Temp!C$3:C$170), \"\", ROW(Temp!C$3:C$170)-MIN(ROW(Temp!C$3:C$170))+1), ROW(15:15))),\"\")","v":""},{"$f":"IFERROR(INDEX(Temp!D$3:D$170, SMALL(IF(ISERROR(Temp!D$3:D$170), \"\", ROW(Temp!D$3:D$170)-MIN(ROW(Temp!D$3:D$170))+1), ROW(15:15))),\"\")","v":""}]
[{"$f":"IFERROR(INDEX(Temp!A$3:A$170, SMALL(IF(ISERROR(Temp!A$3:A$170), \"\", ROW(Temp!A$3:A$170)-MIN(ROW(Temp!A$3:A$170))+1), ROW(16:16))),\"\")","v":""},{"$f":"IFERROR(INDEX(Temp!B$3:B$170, SMALL(IF(ISERROR(Temp!B$3:B$170), \"\", ROW(Temp!B$3:B$170)-MIN(ROW(Temp!B$3:B$170))+1), ROW(16:16))),\"\")","v":""},{"$f":"IFERROR(INDEX(Temp!C$3:C$170, SMALL(IF(ISERROR(Temp!C$3:C$170), \"\", ROW(Temp!C$3:C$170)-MIN(ROW(Temp!C$3:C$170))+1), ROW(16:16))),\"\")","v":""},{"$f":"IFERROR(INDEX(Temp!D$3:D$170, SMALL(IF(ISERROR(Temp!D$3:D$170), \"\", ROW(Temp!D$3:D$170)-MIN(ROW(Temp!D$3:D$170))+1), ROW(16:16))),\"\")","v":""}]
[{"$f":"IFERROR(INDEX(Temp!A$3:A$170, SMALL(IF(ISERROR(Temp!A$3:A$170), \"\", ROW(Temp!A$3:A$170)-MIN(ROW(Temp!A$3:A$170))+1), ROW(17:17))),\"\")","v":""},{"$f":"IFERROR(INDEX(Temp!B$3:B$170, SMALL(IF(ISERROR(Temp!B$3:B$170), \"\", ROW(Temp!B$3:B$170)-MIN(ROW(Temp!B$3:B$170))+1), ROW(17:17))),\"\")","v":""},{"$f":"IFERROR(INDEX(Temp!C$3:C$170, SMALL(IF(ISERROR(Temp!C$3:C$170), \"\", ROW(Temp!C$3:C$170)-MIN(ROW(Temp!C$3:C$170))+1), ROW(17:17))),\"\")","v":""},{"$f":"IFERROR(INDEX(Temp!D$3:D$170, SMALL(IF(ISERROR(Temp!D$3:D$170), \"\", ROW(Temp!D$3:D$170)-MIN(ROW(Temp!D$3:D$170))+1), ROW(17:17))),\"\")","v":""}]
[{"$f":"IFERROR(INDEX(Temp!A$3:A$170, SMALL(IF(ISERROR(Temp!A$3:A$170), \"\", ROW(Temp!A$3:A$170)-MIN(ROW(Temp!A$3:A$170))+1), ROW(18:18))),\"\")","v":""},{"$f":"IFERROR(INDEX(Temp!B$3:B$170, SMALL(IF(ISERROR(Temp!B$3:B$170), \"\", ROW(Temp!B$3:B$170)-MIN(ROW(Temp!B$3:B$170))+1), ROW(18:18))),\"\")","v":""},{"$f":"IFERROR(INDEX(Temp!C$3:C$170, SMALL(IF(ISERROR(Temp!C$3:C$170), \"\", ROW(Temp!C$3:C$170)-MIN(ROW(Temp!C$3:C$170))+1), ROW(18:18))),\"\")","v":""},{"$f":"IFERROR(INDEX(Temp!D$3:D$170, SMALL(IF(ISERROR(Temp!D$3:D$170), \"\", ROW(Temp!D$3:D$170)-MIN(ROW(Temp!D$3:D$170))+1), ROW(18:18))),\"\")","v":""}]
[{"$f":"IFERROR(INDEX(Temp!A$3:A$170, SMALL(IF(ISERROR(Temp!A$3:A$170), \"\", ROW(Temp!A$3:A$170)-MIN(ROW(Temp!A$3:A$170))+1), ROW(19:19))),\"\")","v":""},{"$f":"IFERROR(INDEX(Temp!B$3:B$170, SMALL(IF(ISERROR(Temp!B$3:B$170), \"\", ROW(Temp!B$3:B$170)-MIN(ROW(Temp!B$3:B$170))+1), ROW(19:19))),\"\")","v":""},{"$f":"IFERROR(INDEX(Temp!C$3:C$170, SMALL(IF(ISERROR(Temp!C$3:C$170), \"\", ROW(Temp!C$3:C$170)-MIN(ROW(Temp!C$3:C$170))+1), ROW(19:19))),\"\")","v":""},{"$f":"IFERROR(INDEX(Temp!D$3:D$170, SMALL(IF(ISERROR(Temp!D$3:D$170), \"\", ROW(Temp!D$3:D$170)-MIN(ROW(Temp!D$3:D$170))+1), ROW(19:19))),\"\")","v":""}]
[{"$f":"IFERROR(INDEX(Temp!A$3:A$170, SMALL(IF(ISERROR(Temp!A$3:A$170), \"\", ROW(Temp!A$3:A$170)-MIN(ROW(Temp!A$3:A$170))+1), ROW(20:20))),\"\")","v":""},{"$f":"IFERROR(INDEX(Temp!B$3:B$170, SMALL(IF(ISERROR(Temp!B$3:B$170), \"\", ROW(Temp!B$3:B$170)-MIN(ROW(Temp!B$3:B$170))+1), ROW(20:20))),\"\")","v":""},{"$f":"IFERROR(INDEX(Temp!C$3:C$170, SMALL(IF(ISERROR(Temp!C$3:C$170), \"\", ROW(Temp!C$3:C$170)-MIN(ROW(Temp!C$3:C$170))+1), ROW(20:20))),\"\")","v":""},{"$f":"IFERROR(INDEX(Temp!D$3:D$170, SMALL(IF(ISERROR(Temp!D$3:D$170), \"\", ROW(Temp!D$3:D$170)-MIN(ROW(Temp!D$3:D$170))+1), ROW(20:20))),\"\")","v":""}]
[{"$f":"IFERROR(INDEX(Temp!A$3:A$170, SMALL(IF(ISERROR(Temp!A$3:A$170), \"\", ROW(Temp!A$3:A$170)-MIN(ROW(Temp!A$3:A$170))+1), ROW(21:21))),\"\")","v":""},{"$f":"IFERROR(INDEX(Temp!B$3:B$170, SMALL(IF(ISERROR(Temp!B$3:B$170), \"\", ROW(Temp!B$3:B$170)-MIN(ROW(Temp!B$3:B$170))+1), ROW(21:21))),\"\")","v":""},{"$f":"IFERROR(INDEX(Temp!C$3:C$170, SMALL(IF(ISERROR(Temp!C$3:C$170), \"\", ROW(Temp!C$3:C$170)-MIN(ROW(Temp!C$3:C$170))+1), ROW(21:21))),\"\")","v":""},{"$f":"IFERROR(INDEX(Temp!D$3:D$170, SMALL(IF(ISERROR(Temp!D$3:D$170), \"\", ROW(Temp!D$3:D$170)-MIN(ROW(Temp!D$3:D$170))+1), ROW(21:21))),\"\")","v":""}]
[{"$f":"IFERROR(INDEX(Temp!A$3:A$170, SMALL(IF(ISERROR(Temp!A$3:A$170), \"\", ROW(Temp!A$3:A$170)-MIN(ROW(Temp!A$3:A$170))+1), ROW(22:22))),\"\")","v":""},{"$f":"IFERROR(INDEX(Temp!B$3:B$170, SMALL(IF(ISERROR(Temp!B$3:B$170), \"\", ROW(Temp!B$3:B$170)-MIN(ROW(Temp!B$3:B$170))+1), ROW(22:22))),\"\")","v":""},{"$f":"IFERROR(INDEX(Temp!C$3:C$170, SMALL(IF(ISERROR(Temp!C$3:C$170), \"\", ROW(Temp!C$3:C$170)-MIN(ROW(Temp!C$3:C$170))+1), ROW(22:22))),\"\")","v":""},{"$f":"IFERROR(INDEX(Temp!D$3:D$170, SMALL(IF(ISERROR(Temp!D$3:D$170), \"\", ROW(Temp!D$3:D$170)-MIN(ROW(Temp!D$3:D$170))+1), ROW(22:22))),\"\")","v":""}]
[{"$f":"IFERROR(INDEX(Temp!A$3:A$170, SMALL(IF(ISERROR(Temp!A$3:A$170), \"\", ROW(Temp!A$3:A$170)-MIN(ROW(Temp!A$3:A$170))+1), ROW(23:23))),\"\")","v":""},{"$f":"IFERROR(INDEX(Temp!B$3:B$170, SMALL(IF(ISERROR(Temp!B$3:B$170), \"\", ROW(Temp!B$3:B$170)-MIN(ROW(Temp!B$3:B$170))+1), ROW(23:23))),\"\")","v":""},{"$f":"IFERROR(INDEX(Temp!C$3:C$170, SMALL(IF(ISERROR(Temp!C$3:C$170), \"\", ROW(Temp!C$3:C$170)-MIN(ROW(Temp!C$3:C$170))+1), ROW(23:23))),\"\")","v":""},{"$f":"IFERROR(INDEX(Temp!D$3:D$170, SMALL(IF(ISERROR(Temp!D$3:D$170), \"\", ROW(Temp!D$3:D$170)-MIN(ROW(Temp!D$3:D$170))+1), ROW(23:23))),\"\")","v":""}]
[{"$f":"IFERROR(INDEX(Temp!A$3:A$170, SMALL(IF(ISERROR(Temp!A$3:A$170), \"\", ROW(Temp!A$3:A$170)-MIN(ROW(Temp!A$3:A$170))+1), ROW(24:24))),\"\")","v":""},{"$f":"IFERROR(INDEX(Temp!B$3:B$170, SMALL(IF(ISERROR(Temp!B$3:B$170), \"\", ROW(Temp!B$3:B$170)-MIN(ROW(Temp!B$3:B$170))+1), ROW(24:24))),\"\")","v":""},{"$f":"IFERROR(INDEX(Temp!C$3:C$170, SMALL(IF(ISERROR(Temp!C$3:C$170), \"\", ROW(Temp!C$3:C$170)-MIN(ROW(Temp!C$3:C$170))+1), ROW(24:24))),\"\")","v":""},{"$f":"IFERROR(INDEX(Temp!D$3:D$170, SMALL(IF(ISERROR(Temp!D$3:D$170), \"\", ROW(Temp!D$3:D$170)-MIN(ROW(Temp!D$3:D$170))+1), ROW(24:24))),\"\")","v":""}]
[{"$f":"IFERROR(INDEX(Temp!A$3:A$170, SMALL(IF(ISERROR(Temp!A$3:A$170), \"\", ROW(Temp!A$3:A$170)-MIN(ROW(Temp!A$3:A$170))+1), ROW(25:25))),\"\")","v":""},{"$f":"IFERROR(INDEX(Temp!B$3:B$170, SMALL(IF(ISERROR(Temp!B$3:B$170), \"\", ROW(Temp!B$3:B$170)-MIN(ROW(Temp!B$3:B$170))+1), ROW(25:25))),\"\")","v":""},{"$f":"IFERROR(INDEX(Temp!C$3:C$170, SMALL(IF(ISERROR(Temp!C$3:C$170), \"\", ROW(Temp!C$3:C$170)-MIN(ROW(Temp!C$3:C$170))+1), ROW(25:25))),\"\")","v":""},{"$f":"IFERROR(INDEX(Temp!D$3:D$170, SMALL(IF(ISERROR(Temp!D$3:D$170), \"\", ROW(Temp!D$3:D$170)-MIN(ROW(Temp!D$3:D$170))+1), ROW(25:25))),\"\")","v":""}]
[{"$f":"IFERROR(INDEX(Temp!A$3:A$170, SMALL(IF(ISERROR(Temp!A$3:A$170), \"\", ROW(Temp!A$3:A$170)-MIN(ROW(Temp!A$3:A$170))+1), ROW(26:26))),\"\")","v":""},{"$f":"IFERROR(INDEX(Temp!B$3:B$170, SMALL(IF(ISERROR(Temp!B$3:B$170), \"\", ROW(Temp!B$3:B$170)-MIN(ROW(Temp!B$3:B$170))+1), ROW(26:26))),\"\")","v":""},{"$f":"IFERROR(INDEX(Temp!C$3:C$170, SMALL(IF(ISERROR(Temp!C$3:C$170), \"\", ROW(Temp!C$3:C$170)-MIN(ROW(Temp!C$3:C$170))+1), ROW(26:26))),\"\")","v":""},{"$f":"IFERROR(INDEX(Temp!D$3:D$170, SMALL(IF(ISERROR(Temp!D$3:D$170), \"\", ROW(Temp!D$3:D$170)-MIN(ROW(Temp!D$3:D$170))+1), ROW(26:26))),\"\")","v":""}]
[{"$f":"IFERROR(INDEX(Temp!A$3:A$170, SMALL(IF(ISERROR(Temp!A$3:A$170), \"\", ROW(Temp!A$3:A$170)-MIN(ROW(Temp!A$3:A$170))+1), ROW(27:27))),\"\")","v":""},{"$f":"IFERROR(INDEX(Temp!B$3:B$170, SMALL(IF(ISERROR(Temp!B$3:B$170), \"\", ROW(Temp!B$3:B$170)-MIN(ROW(Temp!B$3:B$170))+1), ROW(27:27))),\"\")","v":""},{"$f":"IFERROR(INDEX(Temp!C$3:C$170, SMALL(IF(ISERROR(Temp!C$3:C$170), \"\", ROW(Temp!C$3:C$170)-MIN(ROW(Temp!C$3:C$170))+1), ROW(27:27))),\"\")","v":""},{"$f":"IFERROR(INDEX(Temp!D$3:D$170, SMALL(IF(ISERROR(Temp!D$3:D$170), \"\", ROW(Temp!D$3:D$170)-MIN(ROW(Temp!D$3:D$170))+1), ROW(27:27))),\"\")","v":""}]
[{"$f":"IFERROR(INDEX(Temp!A$3:A$170, SMALL(IF(ISERROR(Temp!A$3:A$170), \"\", ROW(Temp!A$3:A$170)-MIN(ROW(Temp!A$3:A$170))+1), ROW(28:28))),\"\")","v":""},{"$f":"IFERROR(INDEX(Temp!B$3:B$170, SMALL(IF(ISERROR(Temp!B$3:B$170), \"\", ROW(Temp!B$3:B$170)-MIN(ROW(Temp!B$3:B$170))+1), ROW(28:28))),\"\")","v":""},{"$f":"IFERROR(INDEX(Temp!C$3:C$170, SMALL(IF(ISERROR(Temp!C$3:C$170), \"\", ROW(Temp!C$3:C$170)-MIN(ROW(Temp!C$3:C$170))+1), ROW(28:28))),\"\")","v":""},{"$f":"IFERROR(INDEX(Temp!D$3:D$170, SMALL(IF(ISERROR(Temp!D$3:D$170), \"\", ROW(Temp!D$3:D$170)-MIN(ROW(Temp!D$3:D$170))+1), ROW(28:28))),\"\")","v":""}]
[{"$f":"IFERROR(INDEX(Temp!A$3:A$170, SMALL(IF(ISERROR(Temp!A$3:A$170), \"\", ROW(Temp!A$3:A$170)-MIN(ROW(Temp!A$3:A$170))+1), ROW(29:29))),\"\")","v":""},{"$f":"IFERROR(INDEX(Temp!B$3:B$170, SMALL(IF(ISERROR(Temp!B$3:B$170), \"\", ROW(Temp!B$3:B$170)-MIN(ROW(Temp!B$3:B$170))+1), ROW(29:29))),\"\")","v":""},{"$f":"IFERROR(INDEX(Temp!C$3:C$170, SMALL(IF(ISERROR(Temp!C$3:C$170), \"\", ROW(Temp!C$3:C$170)-MIN(ROW(Temp!C$3:C$170))+1), ROW(29:29))),\"\")","v":""},{"$f":"IFERROR(INDEX(Temp!D$3:D$170, SMALL(IF(ISERROR(Temp!D$3:D$170), \"\", ROW(Temp!D$3:D$170)-MIN(ROW(Temp!D$3:D$170))+1), ROW(29:29))),\"\")","v":""}]
[{"$f":"IFERROR(INDEX(Temp!A$3:A$170, SMALL(IF(ISERROR(Temp!A$3:A$170), \"\", ROW(Temp!A$3:A$170)-MIN(ROW(Temp!A$3:A$170))+1), ROW(30:30))),\"\")","v":""},{"$f":"IFERROR(INDEX(Temp!B$3:B$170, SMALL(IF(ISERROR(Temp!B$3:B$170), \"\", ROW(Temp!B$3:B$170)-MIN(ROW(Temp!B$3:B$170))+1), ROW(30:30))),\"\")","v":""},{"$f":"IFERROR(INDEX(Temp!C$3:C$170, SMALL(IF(ISERROR(Temp!C$3:C$170), \"\", ROW(Temp!C$3:C$170)-MIN(ROW(Temp!C$3:C$170))+1), ROW(30:30))),\"\")","v":""},{"$f":"IFERROR(INDEX(Temp!D$3:D$170, SMALL(IF(ISERROR(Temp!D$3:D$170), \"\", ROW(Temp!D$3:D$170)-MIN(ROW(Temp!D$3:D$170))+1), ROW(30:30))),\"\")","v":""}]
[{"$f":"IFERROR(INDEX(Temp!A$3:A$170, SMALL(IF(ISERROR(Temp!A$3:A$170), \"\", ROW(Temp!A$3:A$170)-MIN(ROW(Temp!A$3:A$170))+1), ROW(31:31))),\"\")","v":""},{"$f":"IFERROR(INDEX(Temp!B$3:B$170, SMALL(IF(ISERROR(Temp!B$3:B$170), \"\", ROW(Temp!B$3:B$170)-MIN(ROW(Temp!B$3:B$170))+1), ROW(31:31))),\"\")","v":""},{"$f":"IFERROR(INDEX(Temp!C$3:C$170, SMALL(IF(ISERROR(Temp!C$3:C$170), \"\", ROW(Temp!C$3:C$170)-MIN(ROW(Temp!C$3:C$170))+1), ROW(31:31))),\"\")","v":""},{"$f":"IFERROR(INDEX(Temp!D$3:D$170, SMALL(IF(ISERROR(Temp!D$3:D$170), \"\", ROW(Temp!D$3:D$170)-MIN(ROW(Temp!D$3:D$170))+1), ROW(31:31))),\"\")","v":""}]
[{"$f":"IFERROR(INDEX(Temp!A$3:A$170, SMALL(IF(ISERROR(Temp!A$3:A$170), \"\", ROW(Temp!A$3:A$170)-MIN(ROW(Temp!A$3:A$170))+1), ROW(32:32))),\"\")","v":""},{"$f":"IFERROR(INDEX(Temp!B$3:B$170, SMALL(IF(ISERROR(Temp!B$3:B$170), \"\", ROW(Temp!B$3:B$170)-MIN(ROW(Temp!B$3:B$170))+1), ROW(32:32))),\"\")","v":""},{"$f":"IFERROR(INDEX(Temp!C$3:C$170, SMALL(IF(ISERROR(Temp!C$3:C$170), \"\", ROW(Temp!C$3:C$170)-MIN(ROW(Temp!C$3:C$170))+1), ROW(32:32))),\"\")","v":""},{"$f":"IFERROR(INDEX(Temp!D$3:D$170, SMALL(IF(ISERROR(Temp!D$3:D$170), \"\", ROW(Temp!D$3:D$170)-MIN(ROW(Temp!D$3:D$170))+1), ROW(32:32))),\"\")","v":""}]
[{"$f":"IFERROR(INDEX(Temp!A$3:A$170, SMALL(IF(ISERROR(Temp!A$3:A$170), \"\", ROW(Temp!A$3:A$170)-MIN(ROW(Temp!A$3:A$170))+1), ROW(33:33))),\"\")","v":""},{"$f":"IFERROR(INDEX(Temp!B$3:B$170, SMALL(IF(ISERROR(Temp!B$3:B$170), \"\", ROW(Temp!B$3:B$170)-MIN(ROW(Temp!B$3:B$170))+1), ROW(33:33))),\"\")","v":""},{"$f":"IFERROR(INDEX(Temp!C$3:C$170, SMALL(IF(ISERROR(Temp!C$3:C$170), \"\", ROW(Temp!C$3:C$170)-MIN(ROW(Temp!C$3:C$170))+1), ROW(33:33))),\"\")","v":""},{"$f":"IFERROR(INDEX(Temp!D$3:D$170, SMALL(IF(ISERROR(Temp!D$3:D$170), \"\", ROW(Temp!D$3:D$170)-MIN(ROW(Temp!D$3:D$170))+1), ROW(33:33))),\"\")","v":""}]
[{"$f":"IFERROR(INDEX(Temp!A$3:A$170, SMALL(IF(ISERROR(Temp!A$3:A$170), \"\", ROW(Temp!A$3:A$170)-MIN(ROW(Temp!A$3:A$170))+1), ROW(34:34))),\"\")","v":""},{"$f":"IFERROR(INDEX(Temp!B$3:B$170, SMALL(IF(ISERROR(Temp!B$3:B$170), \"\", ROW(Temp!B$3:B$170)-MIN(ROW(Temp!B$3:B$170))+1), ROW(34:34))),\"\")","v":""},{"$f":"IFERROR(INDEX(Temp!C$3:C$170, SMALL(IF(ISERROR(Temp!C$3:C$170), \"\", ROW(Temp!C$3:C$170)-MIN(ROW(Temp!C$3:C$170))+1), ROW(34:34))),\"\")","v":""},{"$f":"IFERROR(INDEX(Temp!D$3:D$170, SMALL(IF(ISERROR(Temp!D$3:D$170), \"\", ROW(Temp!D$3:D$170)-MIN(ROW(Temp!D$3:D$170))+1), ROW(34:34))),\"\")","v":""}]
[{"$f":"IFERROR(INDEX(Temp!A$3:A$170, SMALL(IF(ISERROR(Temp!A$3:A$170), \"\", ROW(Temp!A$3:A$170)-MIN(ROW(Temp!A$3:A$170))+1), ROW(35:35))),\"\")","v":""},{"$f":"IFERROR(INDEX(Temp!B$3:B$170, SMALL(IF(ISERROR(Temp!B$3:B$170), \"\", ROW(Temp!B$3:B$170)-MIN(ROW(Temp!B$3:B$170))+1), ROW(35:35))),\"\")","v":""},{"$f":"IFERROR(INDEX(Temp!C$3:C$170, SMALL(IF(ISERROR(Temp!C$3:C$170), \"\", ROW(Temp!C$3:C$170)-MIN(ROW(Temp!C$3:C$170))+1), ROW(35:35))),\"\")","v":""},{"$f":"IFERROR(INDEX(Temp!D$3:D$170, SMALL(IF(ISERROR(Temp!D$3:D$170), \"\", ROW(Temp!D$3:D$170)-MIN(ROW(Temp!D$3:D$170))+1), ROW(35:35))),\"\")","v":""}]
[{"$f":"IFERROR(INDEX(Temp!A$3:A$170, SMALL(IF(ISERROR(Temp!A$3:A$170), \"\", ROW(Temp!A$3:A$170)-MIN(ROW(Temp!A$3:A$170))+1), ROW(36:36))),\"\")","v":""},{"$f":"IFERROR(INDEX(Temp!B$3:B$170, SMALL(IF(ISERROR(Temp!B$3:B$170), \"\", ROW(Temp!B$3:B$170)-MIN(ROW(Temp!B$3:B$170))+1), ROW(36:36))),\"\")","v":""},{"$f":"IFERROR(INDEX(Temp!C$3:C$170, SMALL(IF(ISERROR(Temp!C$3:C$170), \"\", ROW(Temp!C$3:C$170)-MIN(ROW(Temp!C$3:C$170))+1), ROW(36:36))),\"\")","v":""},{"$f":"IFERROR(INDEX(Temp!D$3:D$170, SMALL(IF(ISERROR(Temp!D$3:D$170), \"\", ROW(Temp!D$3:D$170)-MIN(ROW(Temp!D$3:D$170))+1), ROW(36:36))),\"\")","v":""}]
[{"$f":"IFERROR(INDEX(Temp!A$3:A$170, SMALL(IF(ISERROR(Temp!A$3:A$170), \"\", ROW(Temp!A$3:A$170)-MIN(ROW(Temp!A$3:A$170))+1), ROW(37:37))),\"\")","v":""},{"$f":"IFERROR(INDEX(Temp!B$3:B$170, SMALL(IF(ISERROR(Temp!B$3:B$170), \"\", ROW(Temp!B$3:B$170)-MIN(ROW(Temp!B$3:B$170))+1), ROW(37:37))),\"\")","v":""},{"$f":"IFERROR(INDEX(Temp!C$3:C$170, SMALL(IF(ISERROR(Temp!C$3:C$170), \"\", ROW(Temp!C$3:C$170)-MIN(ROW(Temp!C$3:C$170))+1), ROW(37:37))),\"\")","v":""},{"$f":"IFERROR(INDEX(Temp!D$3:D$170, SMALL(IF(ISERROR(Temp!D$3:D$170), \"\", ROW(Temp!D$3:D$170)-MIN(ROW(Temp!D$3:D$170))+1), ROW(37:37))),\"\")","v":""}]
[{"$f":"IFERROR(INDEX(Temp!A$3:A$170, SMALL(IF(ISERROR(Temp!A$3:A$170), \"\", ROW(Temp!A$3:A$170)-MIN(ROW(Temp!A$3:A$170))+1), ROW(38:38))),\"\")","v":""},{"$f":"IFERROR(INDEX(Temp!B$3:B$170, SMALL(IF(ISERROR(Temp!B$3:B$170), \"\", ROW(Temp!B$3:B$170)-MIN(ROW(Temp!B$3:B$170))+1), ROW(38:38))),\"\")","v":""},{"$f":"IFERROR(INDEX(Temp!C$3:C$170, SMALL(IF(ISERROR(Temp!C$3:C$170), \"\", ROW(Temp!C$3:C$170)-MIN(ROW(Temp!C$3:C$170))+1), ROW(38:38))),\"\")","v":""},{"$f":"IFERROR(INDEX(Temp!D$3:D$170, SMALL(IF(ISERROR(Temp!D$3:D$170), \"\", ROW(Temp!D$3:D$170)-MIN(ROW(Temp!D$3:D$170))+1), ROW(38:38))),\"\")","v":""}]
[{"$f":"IFERROR(INDEX(Temp!A$3:A$170, SMALL(IF(ISERROR(Temp!A$3:A$170), \"\", ROW(Temp!A$3:A$170)-MIN(ROW(Temp!A$3:A$170))+1), ROW(39:39))),\"\")","v":""},{"$f":"IFERROR(INDEX(Temp!B$3:B$170, SMALL(IF(ISERROR(Temp!B$3:B$170), \"\", ROW(Temp!B$3:B$170)-MIN(ROW(Temp!B$3:B$170))+1), ROW(39:39))),\"\")","v":""},{"$f":"IFERROR(INDEX(Temp!C$3:C$170, SMALL(IF(ISERROR(Temp!C$3:C$170), \"\", ROW(Temp!C$3:C$170)-MIN(ROW(Temp!C$3:C$170))+1), ROW(39:39))),\"\")","v":""},{"$f":"IFERROR(INDEX(Temp!D$3:D$170, SMALL(IF(ISERROR(Temp!D$3:D$170), \"\", ROW(Temp!D$3:D$170)-MIN(ROW(Temp!D$3:D$170))+1), ROW(39:39))),\"\")","v":""}]
[{"$f":"IFERROR(INDEX(Temp!A$3:A$170, SMALL(IF(ISERROR(Temp!A$3:A$170), \"\", ROW(Temp!A$3:A$170)-MIN(ROW(Temp!A$3:A$170))+1), ROW(40:40))),\"\")","v":""},{"$f":"IFERROR(INDEX(Temp!B$3:B$170, SMALL(IF(ISERROR(Temp!B$3:B$170), \"\", ROW(Temp!B$3:B$170)-MIN(ROW(Temp!B$3:B$170))+1), ROW(40:40))),\"\")","v":""},{"$f":"IFERROR(INDEX(Temp!C$3:C$170, SMALL(IF(ISERROR(Temp!C$3:C$170), \"\", ROW(Temp!C$3:C$170)-MIN(ROW(Temp!C$3:C$170))+1), ROW(40:40))),\"\")","v":""},{"$f":"IFERROR(INDEX(Temp!D$3:D$170, SMALL(IF(ISERROR(Temp!D$3:D$170), \"\", ROW(Temp!D$3:D$170)-MIN(ROW(Temp!D$3:D$170))+1), ROW(40:40))),\"\")","v":""}]
[{"$f":"IFERROR(INDEX(Temp!A$3:A$170, SMALL(IF(ISERROR(Temp!A$3:A$170), \"\", ROW(Temp!A$3:A$170)-MIN(ROW(Temp!A$3:A$170))+1), ROW(41:41))),\"\")","v":""},{"$f":"IFERROR(INDEX(Temp!B$3:B$170, SMALL(IF(ISERROR(Temp!B$3:B$170), \"\", ROW(Temp!B$3:B$170)-MIN(ROW(Temp!B$3:B$170))+1), ROW(41:41))),\"\")","v":""},{"$f":"IFERROR(INDEX(Temp!C$3:C$170, SMALL(IF(ISERROR(Temp!C$3:C$170), \"\", ROW(Temp!C$3:C$170)-MIN(ROW(Temp!C$3:C$170))+1), ROW(41:41))),\"\")","v":""},{"$f":"IFERROR(INDEX(Temp!D$3:D$170, SMALL(IF(ISERROR(Temp!D$3:D$170), \"\", ROW(Temp!D$3:D$170)-MIN(ROW(Temp!D$3:D$170))+1), ROW(41:41))),\"\")","v":""}]
[{"$f":"IFERROR(INDEX(Temp!A$3:A$170, SMALL(IF(ISERROR(Temp!A$3:A$170), \"\", ROW(Temp!A$3:A$170)-MIN(ROW(Temp!A$3:A$170))+1), ROW(42:42))),\"\")","v":""},{"$f":"IFERROR(INDEX(Temp!B$3:B$170, SMALL(IF(ISERROR(Temp!B$3:B$170), \"\", ROW(Temp!B$3:B$170)-MIN(ROW(Temp!B$3:B$170))+1), ROW(42:42))),\"\")","v":""},{"$f":"IFERROR(INDEX(Temp!C$3:C$170, SMALL(IF(ISERROR(Temp!C$3:C$170), \"\", ROW(Temp!C$3:C$170)-MIN(ROW(Temp!C$3:C$170))+1), ROW(42:42))),\"\")","v":""},{"$f":"IFERROR(INDEX(Temp!D$3:D$170, SMALL(IF(ISERROR(Temp!D$3:D$170), \"\", ROW(Temp!D$3:D$170)-MIN(ROW(Temp!D$3:D$170))+1), ROW(42:42))),\"\")","v":""}]
[{"$f":"IFERROR(INDEX(Temp!A$3:A$170, SMALL(IF(ISERROR(Temp!A$3:A$170), \"\", ROW(Temp!A$3:A$170)-MIN(ROW(Temp!A$3:A$170))+1), ROW(43:43))),\"\")","v":""},{"$f":"IFERROR(INDEX(Temp!B$3:B$170, SMALL(IF(ISERROR(Temp!B$3:B$170), \"\", ROW(Temp!B$3:B$170)-MIN(ROW(Temp!B$3:B$170))+1), ROW(43:43))),\"\")","v":""},{"$f":"IFERROR(INDEX(Temp!C$3:C$170, SMALL(IF(ISERROR(Temp!C$3:C$170), \"\", ROW(Temp!C$3:C$170)-MIN(ROW(Temp!C$3:C$170))+1), ROW(43:43))),\"\")","v":""},{"$f":"IFERROR(INDEX(Temp!D$3:D$170, SMALL(IF(ISERROR(Temp!D$3:D$170), \"\", ROW(Temp!D$3:D$170)-MIN(ROW(Temp!D$3:D$170))+1), ROW(43:43))),\"\")","v":""}]
[{"$f":"IFERROR(INDEX(Temp!A$3:A$170, SMALL(IF(ISERROR(Temp!A$3:A$170), \"\", ROW(Temp!A$3:A$170)-MIN(ROW(Temp!A$3:A$170))+1), ROW(44:44))),\"\")","v":""},{"$f":"IFERROR(INDEX(Temp!B$3:B$170, SMALL(IF(ISERROR(Temp!B$3:B$170), \"\", ROW(Temp!B$3:B$170)-MIN(ROW(Temp!B$3:B$170))+1), ROW(44:44))),\"\")","v":""},{"$f":"IFERROR(INDEX(Temp!C$3:C$170, SMALL(IF(ISERROR(Temp!C$3:C$170), \"\", ROW(Temp!C$3:C$170)-MIN(ROW(Temp!C$3:C$170))+1), ROW(44:44))),\"\")","v":""},{"$f":"IFERROR(INDEX(Temp!D$3:D$170, SMALL(IF(ISERROR(Temp!D$3:D$170), \"\", ROW(Temp!D$3:D$170)-MIN(ROW(Temp!D$3:D$170))+1), ROW(44:44))),\"\")","v":""}]
[{"$f":"IFERROR(INDEX(Temp!A$3:A$170, SMALL(IF(ISERROR(Temp!A$3:A$170), \"\", ROW(Temp!A$3:A$170)-MIN(ROW(Temp!A$3:A$170))+1), ROW(45:45))),\"\")","v":""},{"$f":"IFERROR(INDEX(Temp!B$3:B$170, SMALL(IF(ISERROR(Temp!B$3:B$170), \"\", ROW(Temp!B$3:B$170)-MIN(ROW(Temp!B$3:B$170))+1), ROW(45:45))),\"\")","v":""},{"$f":"IFERROR(INDEX(Temp!C$3:C$170, SMALL(IF(ISERROR(Temp!C$3:C$170), \"\", ROW(Temp!C$3:C$170)-MIN(ROW(Temp!C$3:C$170))+1), ROW(45:45))),\"\")","v":""},{"$f":"IFERROR(INDEX(Temp!D$3:D$170, SMALL(IF(ISERROR(Temp!D$3:D$170), \"\", ROW(Temp!D$3:D$170)-MIN(ROW(Temp!D$3:D$170))+1), ROW(45:45))),\"\")","v":""}]
[{"$f":"IFERROR(INDEX(Temp!A$3:A$170, SMALL(IF(ISERROR(Temp!A$3:A$170), \"\", ROW(Temp!A$3:A$170)-MIN(ROW(Temp!A$3:A$170))+1), ROW(46:46))),\"\")","v":""},{"$f":"IFERROR(INDEX(Temp!B$3:B$170, SMALL(IF(ISERROR(Temp!B$3:B$170), \"\", ROW(Temp!B$3:B$170)-MIN(ROW(Temp!B$3:B$170))+1), ROW(46:46))),\"\")","v":""},{"$f":"IFERROR(INDEX(Temp!C$3:C$170, SMALL(IF(ISERROR(Temp!C$3:C$170), \"\", ROW(Temp!C$3:C$170)-MIN(ROW(Temp!C$3:C$170))+1), ROW(46:46))),\"\")","v":""},{"$f":"IFERROR(INDEX(Temp!D$3:D$170, SMALL(IF(ISERROR(Temp!D$3:D$170), \"\", ROW(Temp!D$3:D$170)-MIN(ROW(Temp!D$3:D$170))+1), ROW(46:46))),\"\")","v":""}]
[{"$f":"IFERROR(INDEX(Temp!A$3:A$170, SMALL(IF(ISERROR(Temp!A$3:A$170), \"\", ROW(Temp!A$3:A$170)-MIN(ROW(Temp!A$3:A$170))+1), ROW(47:47))),\"\")","v":""},{"$f":"IFERROR(INDEX(Temp!B$3:B$170, SMALL(IF(ISERROR(Temp!B$3:B$170), \"\", ROW(Temp!B$3:B$170)-MIN(ROW(Temp!B$3:B$170))+1), ROW(47:47))),\"\")","v":""},{"$f":"IFERROR(INDEX(Temp!C$3:C$170, SMALL(IF(ISERROR(Temp!C$3:C$170), \"\", ROW(Temp!C$3:C$170)-MIN(ROW(Temp!C$3:C$170))+1), ROW(47:47))),\"\")","v":""},{"$f":"IFERROR(INDEX(Temp!D$3:D$170, SMALL(IF(ISERROR(Temp!D$3:D$170), \"\", ROW(Temp!D$3:D$170)-MIN(ROW(Temp!D$3:D$170))+1), ROW(47:47))),\"\")","v":""}]
[{"$f":"IFERROR(INDEX(Temp!A$3:A$170, SMALL(IF(ISERROR(Temp!A$3:A$170), \"\", ROW(Temp!A$3:A$170)-MIN(ROW(Temp!A$3:A$170))+1), ROW(48:48))),\"\")","v":""},{"$f":"IFERROR(INDEX(Temp!B$3:B$170, SMALL(IF(ISERROR(Temp!B$3:B$170), \"\", ROW(Temp!B$3:B$170)-MIN(ROW(Temp!B$3:B$170))+1), ROW(48:48))),\"\")","v":""},{"$f":"IFERROR(INDEX(Temp!C$3:C$170, SMALL(IF(ISERROR(Temp!C$3:C$170), \"\", ROW(Temp!C$3:C$170)-MIN(ROW(Temp!C$3:C$170))+1), ROW(48:48))),\"\")","v":""},{"$f":"IFERROR(INDEX(Temp!D$3:D$170, SMALL(IF(ISERROR(Temp!D$3:D$170), \"\", ROW(Temp!D$3:D$170)-MIN(ROW(Temp!D$3:D$170))+1), ROW(48:48))),\"\")","v":""}]
[{"$f":"IFERROR(INDEX(Temp!A$3:A$170, SMALL(IF(ISERROR(Temp!A$3:A$170), \"\", ROW(Temp!A$3:A$170)-MIN(ROW(Temp!A$3:A$170))+1), ROW(49:49))),\"\")","v":""},{"$f":"IFERROR(INDEX(Temp!B$3:B$170, SMALL(IF(ISERROR(Temp!B$3:B$170), \"\", ROW(Temp!B$3:B$170)-MIN(ROW(Temp!B$3:B$170))+1), ROW(49:49))),\"\")","v":""},{"$f":"IFERROR(INDEX(Temp!C$3:C$170, SMALL(IF(ISERROR(Temp!C$3:C$170), \"\", ROW(Temp!C$3:C$170)-MIN(ROW(Temp!C$3:C$170))+1), ROW(49:49))),\"\")","v":""},{"$f":"IFERROR(INDEX(Temp!D$3:D$170, SMALL(IF(ISERROR(Temp!D$3:D$170), \"\", ROW(Temp!D$3:D$170)-MIN(ROW(Temp!D$3:D$170))+1), ROW(49:49))),\"\")","v":""}]
[{"$f":"IFERROR(INDEX(Temp!A$3:A$170, SMALL(IF(ISERROR(Temp!A$3:A$170), \"\", ROW(Temp!A$3:A$170)-MIN(ROW(Temp!A$3:A$170))+1), ROW(50:50))),\"\")","v":""},{"$f":"IFERROR(INDEX(Temp!B$3:B$170, SMALL(IF(ISERROR(Temp!B$3:B$170), \"\", ROW(Temp!B$3:B$170)-MIN(ROW(Temp!B$3:B$170))+1), ROW(50:50))),\"\")","v":""},{"$f":"IFERROR(INDEX(Temp!C$3:C$170, SMALL(IF(ISERROR(Temp!C$3:C$170), \"\", ROW(Temp!C$3:C$170)-MIN(ROW(Temp!C$3:C$170))+1), ROW(50:50))),\"\")","v":""},{"$f":"IFERROR(INDEX(Temp!D$3:D$170, SMALL(IF(ISERROR(Temp!D$3:D$170), \"\", ROW(Temp!D$3:D$170)-MIN(ROW(Temp!D$3:D$170))+1), ROW(50:50))),\"\")","v":""}]
[{"$f":"IFERROR(INDEX(Temp!A$3:A$170, SMALL(IF(ISERROR(Temp!A$3:A$170), \"\", ROW(Temp!A$3:A$170)-MIN(ROW(Temp!A$3:A$170))+1), ROW(51:51))),\"\")","v":""},{"$f":"IFERROR(INDEX(Temp!B$3:B$170, SMALL(IF(ISERROR(Temp!B$3:B$170), \"\", ROW(Temp!B$3:B$170)-MIN(ROW(Temp!B$3:B$170))+1), ROW(51:51))),\"\")","v":""},{"$f":"IFERROR(INDEX(Temp!C$3:C$170, SMALL(IF(ISERROR(Temp!C$3:C$170), \"\", ROW(Temp!C$3:C$170)-MIN(ROW(Temp!C$3:C$170))+1), ROW(51:51))),\"\")","v":""},{"$f":"IFERROR(INDEX(Temp!D$3:D$170, SMALL(IF(ISERROR(Temp!D$3:D$170), \"\", ROW(Temp!D$3:D$170)-MIN(ROW(Temp!D$3:D$170))+1), ROW(51:51))),\"\")","v":""}]
[{"$f":"IFERROR(INDEX(Temp!A$3:A$170, SMALL(IF(ISERROR(Temp!A$3:A$170), \"\", ROW(Temp!A$3:A$170)-MIN(ROW(Temp!A$3:A$170))+1), ROW(52:52))),\"\")","v":""},{"$f":"IFERROR(INDEX(Temp!B$3:B$170, SMALL(IF(ISERROR(Temp!B$3:B$170), \"\", ROW(Temp!B$3:B$170)-MIN(ROW(Temp!B$3:B$170))+1), ROW(52:52))),\"\")","v":""},{"$f":"IFERROR(INDEX(Temp!C$3:C$170, SMALL(IF(ISERROR(Temp!C$3:C$170), \"\", ROW(Temp!C$3:C$170)-MIN(ROW(Temp!C$3:C$170))+1), ROW(52:52))),\"\")","v":""},{"$f":"IFERROR(INDEX(Temp!D$3:D$170, SMALL(IF(ISERROR(Temp!D$3:D$170), \"\", ROW(Temp!D$3:D$170)-MIN(ROW(Temp!D$3:D$170))+1), ROW(52:52))),\"\")","v":""}]
[{"$f":"IFERROR(INDEX(Temp!A$3:A$170, SMALL(IF(ISERROR(Temp!A$3:A$170), \"\", ROW(Temp!A$3:A$170)-MIN(ROW(Temp!A$3:A$170))+1), ROW(53:53))),\"\")","v":""},{"$f":"IFERROR(INDEX(Temp!B$3:B$170, SMALL(IF(ISERROR(Temp!B$3:B$170), \"\", ROW(Temp!B$3:B$170)-MIN(ROW(Temp!B$3:B$170))+1), ROW(53:53))),\"\")","v":""},{"$f":"IFERROR(INDEX(Temp!C$3:C$170, SMALL(IF(ISERROR(Temp!C$3:C$170), \"\", ROW(Temp!C$3:C$170)-MIN(ROW(Temp!C$3:C$170))+1), ROW(53:53))),\"\")","v":""},{"$f":"IFERROR(INDEX(Temp!D$3:D$170, SMALL(IF(ISERROR(Temp!D$3:D$170), \"\", ROW(Temp!D$3:D$170)-MIN(ROW(Temp!D$3:D$170))+1), ROW(53:53))),\"\")","v":""}]
[{"$f":"IFERROR(INDEX(Temp!A$3:A$170, SMALL(IF(ISERROR(Temp!A$3:A$170), \"\", ROW(Temp!A$3:A$170)-MIN(ROW(Temp!A$3:A$170))+1), ROW(54:54))),\"\")","v":""},{"$f":"IFERROR(INDEX(Temp!B$3:B$170, SMALL(IF(ISERROR(Temp!B$3:B$170), \"\", ROW(Temp!B$3:B$170)-MIN(ROW(Temp!B$3:B$170))+1), ROW(54:54))),\"\")","v":""},{"$f":"IFERROR(INDEX(Temp!C$3:C$170, SMALL(IF(ISERROR(Temp!C$3:C$170), \"\", ROW(Temp!C$3:C$170)-MIN(ROW(Temp!C$3:C$170))+1), ROW(54:54))),\"\")","v":""},{"$f":"IFERROR(INDEX(Temp!D$3:D$170, SMALL(IF(ISERROR(Temp!D$3:D$170), \"\", ROW(Temp!D$3:D$170)-MIN(ROW(Temp!D$3:D$170))+1), ROW(54:54))),\"\")","v":""}]
[{"$f":"IFERROR(INDEX(Temp!A$3:A$170, SMALL(IF(ISERROR(Temp!A$3:A$170), \"\", ROW(Temp!A$3:A$170)-MIN(ROW(Temp!A$3:A$170))+1), ROW(55:55))),\"\")","v":""},{"$f":"IFERROR(INDEX(Temp!B$3:B$170, SMALL(IF(ISERROR(Temp!B$3:B$170), \"\", ROW(Temp!B$3:B$170)-MIN(ROW(Temp!B$3:B$170))+1), ROW(55:55))),\"\")","v":""},{"$f":"IFERROR(INDEX(Temp!C$3:C$170, SMALL(IF(ISERROR(Temp!C$3:C$170), \"\", ROW(Temp!C$3:C$170)-MIN(ROW(Temp!C$3:C$170))+1), ROW(55:55))),\"\")","v":""},{"$f":"IFERROR(INDEX(Temp!D$3:D$170, SMALL(IF(ISERROR(Temp!D$3:D$170), \"\", ROW(Temp!D$3:D$170)-MIN(ROW(Temp!D$3:D$170))+1), ROW(55:55))),\"\")","v":""}]
[{"$f":"IFERROR(INDEX(Temp!A$3:A$170, SMALL(IF(ISERROR(Temp!A$3:A$170), \"\", ROW(Temp!A$3:A$170)-MIN(ROW(Temp!A$3:A$170))+1), ROW(56:56))),\"\")","v":""},{"$f":"IFERROR(INDEX(Temp!B$3:B$170, SMALL(IF(ISERROR(Temp!B$3:B$170), \"\", ROW(Temp!B$3:B$170)-MIN(ROW(Temp!B$3:B$170))+1), ROW(56:56))),\"\")","v":""},{"$f":"IFERROR(INDEX(Temp!C$3:C$170, SMALL(IF(ISERROR(Temp!C$3:C$170), \"\", ROW(Temp!C$3:C$170)-MIN(ROW(Temp!C$3:C$170))+1), ROW(56:56))),\"\")","v":""},{"$f":"IFERROR(INDEX(Temp!D$3:D$170, SMALL(IF(ISERROR(Temp!D$3:D$170), \"\", ROW(Temp!D$3:D$170)-MIN(ROW(Temp!D$3:D$170))+1), ROW(56:56))),\"\")","v":""}]
[{"$f":"IFERROR(INDEX(Temp!A$3:A$170, SMALL(IF(ISERROR(Temp!A$3:A$170), \"\", ROW(Temp!A$3:A$170)-MIN(ROW(Temp!A$3:A$170))+1), ROW(57:57))),\"\")","v":""},{"$f":"IFERROR(INDEX(Temp!B$3:B$170, SMALL(IF(ISERROR(Temp!B$3:B$170), \"\", ROW(Temp!B$3:B$170)-MIN(ROW(Temp!B$3:B$170))+1), ROW(57:57))),\"\")","v":""},{"$f":"IFERROR(INDEX(Temp!C$3:C$170, SMALL(IF(ISERROR(Temp!C$3:C$170), \"\", ROW(Temp!C$3:C$170)-MIN(ROW(Temp!C$3:C$170))+1), ROW(57:57))),\"\")","v":""},{"$f":"IFERROR(INDEX(Temp!D$3:D$170, SMALL(IF(ISERROR(Temp!D$3:D$170), \"\", ROW(Temp!D$3:D$170)-MIN(ROW(Temp!D$3:D$170))+1), ROW(57:57))),\"\")","v":""}]
[{"$f":"IFERROR(INDEX(Temp!A$3:A$170, SMALL(IF(ISERROR(Temp!A$3:A$170), \"\", ROW(Temp!A$3:A$170)-MIN(ROW(Temp!A$3:A$170))+1), ROW(58:58))),\"\")","v":""},{"$f":"IFERROR(INDEX(Temp!B$3:B$170, SMALL(IF(ISERROR(Temp!B$3:B$170), \"\", ROW(Temp!B$3:B$170)-MIN(ROW(Temp!B$3:B$170))+1), ROW(58:58))),\"\")","v":""},{"$f":"IFERROR(INDEX(Temp!C$3:C$170, SMALL(IF(ISERROR(Temp!C$3:C$170), \"\", ROW(Temp!C$3:C$170)-MIN(ROW(Temp!C$3:C$170))+1), ROW(58:58))),\"\")","v":""},{"$f":"IFERROR(INDEX(Temp!D$3:D$170, SMALL(IF(ISERROR(Temp!D$3:D$170), \"\", ROW(Temp!D$3:D$170)-MIN(ROW(Temp!D$3:D$170))+1), ROW(58:58))),\"\")","v":""}]
[{"$f":"IFERROR(INDEX(Temp!A$3:A$170, SMALL(IF(ISERROR(Temp!A$3:A$170), \"\", ROW(Temp!A$3:A$170)-MIN(ROW(Temp!A$3:A$170))+1), ROW(59:59))),\"\")","v":""},{"$f":"IFERROR(INDEX(Temp!B$3:B$170, SMALL(IF(ISERROR(Temp!B$3:B$170), \"\", ROW(Temp!B$3:B$170)-MIN(ROW(Temp!B$3:B$170))+1), ROW(59:59))),\"\")","v":""},{"$f":"IFERROR(INDEX(Temp!C$3:C$170, SMALL(IF(ISERROR(Temp!C$3:C$170), \"\", ROW(Temp!C$3:C$170)-MIN(ROW(Temp!C$3:C$170))+1), ROW(59:59))),\"\")","v":""},{"$f":"IFERROR(INDEX(Temp!D$3:D$170, SMALL(IF(ISERROR(Temp!D$3:D$170), \"\", ROW(Temp!D$3:D$170)-MIN(ROW(Temp!D$3:D$170))+1), ROW(59:59))),\"\")","v":""}]
[{"$f":"IFERROR(INDEX(Temp!A$3:A$170, SMALL(IF(ISERROR(Temp!A$3:A$170), \"\", ROW(Temp!A$3:A$170)-MIN(ROW(Temp!A$3:A$170))+1), ROW(60:60))),\"\")","v":""},{"$f":"IFERROR(INDEX(Temp!B$3:B$170, SMALL(IF(ISERROR(Temp!B$3:B$170), \"\", ROW(Temp!B$3:B$170)-MIN(ROW(Temp!B$3:B$170))+1), ROW(60:60))),\"\")","v":""},{"$f":"IFERROR(INDEX(Temp!C$3:C$170, SMALL(IF(ISERROR(Temp!C$3:C$170), \"\", ROW(Temp!C$3:C$170)-MIN(ROW(Temp!C$3:C$170))+1), ROW(60:60))),\"\")","v":""},{"$f":"IFERROR(INDEX(Temp!D$3:D$170, SMALL(IF(ISERROR(Temp!D$3:D$170), \"\", ROW(Temp!D$3:D$170)-MIN(ROW(Temp!D$3:D$170))+1), ROW(60:60))),\"\")","v":""}]
[{"$f":"IFERROR(INDEX(Temp!A$3:A$170, SMALL(IF(ISERROR(Temp!A$3:A$170), \"\", ROW(Temp!A$3:A$170)-MIN(ROW(Temp!A$3:A$170))+1), ROW(61:61))),\"\")","v":""},{"$f":"IFERROR(INDEX(Temp!B$3:B$170, SMALL(IF(ISERROR(Temp!B$3:B$170), \"\", ROW(Temp!B$3:B$170)-MIN(ROW(Temp!B$3:B$170))+1), ROW(61:61))),\"\")","v":""},{"$f":"IFERROR(INDEX(Temp!C$3:C$170, SMALL(IF(ISERROR(Temp!C$3:C$170), \"\", ROW(Temp!C$3:C$170)-MIN(ROW(Temp!C$3:C$170))+1), ROW(61:61))),\"\")","v":""},{"$f":"IFERROR(INDEX(Temp!D$3:D$170, SMALL(IF(ISERROR(Temp!D$3:D$170), \"\", ROW(Temp!D$3:D$170)-MIN(ROW(Temp!D$3:D$170))+1), ROW(61:61))),\"\")","v":""}]
[{"$f":"IFERROR(INDEX(Temp!A$3:A$170, SMALL(IF(ISERROR(Temp!A$3:A$170), \"\", ROW(Temp!A$3:A$170)-MIN(ROW(Temp!A$3:A$170))+1), ROW(62:62))),\"\")","v":""},{"$f":"IFERROR(INDEX(Temp!B$3:B$170, SMALL(IF(ISERROR(Temp!B$3:B$170), \"\", ROW(Temp!B$3:B$170)-MIN(ROW(Temp!B$3:B$170))+1), ROW(62:62))),\"\")","v":""},{"$f":"IFERROR(INDEX(Temp!C$3:C$170, SMALL(IF(ISERROR(Temp!C$3:C$170), \"\", ROW(Temp!C$3:C$170)-MIN(ROW(Temp!C$3:C$170))+1), ROW(62:62))),\"\")","v":""},{"$f":"IFERROR(INDEX(Temp!D$3:D$170, SMALL(IF(ISERROR(Temp!D$3:D$170), \"\", ROW(Temp!D$3:D$170)-MIN(ROW(Temp!D$3:D$170))+1), ROW(62:62))),\"\")","v":""}]
[{"$f":"IFERROR(INDEX(Temp!A$3:A$170, SMALL(IF(ISERROR(Temp!A$3:A$170), \"\", ROW(Temp!A$3:A$170)-MIN(ROW(Temp!A$3:A$170))+1), ROW(63:63))),\"\")","v":""},{"$f":"IFERROR(INDEX(Temp!B$3:B$170, SMALL(IF(ISERROR(Temp!B$3:B$170), \"\", ROW(Temp!B$3:B$170)-MIN(ROW(Temp!B$3:B$170))+1), ROW(63:63))),\"\")","v":""},{"$f":"IFERROR(INDEX(Temp!C$3:C$170, SMALL(IF(ISERROR(Temp!C$3:C$170), \"\", ROW(Temp!C$3:C$170)-MIN(ROW(Temp!C$3:C$170))+1), ROW(63:63))),\"\")","v":""},{"$f":"IFERROR(INDEX(Temp!D$3:D$170, SMALL(IF(ISERROR(Temp!D$3:D$170), \"\", ROW(Temp!D$3:D$170)-MIN(ROW(Temp!D$3:D$170))+1), ROW(63:63))),\"\")","v":""}]
[{"$f":"IFERROR(INDEX(Temp!A$3:A$170, SMALL(IF(ISERROR(Temp!A$3:A$170), \"\", ROW(Temp!A$3:A$170)-MIN(ROW(Temp!A$3:A$170))+1), ROW(64:64))),\"\")","v":""},{"$f":"IFERROR(INDEX(Temp!B$3:B$170, SMALL(IF(ISERROR(Temp!B$3:B$170), \"\", ROW(Temp!B$3:B$170)-MIN(ROW(Temp!B$3:B$170))+1), ROW(64:64))),\"\")","v":""},{"$f":"IFERROR(INDEX(Temp!C$3:C$170, SMALL(IF(ISERROR(Temp!C$3:C$170), \"\", ROW(Temp!C$3:C$170)-MIN(ROW(Temp!C$3:C$170))+1), ROW(64:64))),\"\")","v":""},{"$f":"IFERROR(INDEX(Temp!D$3:D$170, SMALL(IF(ISERROR(Temp!D$3:D$170), \"\", ROW(Temp!D$3:D$170)-MIN(ROW(Temp!D$3:D$170))+1), ROW(64:64))),\"\")","v":""}]
[{"$f":"IFERROR(INDEX(Temp!A$3:A$170, SMALL(IF(ISERROR(Temp!A$3:A$170), \"\", ROW(Temp!A$3:A$170)-MIN(ROW(Temp!A$3:A$170))+1), ROW(65:65))),\"\")","v":""},{"$f":"IFERROR(INDEX(Temp!B$3:B$170, SMALL(IF(ISERROR(Temp!B$3:B$170), \"\", ROW(Temp!B$3:B$170)-MIN(ROW(Temp!B$3:B$170))+1), ROW(65:65))),\"\")","v":""},{"$f":"IFERROR(INDEX(Temp!C$3:C$170, SMALL(IF(ISERROR(Temp!C$3:C$170), \"\", ROW(Temp!C$3:C$170)-MIN(ROW(Temp!C$3:C$170))+1), ROW(65:65))),\"\")","v":""},{"$f":"IFERROR(INDEX(Temp!D$3:D$170, SMALL(IF(ISERROR(Temp!D$3:D$170), \"\", ROW(Temp!D$3:D$170)-MIN(ROW(Temp!D$3:D$170))+1), ROW(65:65))),\"\")","v":""}]
[{"$f":"IFERROR(INDEX(Temp!A$3:A$170, SMALL(IF(ISERROR(Temp!A$3:A$170), \"\", ROW(Temp!A$3:A$170)-MIN(ROW(Temp!A$3:A$170))+1), ROW(66:66))),\"\")","v":""},{"$f":"IFERROR(INDEX(Temp!B$3:B$170, SMALL(IF(ISERROR(Temp!B$3:B$170), \"\", ROW(Temp!B$3:B$170)-MIN(ROW(Temp!B$3:B$170))+1), ROW(66:66))),\"\")","v":""},{"$f":"IFERROR(INDEX(Temp!C$3:C$170, SMALL(IF(ISERROR(Temp!C$3:C$170), \"\", ROW(Temp!C$3:C$170)-MIN(ROW(Temp!C$3:C$170))+1), ROW(66:66))),\"\")","v":""},{"$f":"IFERROR(INDEX(Temp!D$3:D$170, SMALL(IF(ISERROR(Temp!D$3:D$170), \"\", ROW(Temp!D$3:D$170)-MIN(ROW(Temp!D$3:D$170))+1), ROW(66:66))),\"\")","v":""}]
[{"$f":"IFERROR(INDEX(Temp!A$3:A$170, SMALL(IF(ISERROR(Temp!A$3:A$170), \"\", ROW(Temp!A$3:A$170)-MIN(ROW(Temp!A$3:A$170))+1), ROW(67:67))),\"\")","v":""},{"$f":"IFERROR(INDEX(Temp!B$3:B$170, SMALL(IF(ISERROR(Temp!B$3:B$170), \"\", ROW(Temp!B$3:B$170)-MIN(ROW(Temp!B$3:B$170))+1), ROW(67:67))),\"\")","v":""},{"$f":"IFERROR(INDEX(Temp!C$3:C$170, SMALL(IF(ISERROR(Temp!C$3:C$170), \"\", ROW(Temp!C$3:C$170)-MIN(ROW(Temp!C$3:C$170))+1), ROW(67:67))),\"\")","v":""},{"$f":"IFERROR(INDEX(Temp!D$3:D$170, SMALL(IF(ISERROR(Temp!D$3:D$170), \"\", ROW(Temp!D$3:D$170)-MIN(ROW(Temp!D$3:D$170))+1), ROW(67:67))),\"\")","v":""}]
[{"$f":"IFERROR(INDEX(Temp!A$3:A$170, SMALL(IF(ISERROR(Temp!A$3:A$170), \"\", ROW(Temp!A$3:A$170)-MIN(ROW(Temp!A$3:A$170))+1), ROW(68:68))),\"\")","v":""},{"$f":"IFERROR(INDEX(Temp!B$3:B$170, SMALL(IF(ISERROR(Temp!B$3:B$170), \"\", ROW(Temp!B$3:B$170)-MIN(ROW(Temp!B$3:B$170))+1), ROW(68:68))),\"\")","v":""},{"$f":"IFERROR(INDEX(Temp!C$3:C$170, SMALL(IF(ISERROR(Temp!C$3:C$170), \"\", ROW(Temp!C$3:C$170)-MIN(ROW(Temp!C$3:C$170))+1), ROW(68:68))),\"\")","v":""},{"$f":"IFERROR(INDEX(Temp!D$3:D$170, SMALL(IF(ISERROR(Temp!D$3:D$170), \"\", ROW(Temp!D$3:D$170)-MIN(ROW(Temp!D$3:D$170))+1), ROW(68:68))),\"\")","v":""}]
[{"$f":"IFERROR(INDEX(Temp!A$3:A$170, SMALL(IF(ISERROR(Temp!A$3:A$170), \"\", ROW(Temp!A$3:A$170)-MIN(ROW(Temp!A$3:A$170))+1), ROW(69:69))),\"\")","v":""},{"$f":"IFERROR(INDEX(Temp!B$3:B$170, SMALL(IF(ISERROR(Temp!B$3:B$170), \"\", ROW(Temp!B$3:B$170)-MIN(ROW(Temp!B$3:B$170))+1), ROW(69:69))),\"\")","v":""},{"$f":"IFERROR(INDEX(Temp!C$3:C$170, SMALL(IF(ISERROR(Temp!C$3:C$170), \"\", ROW(Temp!C$3:C$170)-MIN(ROW(Temp!C$3:C$170))+1), ROW(69:69))),\"\")","v":""},{"$f":"IFERROR(INDEX(Temp!D$3:D$170, SMALL(IF(ISERROR(Temp!D$3:D$170), \"\", ROW(Temp!D$3:D$170)-MIN(ROW(Temp!D$3:D$170))+1), ROW(69:69))),\"\")","v":""}]
[{"$f":"IFERROR(INDEX(Temp!A$3:A$170, SMALL(IF(ISERROR(Temp!A$3:A$170), \"\", ROW(Temp!A$3:A$170)-MIN(ROW(Temp!A$3:A$170))+1), ROW(70:70))),\"\")","v":""},{"$f":"IFERROR(INDEX(Temp!B$3:B$170, SMALL(IF(ISERROR(Temp!B$3:B$170), \"\", ROW(Temp!B$3:B$170)-MIN(ROW(Temp!B$3:B$170))+1), ROW(70:70))),\"\")","v":""},{"$f":"IFERROR(INDEX(Temp!C$3:C$170, SMALL(IF(ISERROR(Temp!C$3:C$170), \"\", ROW(Temp!C$3:C$170)-MIN(ROW(Temp!C$3:C$170))+1), ROW(70:70))),\"\")","v":""},{"$f":"IFERROR(INDEX(Temp!D$3:D$170, SMALL(IF(ISERROR(Temp!D$3:D$170), \"\", ROW(Temp!D$3:D$170)-MIN(ROW(Temp!D$3:D$170))+1), ROW(70:70))),\"\")","v":""}]
[{"$f":"IFERROR(INDEX(Temp!A$3:A$170, SMALL(IF(ISERROR(Temp!A$3:A$170), \"\", ROW(Temp!A$3:A$170)-MIN(ROW(Temp!A$3:A$170))+1), ROW(71:71))),\"\")","v":""},{"$f":"IFERROR(INDEX(Temp!B$3:B$170, SMALL(IF(ISERROR(Temp!B$3:B$170), \"\", ROW(Temp!B$3:B$170)-MIN(ROW(Temp!B$3:B$170))+1), ROW(71:71))),\"\")","v":""},{"$f":"IFERROR(INDEX(Temp!C$3:C$170, SMALL(IF(ISERROR(Temp!C$3:C$170), \"\", ROW(Temp!C$3:C$170)-MIN(ROW(Temp!C$3:C$170))+1), ROW(71:71))),\"\")","v":""},{"$f":"IFERROR(INDEX(Temp!D$3:D$170, SMALL(IF(ISERROR(Temp!D$3:D$170), \"\", ROW(Temp!D$3:D$170)-MIN(ROW(Temp!D$3:D$170))+1), ROW(71:71))),\"\")","v":""}]
[{"$f":"IFERROR(INDEX(Temp!A$3:A$170, SMALL(IF(ISERROR(Temp!A$3:A$170), \"\", ROW(Temp!A$3:A$170)-MIN(ROW(Temp!A$3:A$170))+1), ROW(72:72))),\"\")","v":""},{"$f":"IFERROR(INDEX(Temp!B$3:B$170, SMALL(IF(ISERROR(Temp!B$3:B$170), \"\", ROW(Temp!B$3:B$170)-MIN(ROW(Temp!B$3:B$170))+1), ROW(72:72))),\"\")","v":""},{"$f":"IFERROR(INDEX(Temp!C$3:C$170, SMALL(IF(ISERROR(Temp!C$3:C$170), \"\", ROW(Temp!C$3:C$170)-MIN(ROW(Temp!C$3:C$170))+1), ROW(72:72))),\"\")","v":""},{"$f":"IFERROR(INDEX(Temp!D$3:D$170, SMALL(IF(ISERROR(Temp!D$3:D$170), \"\", ROW(Temp!D$3:D$170)-MIN(ROW(Temp!D$3:D$170))+1), ROW(72:72))),\"\")","v":""}]
[{"$f":"IFERROR(INDEX(Temp!A$3:A$170, SMALL(IF(ISERROR(Temp!A$3:A$170), \"\", ROW(Temp!A$3:A$170)-MIN(ROW(Temp!A$3:A$170))+1), ROW(73:73))),\"\")","v":""},{"$f":"IFERROR(INDEX(Temp!B$3:B$170, SMALL(IF(ISERROR(Temp!B$3:B$170), \"\", ROW(Temp!B$3:B$170)-MIN(ROW(Temp!B$3:B$170))+1), ROW(73:73))),\"\")","v":""},{"$f":"IFERROR(INDEX(Temp!C$3:C$170, SMALL(IF(ISERROR(Temp!C$3:C$170), \"\", ROW(Temp!C$3:C$170)-MIN(ROW(Temp!C$3:C$170))+1), ROW(73:73))),\"\")","v":""},{"$f":"IFERROR(INDEX(Temp!D$3:D$170, SMALL(IF(ISERROR(Temp!D$3:D$170), \"\", ROW(Temp!D$3:D$170)-MIN(ROW(Temp!D$3:D$170))+1), ROW(73:73))),\"\")","v":""}]